Directorate,Department,Expenditure Type,Ref.Doc.1,Vendor Name,Expenditure Amount (exc VAT),Payment Date
Assurance,Assurance,Clothing - Uniforms,20022868,EUROSUITS,352.00,11/08/2015
Assurance,Assurance,Other Indirect Employee Expens,20022648,REDACTED - PERSONAL DATA,67.20,04/08/2015
Assurance,Assurance,Other Indirect Employee Expens,20022649,REDACTED - PERSONAL DATA,685.20,04/08/2015
Assurance,Assurance,Other Indirect Employee Expens,20022650,REDACTED - PERSONAL DATA,328.50,04/08/2015
Assurance,Assurance,Other Indirect Employee Expens,20023151,THE MAYOR OF BRENT'S CHARITY APPEAL,26.00,28/08/2015
Assurance,Assurance,Postage,60028333,ROYAL MAIL GROUP LIMITED,"1,318.59",05/08/2015
Assurance,Assurance,Printing-Contract,40000946,OFFICE DEPOT UK LTD,64.37,05/08/2015
Assurance,Assurance,Rents,60028881,ARTS DEPOT PRODUCTIONS LTD,"1,598.50",11/08/2015
Assurance,Assurance,Software Licences & Support,60027713,INTEC FOR BUSINESS LIMITED,930.15,04/08/2015
Assurance,Assurance,Stationery,40000972,OFFICE DEPOT UK LTD,98.61,12/08/2015
Assurance,Assurance,Stationery,40000973,OFFICE DEPOT UK LTD,131.48,12/08/2015
Assurance,Assurance,Stationery,40000974,OFFICE DEPOT UK LTD,131.48,12/08/2015
Assurance,Assurance,Stationery,40000975,OFFICE DEPOT UK LTD,131.48,12/08/2015
Assurance,Assurance,Stationery,40000976,OFFICE DEPOT UK LTD,32.87,18/08/2015
Assurance,Assurance,Stationery,40000989,OFFICE DEPOT UK LTD,10.38,27/08/2015
Assurance,Assurance,Stationery,40000991,OFFICE DEPOT UK LTD,102.94,26/08/2015
Assurance,Assurance,Subscriptions,60029273,COMPANIES HOUSE,7.00,17/08/2015
Assurance,Assurance,Training,60024176,CHARTERED INST. INTERNAL AUDITORS,"1,310.00",04/08/2015
Assurance,Assurance,Ttl IT & Comms,60028996,BRITISH TELECOMMUNICATIONS PLC,"6,547.52",12/08/2015
Central Expenses,Central Expenses,Audit Fee,60030136,GRANT THORNTON UK LLP,"57,325.00",26/08/2015
Central Expenses,Central Expenses,Grant Payments,60026908,TRANSPORT FOR LONDON,"108,504.70",11/08/2015
Central Expenses,Central Expenses,Insurance Claims,20023106,ACCIDENT EXCHANGE LTD,"4,305.68",26/08/2015
Central Expenses,Central Expenses,Insurance Claims,20022865,ADMIRAL INSURANCE,"2,207.88",11/08/2015
Central Expenses,Central Expenses,Insurance Claims,20022953,ADMIRAL INSURANCE,880.00,21/08/2015
Central Expenses,Central Expenses,Insurance Claims,20022580,ADVANTAGE SOLICITORS,"5,990.00",03/08/2015
Central Expenses,Central Expenses,Insurance Claims,20023107,ALLIANZ INSURANCE PLC,"1,397.00",26/08/2015
Central Expenses,Central Expenses,Insurance Claims,20022866,BAKERS SOLICITORS,"2,170.00",11/08/2015
Central Expenses,Central Expenses,Insurance Claims,20022954,CLAIM TODAY SOLICITORS,"1,880.88",21/08/2015
Central Expenses,Central Expenses,Insurance Claims,20022926,CLCH NHS TRUST,10.00,21/08/2015
Central Expenses,Central Expenses,Insurance Claims,20023100,CLCH NHS TRUST,10.00,26/08/2015
Central Expenses,Central Expenses,Insurance Claims,20022619,CRICKLEWOOD CARRIERS CAB CO LTD,290.40,04/08/2015
Central Expenses,Central Expenses,Insurance Claims,20022622,DEPARTMENT FOR WORK & PENSIONS,627.00,04/08/2015
Central Expenses,Central Expenses,Insurance Claims,20022803,DEPARTMENT FOR WORK & PENSIONS,637.00,07/08/2015
Central Expenses,Central Expenses,Insurance Claims,20022923,DEPARTMENT FOR WORK & PENSIONS,637.00,14/08/2015
Central Expenses,Central Expenses,Insurance Claims,20023102,DEPARTMENT FOR WORK + PENSIONS,627.00,28/08/2015
Central Expenses,Central Expenses,Insurance Claims,20022955,DEPARTMENT FOR WORK AND PENSIONS,975.00,21/08/2015
Central Expenses,Central Expenses,Insurance Claims,20023101,DEPARTMENT FOR WORK AND PENSIONS,647.00,28/08/2015
Central Expenses,Central Expenses,Insurance Claims,20022621,FINCHLEY CATHOLIC HIGH SCHOOL,"4,077.64",04/08/2015
Central Expenses,Central Expenses,Insurance Claims,20022640,GOODGE LAW SOLICITORS,"1,601.35",04/08/2015
Central Expenses,Central Expenses,Insurance Claims,20022863,LIVERPOOL VICTORIA,"2,070.39",11/08/2015
Central Expenses,Central Expenses,Insurance Claims,20023105,LUBAVITCH OF EDGWARE,250.00,26/08/2015
Central Expenses,Central Expenses,Insurance Claims,20023104,QUINDELL BUSINESS PROCESS SERVICES,"1,889.28",26/08/2015
Central Expenses,Central Expenses,Insurance Claims,20022925,ROYAL FREE LONDON NHS TRUST,25.00,21/08/2015
Central Expenses,Central Expenses,Insurance Claims,20022850,SETH LAW LTD,"2,214.00",11/08/2015
Central Expenses,Central Expenses,Insurance Claims,20023028,SHEPHERD HARRIS & CO SOLICITORS,"2,750.00",21/08/2015
Central Expenses,Central Expenses,Insurance Claims,20022592,SIMONS LEVINE  & CO CLIENTS SOLS RESERVE,"1,215.00",03/08/2015
Central Expenses,Central Expenses,Joint Authorities - Third Part,60028395,LONDON BOROUGH OF HARINGEY,"63,448.25",11/08/2015
Central Expenses,Central Expenses,Joint Authorities - Third Part,EBX0076880,NORTH LONDON WASTE AUTHORITY,"894,643.00",27/08/2015
Central Expenses,Central Expenses,Other Establishments - Third P,EBX0073905,LEE VALLEY REGIONAL PARK AUTH.,"33,052.02",12/08/2015
Central Expenses,Central Expenses,Other Establishments - Third P,EBX0076440,TRANSPORT TRADING LIMITED,"3,754,156.00",26/08/2015
Central Expenses,Central Expenses,Pensions To Retired Employees,60028533,LONDON PENSIONS FUND AUTHORITY,"2,870.08",10/08/2015
Commercial,Births Deaths & Marriages,Contract Cleaning,60028560,CHURCHILL CONTRACT SERVICES,607.85,27/08/2015
Commercial,Customer Support Group,Books-CDs-Audio-Video,60027381,SM ELECTRICAL SERVICES,135.00,05/08/2015
Commercial,Customer Support Group,Building Cleaning Recharge,60028547,CHURCHILL CONTRACT SERVICES,644.40,27/08/2015
Commercial,Customer Support Group,Building Repairs & Maintenance,60029395,BRITISH GAS BUSINESS(ELEC),30.85,19/08/2015
Commercial,Customer Support Group,Building Repairs & Maintenance,60029821,DORMA UK LTD,695.83,21/08/2015
Commercial,Customer Support Group,Building Repairs & Maintenance,10006742,HERTFORDSHIRE SUPPLIES   COUNTY CO,83.94,27/08/2015
Commercial,Customer Support Group,Building Repairs & Maintenance,60029940,KIRKMAN & JOURDAIN LTD,"1,149.09",27/08/2015
Commercial,Customer Support Group,Building Repairs & Maintenance,60027392,LEE SECURITY LONDON LIMITED,224.50,19/08/2015
Commercial,Customer Support Group,Building Repairs & Maintenance,60027813,LEE SECURITY LONDON LIMITED,137.82,21/08/2015
Commercial,Customer Support Group,Building Repairs & Maintenance,60026448,LIFT & ENGINEERING SERVICES LTD,87.00,05/08/2015
Commercial,Customer Support Group,Building Repairs & Maintenance,60026696,LIFT & ENGINEERING SERVICES LTD,116.00,07/08/2015
Commercial,Customer Support Group,Building Repairs & Maintenance,60026785,LIFT & ENGINEERING SERVICES LTD,174.00,07/08/2015
Commercial,Customer Support Group,Building Repairs & Maintenance,60027125,LIFT & ENGINEERING SERVICES LTD,87.00,12/08/2015
Commercial,Customer Support Group,Building Repairs & Maintenance,60027163,LIFT & ENGINEERING SERVICES LTD,116.00,12/08/2015
Commercial,Customer Support Group,Building Repairs & Maintenance,60027273,LIFT & ENGINEERING SERVICES LTD,174.00,18/08/2015
Commercial,Customer Support Group,Building Repairs & Maintenance,60027780,LIFT & ENGINEERING SERVICES LTD,194.00,19/08/2015
Commercial,Customer Support Group,Building Repairs & Maintenance,10012585,RGE SERVICES,52.25,28/08/2015
Commercial,Customer Support Group,Building Repairs & Maintenance,60026417,RGE SERVICES,62.00,07/08/2015
Commercial,Customer Support Group,Building Repairs & Maintenance,60026437,RGE SERVICES,114.20,07/08/2015
Commercial,Customer Support Group,Building Repairs & Maintenance,60026439,RGE SERVICES,186.00,07/08/2015
Commercial,Customer Support Group,Building Repairs & Maintenance,60026496,RGE SERVICES,119.01,07/08/2015
Commercial,Customer Support Group,Building Repairs & Maintenance,60026521,RGE SERVICES,132.99,07/08/2015
Commercial,Customer Support Group,Building Repairs & Maintenance,60026723,RGE SERVICES,62.00,11/08/2015
Commercial,Customer Support Group,Building Repairs & Maintenance,60026725,RGE SERVICES,62.00,12/08/2015
Commercial,Customer Support Group,Building Repairs & Maintenance,60027167,RGE SERVICES,71.25,19/08/2015
Commercial,Customer Support Group,Building Repairs & Maintenance,60027174,RGE SERVICES,125.40,19/08/2015
Commercial,Customer Support Group,Building Repairs & Maintenance,60027183,RGE SERVICES,137.75,19/08/2015
Commercial,Customer Support Group,Building Repairs & Maintenance,60027184,RGE SERVICES,52.25,19/08/2015
Commercial,Customer Support Group,Building Repairs & Maintenance,60027190,RGE SERVICES,52.25,19/08/2015
Commercial,Customer Support Group,Building Repairs & Maintenance,60027191,RGE SERVICES,128.25,19/08/2015
Commercial,Customer Support Group,Building Repairs & Maintenance,60027199,RGE SERVICES,52.25,19/08/2015
Commercial,Customer Support Group,Building Repairs & Maintenance,60027202,RGE SERVICES,99.75,19/08/2015
Commercial,Customer Support Group,Building Repairs & Maintenance,60027203,RGE SERVICES,28.50,19/08/2015
Commercial,Customer Support Group,Building Repairs & Maintenance,60027206,RGE SERVICES,71.25,19/08/2015
Commercial,Customer Support Group,Building Repairs & Maintenance,60027208,RGE SERVICES,28.50,19/08/2015
Commercial,Customer Support Group,Building Repairs & Maintenance,60027226,RGE SERVICES,95.00,19/08/2015
Commercial,Customer Support Group,Building Repairs & Maintenance,60027233,RGE SERVICES,52.25,19/08/2015
Commercial,Customer Support Group,Building Repairs & Maintenance,60027239,RGE SERVICES,52.25,19/08/2015
Commercial,Customer Support Group,Building Repairs & Maintenance,60027529,RGE SERVICES,79.48,21/08/2015
Commercial,Customer Support Group,Building Repairs & Maintenance,60027590,RGE SERVICES,71.88,21/08/2015
Commercial,Customer Support Group,Building Repairs & Maintenance,60027591,RGE SERVICES,91.40,21/08/2015
Commercial,Customer Support Group,Building Repairs & Maintenance,60027614,RGE SERVICES,124.00,26/08/2015
Commercial,Customer Support Group,Building Repairs & Maintenance,60027682,RGE SERVICES,139.67,21/08/2015
Commercial,Customer Support Group,Building Repairs & Maintenance,60027954,RGE SERVICES,59.63,26/08/2015
Commercial,Customer Support Group,Building Repairs & Maintenance,60026697,S W BRUCE & CO LTD,"1,322.50",11/08/2015
Commercial,Customer Support Group,Building Repairs & Maintenance,60026718,S W BRUCE & CO LTD,"2,275.00",11/08/2015
Commercial,Customer Support Group,Building Repairs & Maintenance,60026783,S W BRUCE & CO LTD,145.76,11/08/2015
Commercial,Customer Support Group,Building Repairs & Maintenance,60026838,S W BRUCE & CO LTD,252.50,11/08/2015
Commercial,Customer Support Group,Building Repairs & Maintenance,60026862,S W BRUCE & CO LTD,300.00,11/08/2015
Commercial,Customer Support Group,Building Repairs & Maintenance,60028131,S W BRUCE & CO LTD,112.13,12/08/2015
Commercial,Customer Support Group,Building Repairs & Maintenance,60028141,S W BRUCE & CO LTD,350.00,12/08/2015
Commercial,Customer Support Group,Building Repairs & Maintenance,60029311,S W BRUCE & CO LTD,92.98,17/08/2015
Commercial,Customer Support Group,Building Repairs & Maintenance,60027611,SECOM PLC,104.00,04/08/2015
Commercial,Customer Support Group,Cleaning and domestic material,60030132,CHURCHILL CONTRACT SERVICES,640.00,26/08/2015
Commercial,Customer Support Group,Cleaning and domestic material,10006743,HERTFORDSHIRE SUPPLIES   COUNTY CO,216.00,27/08/2015
Commercial,Customer Support Group,Consultants Fees,60029219,KPMG FEES ACCOUNT,875.00,17/08/2015
Commercial,Customer Support Group,Consultants Fees,60026744,S W BRUCE & CO LTD,300.00,11/08/2015
Commercial,Customer Support Group,Contract Cleaning,60018558,CHURCHILL CONTRACT SERVICES,286.43,27/08/2015
Commercial,Customer Support Group,Contract Cleaning,60026115,CHURCHILL CONTRACT SERVICES,647.01,27/08/2015
Commercial,Customer Support Group,Contract Cleaning,60028434,CHURCHILL CONTRACT SERVICES,"1,103.65",27/08/2015
Commercial,Customer Support Group,Contract Cleaning,60028455,CHURCHILL CONTRACT SERVICES,598.72,27/08/2015
Commercial,Customer Support Group,Contract Cleaning,60028464,CHURCHILL CONTRACT SERVICES,"3,458.58",27/08/2015
Commercial,Customer Support Group,Contract Cleaning,60028517,CHURCHILL CONTRACT SERVICES,"8,132.77",27/08/2015
Commercial,Customer Support Group,Contract Cleaning,60028561,CHURCHILL CONTRACT SERVICES,"7,809.56",27/08/2015
Commercial,Customer Support Group,CSG Services Contract Payment,10012574,CAPITA BUSINESS SERVICES LTD,"36,372.29",05/08/2015
Commercial,Customer Support Group,CSG Services Contract Payment,10012615,CAPITA BUSINESS SERVICES LTD,"1,122,530.32",27/08/2015
Commercial,Customer Support Group,CSG Services Contract Payment,10012616,CAPITA BUSINESS SERVICES LTD,"135,596.19",27/08/2015
Commercial,Customer Support Group,CSG Services Contract Payment,60028119,CAPITA BUSINESS SERVICES LTD,"55,858.28",04/08/2015
Commercial,Customer Support Group,CSG Services Contract Payment,60028168,CAPITA BUSINESS SERVICES LTD,"12,900.00",05/08/2015
Commercial,Customer Support Group,CSG Services Contract Payment,60028208,CAPITA BUSINESS SERVICES LTD,"11,875.15",07/08/2015
Commercial,Customer Support Group,Electricity,60027577,KENT COUNTY COUNCIL (KCS),"1,172.82",04/08/2015
Commercial,Customer Support Group,Electricity,60028297,KENT COUNTY COUNCIL (KCS),738.99,05/08/2015
Commercial,Customer Support Group,Electricity,60029979,KENT COUNTY COUNCIL (KCS),"5,898.22",27/08/2015
Commercial,Customer Support Group,Electricity,60030115,KENT COUNTY COUNCIL (KCS),"4,854.98",27/08/2015
Commercial,Customer Support Group,Equipment and Materials Purcha,60026809,HSM (UK) LTD.,292.50,07/08/2015
Commercial,Customer Support Group,Gas,10012590,KENT COUNTY COUNCIL (KCS),79.87,04/08/2015
Commercial,Customer Support Group,Gas,10012591,KENT COUNTY COUNCIL (KCS),125.92,04/08/2015
Commercial,Customer Support Group,Gas,60027515,KENT COUNTY COUNCIL (KCS),"3,440.80",03/08/2015
Commercial,Customer Support Group,Gas,60027540,KENT COUNTY COUNCIL (KCS),79.90,03/08/2015
Commercial,Customer Support Group,Gas,60027690,KENT COUNTY COUNCIL (KCS),454.27,03/08/2015
Commercial,Customer Support Group,Gas,60027699,KENT COUNTY COUNCIL (KCS),"1,359.95",03/08/2015
Commercial,Customer Support Group,Operational Leases - Equipment,60029794,ROYAL MAIL GROUP LIMITED,"8,841.62",21/08/2015
Commercial,Customer Support Group,Operational Leases - Equipment,60023736,XEROX FINANCE LTD,"4,298.00",10/08/2015
Commercial,Customer Support Group,Other Services,60028291,BLUE 9 SECURITY LIMITED,"21,204.00",07/08/2015
Commercial,Customer Support Group,Other Services,60028320,BLUE 9 SECURITY LIMITED,"16,222.38",12/08/2015
Commercial,Customer Support Group,Other Services,60028331,BLUE 9 SECURITY LIMITED,50.00,07/08/2015
Commercial,Customer Support Group,Other Services,60028354,BLUE 9 SECURITY LIMITED,"1,022.25",07/08/2015
Commercial,Customer Support Group,Other Services,60028371,BLUE 9 SECURITY LIMITED,"1,905.00",07/08/2015
Commercial,Customer Support Group,Other Services,60028393,BLUE 9 SECURITY LIMITED,187.50,07/08/2015
Commercial,Customer Support Group,Other Services,60028396,BLUE 9 SECURITY LIMITED,58.00,07/08/2015
Commercial,Customer Support Group,Postage,60029881,ROYAL MAIL GROUP LIMITED,"6,465.55",21/08/2015
Commercial,Customer Support Group,Printing-Contract,20022924,ENTERPRISE STATIONERY LIMITED,823.20,18/08/2015
Commercial,Customer Support Group,Professional Services,60028080,ROSSENDALES (COLLECT) LTD,412.74,04/08/2015
Commercial,Customer Support Group,Professional Services,60028093,ROSSENDALES (COLLECT) LTD,474.44,04/08/2015
Commercial,Customer Support Group,Professional Services,60028099,ROSSENDALES (COLLECT) LTD,916.53,21/08/2015
Commercial,Customer Support Group,Professional Services,60028104,ROSSENDALES (COLLECT) LTD,"1,164.55",04/08/2015
Commercial,Customer Support Group,Professional Services,60028107,ROSSENDALES (COLLECT) LTD,528.96,04/08/2015
Commercial,Customer Support Group,Water Services,60027587,ANGEL SPRINGS LTD,15.50,06/08/2015
Commercial,Customer Support Group,Water Services,60029985,ANGEL SPRINGS LTD,404.00,27/08/2015
Commercial,Customer Support Group,Water Services,60030008,ANGEL SPRINGS LTD,410.00,27/08/2015
Commercial,Customer Support Group,Water Services,60030043,ANGEL SPRINGS LTD,228.00,26/08/2015
Commercial,Customer Support Group,Water Services,60030050,ANGEL SPRINGS LTD,70.00,26/08/2015
Commercial,Customer Support Group,Water Services,60030061,ANGEL SPRINGS LTD,105.00,26/08/2015
Commercial,HRA,Consultants Fees,60026564,PRIORITY ESTATES PROJECT LTD,"1,327.15",07/08/2015
Commercial,HRA,Consultants Fees,60027175,PRIORITY ESTATES PROJECT LTD,"3,790.15",07/08/2015
Commercial,HRA,Consultants Fees,60028714,TROWERS & HAMLINS,"1,032.00",10/08/2015
Commercial,HRA,Consultants Fees,60029072,TROWERS & HAMLINS,"2,775.00",12/08/2015
Commercial,HRA,Other Transfer Payments,20022759,REDACTED - PERSONAL DATA,199.99,10/08/2015
Commercial,HRA,Other Transfer Payments,20022760,REDACTED - PERSONAL DATA,420.00,10/08/2015
Commercial,Parking & Infrastructure,Advertising,60029198,TMP (UK) LTD,"1,530.00",25/08/2015
Commercial,Parking & Infrastructure,Equipment and Materials Purcha,60029123,ANGEL SPRINGS LTD,71.50,27/08/2015
Commercial,Parking & Infrastructure,Equipment and Materials Purcha,60027071,ASD METAL SERVICES,630.40,05/08/2015
Commercial,Parking & Infrastructure,Equipment and Materials Purcha,60029114,ASD METAL SERVICES,256.20,19/08/2015
Commercial,Parking & Infrastructure,Equipment and Materials Purcha,60029846,ASD METAL SERVICES,500.00,27/08/2015
Commercial,Parking & Infrastructure,Equipment and Materials Purcha,60026802,COBURN SERVICES LTD,"1,113.00",05/08/2015
Commercial,Parking & Infrastructure,Equipment and Materials Purcha,60027606,COBURN SERVICES LTD,886.80,12/08/2015
Commercial,Parking & Infrastructure,Equipment and Materials Purcha,60027613,COBURN SERVICES LTD,556.50,19/08/2015
Commercial,Parking & Infrastructure,Equipment and Materials Purcha,60028578,COBURN SERVICES LTD,556.50,26/08/2015
Commercial,Parking & Infrastructure,Equipment and Materials Purcha,60027305,LAFARGE TARMAC TRADING LIMITED,96.91,04/08/2015
Commercial,Parking & Infrastructure,Equipment and Materials Purcha,60027326,LAFARGE TARMAC TRADING LIMITED,162.73,07/08/2015
Commercial,Parking & Infrastructure,Equipment and Materials Purcha,60027331,LAFARGE TARMAC TRADING LIMITED,124.33,04/08/2015
Commercial,Parking & Infrastructure,Equipment and Materials Purcha,60027654,LAFARGE TARMAC TRADING LIMITED,117.02,07/08/2015
Commercial,Parking & Infrastructure,Equipment and Materials Purcha,60028442,LAFARGE TARMAC TRADING LIMITED,117.02,11/08/2015
Commercial,Parking & Infrastructure,Equipment and Materials Purcha,60028448,LAFARGE TARMAC TRADING LIMITED,111.53,12/08/2015
Commercial,Parking & Infrastructure,Equipment and Materials Purcha,60028454,LAFARGE TARMAC TRADING LIMITED,96.91,11/08/2015
Commercial,Parking & Infrastructure,Equipment and Materials Purcha,60028463,LAFARGE TARMAC TRADING LIMITED,89.59,12/08/2015
Commercial,Parking & Infrastructure,Equipment and Materials Purcha,60028596,LAFARGE TARMAC TRADING LIMITED,89.59,12/08/2015
Commercial,Parking & Infrastructure,Equipment and Materials Purcha,60028601,LAFARGE TARMAC TRADING LIMITED,95.08,18/08/2015
Commercial,Parking & Infrastructure,Equipment and Materials Purcha,60028627,LAFARGE TARMAC TRADING LIMITED,93.25,21/08/2015
Commercial,Parking & Infrastructure,Equipment and Materials Purcha,60028658,LAFARGE TARMAC TRADING LIMITED,89.59,18/08/2015
Commercial,Parking & Infrastructure,Equipment and Materials Purcha,60029416,LAFARGE TARMAC TRADING LIMITED,96.91,25/08/2015
Commercial,Parking & Infrastructure,Equipment and Materials Purcha,60028278,RENNICK UK LTD,567.60,19/08/2015
Commercial,Parking & Infrastructure,Equipment and Materials Purcha,60028319,RENNICK UK LTD,378.40,05/08/2015
Commercial,Parking & Infrastructure,Equipment and Materials Purcha,60028549,RENNICK UK LTD,293.36,26/08/2015
Commercial,Parking & Infrastructure,Equipment and Materials Purcha,60027124,W. FAYERS & SONS,330.00,04/08/2015
Commercial,Parking & Infrastructure,Equipment and Materials Purcha,60027145,W. FAYERS & SONS,330.00,04/08/2015
Commercial,Parking & Infrastructure,Equipment and Materials Purcha,60028514,W. FAYERS & SONS,852.34,11/08/2015
Commercial,Parking & Infrastructure,Equipment and Materials Purcha,60029392,W. FAYERS & SONS,330.00,28/08/2015
Commercial,Parking & Infrastructure,Equipment and Materials Purcha,60030191,W. FAYERS & SONS,22.75,28/08/2015
Commercial,Parking & Infrastructure,Equipment and Materials Purcha,60028345,WM SMITH & SONS LIMITED,406.92,05/08/2015
Commercial,Parking & Infrastructure,General Office Expenses,40000978,OFFICE DEPOT UK LTD,5.25,21/08/2015
Commercial,Parking & Infrastructure,Miscellaneous Expenses,60027939,PARKEON LIMITED,"2,300.80",19/08/2015
Commercial,Parking & Infrastructure,Miscellaneous Expenses,60027949,PARKEON LIMITED,796.50,19/08/2015
Commercial,Parking & Infrastructure,Other Services,60027014,LONDON COUNCILS,"36,593.05",12/08/2015
Commercial,Parking & Infrastructure,Other Services,60028250,LONDON COUNCILS,"1,092.20",06/08/2015
Commercial,Parking & Infrastructure,Other Services,60029926,NSL LTD,661.20,25/08/2015
Commercial,Parking & Infrastructure,Other Services,10012588,PARKEON LIMITED,-796.50,19/08/2015
Commercial,Parking & Infrastructure,Professional Services,60027925,NSL LTD,382.50,04/08/2015
Commercial,Parking & Infrastructure,Professional Services,60027934,NSL LTD,"16,559.28",04/08/2015
Commercial,Parking & Infrastructure,Professional Services,60028818,NSL LTD,"218,032.31",12/08/2015
Commercial,Parking & Infrastructure,Professional Services,60029959,NSL LTD,246.00,25/08/2015
Commercial,Parking & Infrastructure,Professional Services,60029960,NSL LTD,"64,646.75",25/08/2015
Commercial,Parking & Infrastructure,Software Licences & Support,60029934,NSL LTD,"4,770.07",25/08/2015
Commercial,Parking & Infrastructure,Software Licences & Support,60029948,NSL LTD,"33,163.35",26/08/2015
Commercial,Regional Enterprise,Advertising,60028189,TMP (UK) LTD,46.33,04/08/2015
Commercial,Regional Enterprise,Advertising,60028193,TMP (UK) LTD,126.33,10/08/2015
Commercial,Regional Enterprise,Advertising,60028196,TMP (UK) LTD,32.08,05/08/2015
Commercial,Regional Enterprise,Advertising,60028207,TMP (UK) LTD,32.08,05/08/2015
Commercial,Regional Enterprise,Advertising,60028209,TMP (UK) LTD,396.92,04/08/2015
Commercial,Regional Enterprise,Advertising,60028213,TMP (UK) LTD,112.08,05/08/2015
Commercial,Regional Enterprise,Advertising,60028219,TMP (UK) LTD,32.08,05/08/2015
Commercial,Regional Enterprise,Advertising,60028230,TMP (UK) LTD,129.10,04/08/2015
Commercial,Regional Enterprise,Advertising,60028240,TMP (UK) LTD,112.08,05/08/2015
Commercial,Regional Enterprise,Advertising,60028244,TMP (UK) LTD,49.90,05/08/2015
Commercial,Regional Enterprise,Advertising,60028259,TMP (UK) LTD,129.10,04/08/2015
Commercial,Regional Enterprise,Advertising,60028263,TMP (UK) LTD,112.08,05/08/2015
Commercial,Regional Enterprise,Advertising,60028267,TMP (UK) LTD,112.08,05/08/2015
Commercial,Regional Enterprise,Advertising,60028268,TMP (UK) LTD,32.08,05/08/2015
Commercial,Regional Enterprise,Advertising,60028269,TMP (UK) LTD,129.90,05/08/2015
Commercial,Regional Enterprise,Consultants Fees,60030173,AGROSTIS TURF CONSULTANCY LTD,350.00,26/08/2015
Commercial,Regional Enterprise,Consultants Fees,60026668,SAPIENS CONSULTANCY,"2,700.00",07/08/2015
Commercial,Regional Enterprise,Consultants Fees,60027938,SAPIENS CONSULTANCY,"2,718.00",25/08/2015
Commercial,Regional Enterprise,Contract Cleaning,60028462,CHURCHILL CONTRACT SERVICES,475.72,27/08/2015
Commercial,Regional Enterprise,Grant Payments,20022769,AMWELL CONSTRUCTION LTD,"6,209.53",10/08/2015
Commercial,Regional Enterprise,Grant Payments,20022770,AMWELL CONSTRUCTION LTD,"10,372.20",10/08/2015
Commercial,Regional Enterprise,Grant Payments,20023034,ARTHUR J. FERRYMAN ASSOCIATES,240.00,21/08/2015
Commercial,Regional Enterprise,Grant Payments,20023067,ARTHUR J. FERRYMAN ASSOCIATES,563.04,24/08/2015
Commercial,Regional Enterprise,Grant Payments,20023094,ARTHUR J. FERRYMAN ASSOCIATES,"1,563.60",25/08/2015
Commercial,Regional Enterprise,Grant Payments,20023152,ARTHUR J. FERRYMAN ASSOCIATES,115.30,28/08/2015
Commercial,Regional Enterprise,Grant Payments,20023153,ARTHUR J. FERRYMAN ASSOCIATES,576.50,28/08/2015
Commercial,Regional Enterprise,Grant Payments,20022870,CAPITAL  LOCKSMITHS,384.00,12/08/2015
Commercial,Regional Enterprise,Grant Payments,20022871,CAPITAL  LOCKSMITHS,146.40,12/08/2015
Commercial,Regional Enterprise,Grant Payments,20022872,CAPITAL  LOCKSMITHS,210.00,12/08/2015
Commercial,Regional Enterprise,Grant Payments,20023108,DOLPHIN MOBILITY LTD.,"2,785.00",26/08/2015
Commercial,Regional Enterprise,Grant Payments,20022796,DP BUILDERS DISABLED ADAPTATIONS,"4,798.00",10/08/2015
Commercial,Regional Enterprise,Grant Payments,20023045,DP BUILDERS DISABLED ADAPTATIONS,240.00,24/08/2015
Commercial,Regional Enterprise,Grant Payments,20022848,ESK BUILDERS LTD,"5,000.00",19/08/2015
Commercial,Regional Enterprise,Grant Payments,20023134,ESK BUILDERS LTD,"7,000.00",27/08/2015
Commercial,Regional Enterprise,Grant Payments,20023171,GHYLLSIDE HEALTHCARE,"3,671.00",28/08/2015
Commercial,Regional Enterprise,Grant Payments,20022794,H D PROPERTY SERVICES LTD,"4,532.00",10/08/2015
Commercial,Regional Enterprise,Grant Payments,20023033,H D PROPERTY SERVICES LTD,"5,528.00",21/08/2015
Commercial,Regional Enterprise,Grant Payments,20023142,H D PROPERTY SERVICES LTD,"5,013.00",27/08/2015
Commercial,Regional Enterprise,Grant Payments,20022846,MASTERTEK LTD,"3,255.00",11/08/2015
Commercial,Regional Enterprise,Grant Payments,20023052,MCP PROPERTY SERVICES LTD,"5,760.00",24/08/2015
Commercial,Regional Enterprise,Grant Payments,20023145,MCP PROPERTY SERVICES LTD,"3,412.50",27/08/2015
Commercial,Regional Enterprise,Grant Payments,20023069,MNM PROJECTS (LONDON) LTD,"4,800.00",21/08/2015
Commercial,Regional Enterprise,Grant Payments,20022687,REDACTED - PERSONAL DATA,"5,580.00",06/08/2015
Commercial,Regional Enterprise,Grant Payments,20022758,REDACTED - PERSONAL DATA,"8,600.00",07/08/2015
Commercial,Regional Enterprise,Grant Payments,20022793,REDACTED - PERSONAL DATA,"3,197.00",07/08/2015
Commercial,Regional Enterprise,Grant Payments,20022847,REDACTED - PERSONAL DATA,444.00,19/08/2015
Commercial,Regional Enterprise,Grant Payments,20022996,REDACTED - PERSONAL DATA,"5,837.00",19/08/2015
Commercial,Regional Enterprise,Grant Payments,20023030,REDACTED - PERSONAL DATA,"1,000.00",21/08/2015
Commercial,Regional Enterprise,Grant Payments,20023046,REDACTED - PERSONAL DATA,"2,520.00",24/08/2015
Commercial,Regional Enterprise,Grant Payments,20023051,REDACTED - PERSONAL DATA,"2,520.00",24/08/2015
Commercial,Regional Enterprise,Grant Payments,20023054,REDACTED - PERSONAL DATA,"2,992.50",24/08/2015
Commercial,Regional Enterprise,Grant Payments,20023133,REDACTED - PERSONAL DATA,"2,000.00",27/08/2015
Commercial,Regional Enterprise,Grant Payments,20022929,REINHOLD DEVELOPMENT SERVICES LTD,"16,800.00",21/08/2015
Commercial,Regional Enterprise,Grant Payments,20022884,SOUTH HERTFORDSHIRE,"5,762.00",18/08/2015
Commercial,Regional Enterprise,Grant Payments,20023029,SOUTH HERTFORDSHIRE,"9,660.00",21/08/2015
Commercial,Regional Enterprise,Grant Payments,20023095,SOUTH HERTFORDSHIRE,"5,283.00",25/08/2015
Commercial,Regional Enterprise,Grant Payments,20023109,SOUTH HERTFORDSHIRE,"6,237.00",26/08/2015
Commercial,Regional Enterprise,Grant Payments,20023110,SOUTH HERTFORDSHIRE,"5,998.00",26/08/2015
Commercial,Regional Enterprise,Grant Payments,20023032,STANNAH STAIRLIFTS LTD,"6,104.00",21/08/2015
Commercial,Regional Enterprise,Grant Payments,20023096,STANNAH STAIRLIFTS LTD,"14,625.00",25/08/2015
Commercial,Regional Enterprise,Grant Payments,20023097,STANNAH STAIRLIFTS LTD,"4,377.00",25/08/2015
Commercial,Regional Enterprise,Grant Payments,20022883,WESSEX LIFT CO. LTD,"5,418.00",18/08/2015
Commercial,Regional Enterprise,Legal and Court Fees,60029826,LOCAL GOVERNMENT ASSOCIATION,"1,852.24",21/08/2015
Commercial,Regional Enterprise,Miscellaneous Expenses,60029930,NSL LTD,"41,250.00",25/08/2015
Commercial,Regional Enterprise,Other Services,60022304,ANGLIA SIGN CASTING COMPANY,49.66,42222
Commercial,Regional Enterprise,Other Services,60028238,CITY OF LONDON,"7,388.00",05/08/2015
Commercial,Regional Enterprise,Other Services,60023291,CONWAY AECOM LTD,"24,633.64",07/08/2015
Commercial,Regional Enterprise,Other Services,60025923,CONWAY AECOM LTD,"22,000.00",07/08/2015
Commercial,Regional Enterprise,Other Services,60026326,CONWAY AECOM LTD,23500,42223
Commercial,Regional Enterprise,Other Services,60027243,CONWAY AECOM LTD,"45,000.00",07/08/2015
Commercial,Regional Enterprise,Other Services,60027249,CONWAY AECOM LTD,4482.86,42221
Commercial,Regional Enterprise,Other Services,60027262,CONWAY AECOM LTD,57378.04,42220
Commercial,Regional Enterprise,Other Services,60027266,CONWAY AECOM LTD,2886.84,42237
Commercial,Regional Enterprise,Other Services,60027278,CONWAY AECOM LTD,"21,100.00",07/08/2015
Commercial,Regional Enterprise,Other Services,60027280,CONWAY AECOM LTD,21677.92,42235
Commercial,Regional Enterprise,Other Services,60027281,CONWAY AECOM LTD,"87,700.00",07/08/2015
Commercial,Regional Enterprise,Other Services,60027286,CONWAY AECOM LTD,"46,500.00",07/08/2015
Commercial,Regional Enterprise,Other Services,60027287,CONWAY AECOM LTD,"18,200.00",07/08/2015
Commercial,Regional Enterprise,Other Services,60027294,CONWAY AECOM LTD,39418.79,42235
Commercial,Regional Enterprise,Other Services,60027298,CONWAY AECOM LTD,2572.34,42223
Commercial,Regional Enterprise,Other Services,60027307,CONWAY AECOM LTD,"27,000.00",07/08/2015
Commercial,Regional Enterprise,Other Services,60027309,CONWAY AECOM LTD,"7,600.00",07/08/2015
Commercial,Regional Enterprise,Other Services,60027330,CONWAY AECOM LTD,"123,500.00",07/08/2015
Commercial,Regional Enterprise,Other Services,60027337,CONWAY AECOM LTD,65043.95,42235
Commercial,Regional Enterprise,Other Services,60027340,CONWAY AECOM LTD,4427.28,42223
Commercial,Regional Enterprise,Other Services,60027343,CONWAY AECOM LTD,"17,372.00",07/08/2015
Commercial,Regional Enterprise,Other Services,60027346,CONWAY AECOM LTD,"2,000.00",07/08/2015
Commercial,Regional Enterprise,Other Services,60027352,CONWAY AECOM LTD,278.52,42228
Commercial,Regional Enterprise,Other Services,60027363,CONWAY AECOM LTD,1569.84,42228
Commercial,Regional Enterprise,Other Services,60027368,CONWAY AECOM LTD,2348.43,42228
Commercial,Regional Enterprise,Other Services,60027371,CONWAY AECOM LTD,1097.2,42228
Commercial,Regional Enterprise,Other Services,60027373,CONWAY AECOM LTD,664.65,42228
Commercial,Regional Enterprise,Other Services,60027377,CONWAY AECOM LTD,816.57,42228
Commercial,Regional Enterprise,Other Services,60027410,CONWAY AECOM LTD,664.65,42228
Commercial,Regional Enterprise,Other Services,60027426,CONWAY AECOM LTD,1124.82,42228
Commercial,Regional Enterprise,Other Services,60027436,CONWAY AECOM LTD,1164.72,42228
Commercial,Regional Enterprise,Other Services,60027441,CONWAY AECOM LTD,1196.37,42228
Commercial,Regional Enterprise,Other Services,60027449,CONWAY AECOM LTD,1240.68,42228
Commercial,Regional Enterprise,Other Services,60027451,CONWAY AECOM LTD,892.53,42228
Commercial,Regional Enterprise,Other Services,60027457,CONWAY AECOM LTD,633,42228
Commercial,Regional Enterprise,Other Services,60027458,CONWAY AECOM LTD,930.51,42228
Commercial,Regional Enterprise,Other Services,60027462,CONWAY AECOM LTD,531.72,42228
Commercial,Regional Enterprise,Other Services,60027468,CONWAY AECOM LTD,569.7,42228
Commercial,Regional Enterprise,Other Services,60027470,CONWAY AECOM LTD,1012.8,42228
Commercial,Regional Enterprise,Other Services,60027473,CONWAY AECOM LTD,607.68,42228
Commercial,Regional Enterprise,Other Services,60027488,CONWAY AECOM LTD,801.8,42228
Commercial,Regional Enterprise,Other Services,60027498,CONWAY AECOM LTD,1417.92,42228
Commercial,Regional Enterprise,Other Services,60027499,CONWAY AECOM LTD,702.63,42228
Commercial,Regional Enterprise,Other Services,60027504,CONWAY AECOM LTD,1139.4,42228
Commercial,Regional Enterprise,Other Services,60027509,CONWAY AECOM LTD,1114.08,42228
Commercial,Regional Enterprise,Other Services,60027517,CONWAY AECOM LTD,911.52,42228
Commercial,Regional Enterprise,Other Services,60027521,CONWAY AECOM LTD,1063.44,42228
Commercial,Regional Enterprise,Other Services,60027522,CONWAY AECOM LTD,886.2,42228
Commercial,Regional Enterprise,Other Services,60027530,CONWAY AECOM LTD,1088.76,42228
Commercial,Regional Enterprise,Other Services,60027537,CONWAY AECOM LTD,474.75,42228
Commercial,Regional Enterprise,Other Services,60027545,CONWAY AECOM LTD,506.4,42228
Commercial,Regional Enterprise,Other Services,60027562,CONWAY AECOM LTD,455.76,42228
Commercial,Regional Enterprise,Other Services,60027570,CONWAY AECOM LTD,1677.45,42228
Commercial,Regional Enterprise,Other Services,60027579,CONWAY AECOM LTD,1006.47,42228
Commercial,Regional Enterprise,Other Services,60027595,CONWAY AECOM LTD,759.6,42228
Commercial,Regional Enterprise,Other Services,60027597,CONWAY AECOM LTD,164.58,42228
Commercial,Regional Enterprise,Other Services,60027599,CONWAY AECOM LTD,569.7,42228
Commercial,Regional Enterprise,Other Services,60027609,CONWAY AECOM LTD,648.83,42228
Commercial,Regional Enterprise,Other Services,60027610,CONWAY AECOM LTD,664.65,42228
Commercial,Regional Enterprise,Other Services,60027616,CONWAY AECOM LTD,981.15,42228
Commercial,Regional Enterprise,Other Services,60027631,CONWAY AECOM LTD,962.16,42228
Commercial,Regional Enterprise,Other Services,60027634,CONWAY AECOM LTD,1044.45,42228
Commercial,Regional Enterprise,Other Services,60027641,CONWAY AECOM LTD,835.56,42228
Commercial,Regional Enterprise,Other Services,60027643,CONWAY AECOM LTD,1177.38,42228
Commercial,Regional Enterprise,Other Services,60027647,CONWAY AECOM LTD,633,42228
Commercial,Regional Enterprise,Other Services,60027653,CONWAY AECOM LTD,696.3,42228
Commercial,Regional Enterprise,Other Services,60027655,CONWAY AECOM LTD,1139.4,42228
Commercial,Regional Enterprise,Other Services,60027663,CONWAY AECOM LTD,400.9,42228
Commercial,Regional Enterprise,Other Services,60027669,CONWAY AECOM LTD,607.68,42228
Commercial,Regional Enterprise,Other Services,60027671,CONWAY AECOM LTD,582.36,42228
Commercial,Regional Enterprise,Other Services,60027674,CONWAY AECOM LTD,683.64,42228
Commercial,Regional Enterprise,Other Services,60027684,CONWAY AECOM LTD,1993.95,42228
Commercial,Regional Enterprise,Other Services,60027691,CONWAY AECOM LTD,658.32,42228
Commercial,Regional Enterprise,Other Services,60027693,CONWAY AECOM LTD,633,42228
Commercial,Regional Enterprise,Other Services,60027705,CONWAY AECOM LTD,67108.55,42228
Commercial,Regional Enterprise,Other Services,60027759,CONWAY AECOM LTD,7500,42235
Commercial,Regional Enterprise,Other Services,60027761,CONWAY AECOM LTD,"146,282.70",19/08/2015
Commercial,Regional Enterprise,Other Services,60027772,CONWAY AECOM LTD,45194.68,42228
Commercial,Regional Enterprise,Other Services,60027805,CONWAY AECOM LTD,607.68,42228
Commercial,Regional Enterprise,Other Services,60027855,CONWAY AECOM LTD,91629.88,42235
Commercial,Regional Enterprise,Other Services,60027869,CONWAY AECOM LTD,1891.22,42228
Commercial,Regional Enterprise,Other Services,60028109,CONWAY AECOM LTD,"68,234.63",19/08/2015
Commercial,Regional Enterprise,Other Services,60028114,CONWAY AECOM LTD,"51,524.13",03/08/2015
Commercial,Regional Enterprise,Other Services,60028116,CONWAY AECOM LTD,"90,097.18",03/08/2015
Commercial,Regional Enterprise,Other Services,60028144,CONWAY AECOM LTD,"31,097.87",19/08/2015
Commercial,Regional Enterprise,Other Services,60028149,CONWAY AECOM LTD,"41,007.38",03/08/2015
Commercial,Regional Enterprise,Other Services,60028158,CONWAY AECOM LTD,"13,434.38",19/08/2015
Commercial,Regional Enterprise,Other Services,60028170,CONWAY AECOM LTD,"59,366.25",03/08/2015
Commercial,Regional Enterprise,Other Services,60028673,CONWAY AECOM LTD,"5,891.01",21/08/2015
Commercial,Regional Enterprise,Other Services,60028675,CONWAY AECOM LTD,"12,114.45",21/08/2015
Commercial,Regional Enterprise,Other Services,60028679,CONWAY AECOM LTD,"21,542.73",21/08/2015
Commercial,Regional Enterprise,Other Services,60028681,CONWAY AECOM LTD,"35,902.45",21/08/2015
Commercial,Regional Enterprise,Other Services,60028682,CONWAY AECOM LTD,"20,896.37",21/08/2015
Commercial,Regional Enterprise,Other Services,60028687,CONWAY AECOM LTD,1660.35,42243
Commercial,Regional Enterprise,Other Services,60028693,CONWAY AECOM LTD,3105.18,42243
Commercial,Regional Enterprise,Other Services,60028695,CONWAY AECOM LTD,3403.09,42243
Commercial,Regional Enterprise,Other Services,60028696,CONWAY AECOM LTD,"95,080.94",21/08/2015
Commercial,Regional Enterprise,Other Services,60028699,CONWAY AECOM LTD,"14,227.17",21/08/2015
Commercial,Regional Enterprise,Other Services,60028708,CONWAY AECOM LTD,2916.22,42243
Commercial,Regional Enterprise,Other Services,60028710,CONWAY AECOM LTD,23500,42243
Commercial,Regional Enterprise,Other Services,60028712,CONWAY AECOM LTD,"7,564.05",21/08/2015
Commercial,Regional Enterprise,Other Services,60028713,CONWAY AECOM LTD,3446.87,42242
Commercial,Regional Enterprise,Other Services,60028715,CONWAY AECOM LTD,"100,000.00",27/08/2015
Commercial,Regional Enterprise,Other Services,60028722,CONWAY AECOM LTD,1389.1,42243
Commercial,Regional Enterprise,Other Services,60028723,CONWAY AECOM LTD,"11,696.17",21/08/2015
Commercial,Regional Enterprise,Other Services,60028728,CONWAY AECOM LTD,"16,319.25",21/08/2015
Commercial,Regional Enterprise,Other Services,60028746,CONWAY AECOM LTD,20655.2,42243
Commercial,Regional Enterprise,Other Services,60028747,CONWAY AECOM LTD,"11,218.45",21/08/2015
Commercial,Regional Enterprise,Other Services,60028749,CONWAY AECOM LTD,"21,660.97",21/08/2015
Commercial,Regional Enterprise,Other Services,60028750,CONWAY AECOM LTD,"23,294.81",21/08/2015
Commercial,Regional Enterprise,Other Services,60028759,CONWAY AECOM LTD,1304.79,42243
Commercial,Regional Enterprise,Other Services,60028760,CONWAY AECOM LTD,"7,160.85",21/08/2015
Commercial,Regional Enterprise,Other Services,60028764,CONWAY AECOM LTD,3739.27,42243
Commercial,Regional Enterprise,Other Services,60028771,CONWAY AECOM LTD,"18,676.21",21/08/2015
Commercial,Regional Enterprise,Other Services,60028773,CONWAY AECOM LTD,"11,835.05",21/08/2015
Commercial,Regional Enterprise,Other Services,60028785,CONWAY AECOM LTD,"27,127.41",21/08/2015
Commercial,Regional Enterprise,Other Services,60028796,CONWAY AECOM LTD,"4,568.85",21/08/2015
Commercial,Regional Enterprise,Other Services,60028803,CONWAY AECOM LTD,"14,572.73",21/08/2015
Commercial,Regional Enterprise,Other Services,60028806,CONWAY AECOM LTD,"5,271.33",21/08/2015
Commercial,Regional Enterprise,Other Services,60028808,CONWAY AECOM LTD,"4,286.09",21/08/2015
Commercial,Regional Enterprise,Other Services,60028814,CONWAY AECOM LTD,"5,042.45",21/08/2015
Commercial,Regional Enterprise,Other Services,60028822,CONWAY AECOM LTD,506.4,42228
Commercial,Regional Enterprise,Other Services,60028827,CONWAY AECOM LTD,"90,380.64",21/08/2015
Commercial,Regional Enterprise,Other Services,60028828,CONWAY AECOM LTD,"8,516.09",21/08/2015
Commercial,Regional Enterprise,Other Services,60028839,CONWAY AECOM LTD,"14,611.13",21/08/2015
Commercial,Regional Enterprise,Other Services,60028842,CONWAY AECOM LTD,"4,722.41",21/08/2015
Commercial,Regional Enterprise,Other Services,60028846,CONWAY AECOM LTD,"16,148.91",21/08/2015
Commercial,Regional Enterprise,Other Services,60028849,CONWAY AECOM LTD,"5,018.33",21/08/2015
Commercial,Regional Enterprise,Other Services,60028864,CONWAY AECOM LTD,"23,190.25",21/08/2015
Commercial,Regional Enterprise,Other Services,60028865,CONWAY AECOM LTD,"19,514.57",21/08/2015
Commercial,Regional Enterprise,Other Services,60028875,CONWAY AECOM LTD,"4,551.53",21/08/2015
Commercial,Regional Enterprise,Other Services,60028900,CONWAY AECOM LTD,"5,762.25",21/08/2015
Commercial,Regional Enterprise,Other Services,60028901,CONWAY AECOM LTD,"17,580.21",21/08/2015
Commercial,Regional Enterprise,Other Services,60028903,CONWAY AECOM LTD,"16,210.01",21/08/2015
Commercial,Regional Enterprise,Other Services,60028917,CONWAY AECOM LTD,"24,744.17",21/08/2015
Commercial,Regional Enterprise,Other Services,60028919,CONWAY AECOM LTD,"4,165.65",21/08/2015
Commercial,Regional Enterprise,Other Services,60028940,CONWAY AECOM LTD,"34,478.45",21/08/2015
Commercial,Regional Enterprise,Other Services,60028982,CONWAY AECOM LTD,1266.22,42242
Commercial,Regional Enterprise,Other Services,60029116,CONWAY AECOM LTD,"1,982.29",17/08/2015
Commercial,Regional Enterprise,Other Services,60029243,CONWAY AECOM LTD,"84,410.72",21/08/2015
Commercial,Regional Enterprise,Other Services,60028336,CYCLING INSTRUCTOR LTD,"1,600.00",12/08/2015
Commercial,Regional Enterprise,Other Services,60022797,KELTIC CLOTHING,25.90,03/08/2015
Commercial,Regional Enterprise,Other Services,60027652,KENT COUNTY COUNCIL (KCS),31.94,42220
Commercial,Regional Enterprise,Other Services,60028995,KENT COUNTY COUNCIL (KCS),76.01,42234
Commercial,Regional Enterprise,Other Services,60029013,KENT COUNTY COUNCIL (KCS),-43.33,42234
Commercial,Regional Enterprise,Other Services,10003941,REDCORN LTD,"1,320.00",27/08/2015
Commercial,Regional Enterprise,Other Services,60027015,STENNIK ADVERTISING LIMITED,295.00,03/08/2015
Commercial,Regional Enterprise,Other Transfer Payments,60029815,WATES LIVING SPACE,"1,030.25",21/08/2015
Commercial,Regional Enterprise,Other Transfer Payments,60029836,WATES LIVING SPACE,"2,603.57",21/08/2015
Commercial,Regional Enterprise,Other Transfer Payments,60029855,WATES LIVING SPACE,"3,863.36",21/08/2015
Commercial,Regional Enterprise,Other Transfer Payments,60029875,WATES LIVING SPACE,"3,779.38",21/08/2015
Commercial,Regional Enterprise,Professional Services,10012607,RE (REGIONAL ENTERPRISE) LIMITED,"626,721.26",18/08/2015
Commercial,Regional Enterprise,Publications,60029412,GOLD LEAF JEWELLERS,750.00,17/08/2015
Commercial,The Barnet Group,Legal and Court Fees,10012595,THE BARNETGROUP LIMITED,"30,000.00",06/08/2015
Commercial,The Barnet Group,Private Contractors - Third Pa,60029931,THE BARNETGROUP LIMITED,"1,603,294.96",25/08/2015
Commissioning,Commissioning,Agency/Interim Hays,10012586,CONSULTCIH (T/A CIH CONSULTANCY),"5,512.50",06/08/2015
Commissioning,Commissioning,Building Repairs & Maintenance,60028928,D LONG (CONSTRUCTION) LTD,349.00,12/08/2015
Commissioning,Commissioning,Building Repairs & Maintenance,60028451,OAKRAY LIMITED,64.00,26/08/2015
Commissioning,Commissioning,Building Repairs & Maintenance,60028461,OAKRAY LIMITED,64.00,26/08/2015
Commissioning,Commissioning,Building Repairs & Maintenance,60028468,OAKRAY LIMITED,64.00,26/08/2015
Commissioning,Commissioning,Building Repairs & Maintenance,60028469,OAKRAY LIMITED,56.00,26/08/2015
Commissioning,Commissioning,Building Repairs & Maintenance,60028473,OAKRAY LIMITED,160.00,26/08/2015
Commissioning,Commissioning,Building Repairs & Maintenance,60028490,OAKRAY LIMITED,64.00,26/08/2015
Commissioning,Commissioning,Building Repairs & Maintenance,60028497,OAKRAY LIMITED,48.00,26/08/2015
Commissioning,Commissioning,Building Repairs & Maintenance,60028501,OAKRAY LIMITED,64.00,27/08/2015
Commissioning,Commissioning,Building Repairs & Maintenance,60028507,OAKRAY LIMITED,64.00,26/08/2015
Commissioning,Commissioning,Building Repairs & Maintenance,60028511,OAKRAY LIMITED,64.00,26/08/2015
Commissioning,Commissioning,Building Repairs & Maintenance,60028529,OAKRAY LIMITED,88.00,26/08/2015
Commissioning,Commissioning,Building Repairs & Maintenance,60028536,OAKRAY LIMITED,80.00,26/08/2015
Commissioning,Commissioning,Building Repairs & Maintenance,60028557,OAKRAY LIMITED,48.00,26/08/2015
Commissioning,Commissioning,Building Repairs & Maintenance,60027506,RGE SERVICES,248.00,26/08/2015
Commissioning,Commissioning,Capital Construction and Works,60026733,S W BRUCE & CO LTD,"19,685.00",11/08/2015
Commissioning,Commissioning,Capital Construction and Works,60027881,S W BRUCE & CO LTD,"15,000.00",12/08/2015
Commissioning,Commissioning,Consultants Fees,60027904,COPPER CONSULTING LTD,"5,325.00",06/08/2015
Commissioning,Commissioning,Consultants Fees,60027910,COPPER CONSULTING LTD,"10,666.65",06/08/2015
Commissioning,Commissioning,Consultants Fees,60027320,MURPHY SURVEYS LIMITED,"4,030.00",19/08/2015
Commissioning,Commissioning,Consultants Fees,60029038,TM&CO LTD,"9,995.00",12/08/2015
Commissioning,Commissioning,Employee Expenses,60027678,TMP (UK) LTD,"2,324.60",03/08/2015
Commissioning,Commissioning,Employee Expenses,60028356,TMP (UK) LTD,489.50,06/08/2015
Commissioning,Commissioning,Equipment and Materials Purcha,60028037,THE BARNETGROUP LIMITED,"70,000.00",10/08/2015
Commissioning,Commissioning,Furniture-Purchase-Repair,60029046,BUCHANAN COMPUTING LTD,762.00,12/08/2015
Commissioning,Commissioning,General Office Expenses,40000958,OFFICE DEPOT UK LTD,4.50,07/08/2015
Commissioning,Commissioning,Grant Payments,20022801,COMMUNITY BARNET,"23,943.75",10/08/2015
Commissioning,Commissioning,Grant Payments,20022638,COMMUNITY FOCUS,"17,100.00",05/08/2015
Commissioning,Commissioning,Health authorities - Third Par,60027229,NHS BARNET CCG,"7,253.22",04/08/2015
Commissioning,Commissioning,Legal and Court Fees,20023019,COMPANIES HOUSE,750.00,21/08/2015
Commissioning,Commissioning,Miscellaneous Expenses,20023012,ST JAMES'S CHURCH PCC,"1,155.00",21/08/2015
Commissioning,Commissioning,Other Agencies - Third Party P,60027856,SAFE LIVES,80.00,21/08/2015
Commissioning,Commissioning,Other Agencies - Third Party P,60028503,SOLACE WOMEN'S AID,"60,780.52",11/08/2015
Commissioning,Commissioning,Other Agencies - Third Party P,60028559,SOLACE WOMEN'S AID,"61,831.34",11/08/2015
Commissioning,Commissioning,Other Agencies - Third Party P,60028580,SOLACE WOMEN'S AID,"24,219.65",11/08/2015
Commissioning,Commissioning,Other Services,10012624,ABEL ALARM COMPANY LIMITED,"1,870.00",28/08/2015
Commissioning,Commissioning,Other Services,60028280,BLUE 9 SECURITY LIMITED,"1,225.00",07/08/2015
Commissioning,Commissioning,Other Services,60029763,BLUE 9 SECURITY LIMITED,"3,240.75",21/08/2015
Commissioning,Commissioning,Other Services,60028577,FINCHLEY FOIL FENCING CLUB,350.00,19/08/2015
Commissioning,Commissioning,Other Services,60027103,GT PRINT AND DESIGN,"1,000.00",11/08/2015
Commissioning,Commissioning,Other Services,60028624,IMPOWER CONSULTING LIMITED,"30,669.57",27/08/2015
Commissioning,Commissioning,Other Services,20022748,REDACTED - PERSONAL DATA,181.85,07/08/2015
Commissioning,Commissioning,Other Services,60028023,REDACTED - PERSONAL DATA,100.00,03/08/2015
Commissioning,Commissioning,Other Services,60028069,REDACTED - PERSONAL DATA,100.00,03/08/2015
Commissioning,Commissioning,Professional Services,60026153,COMMUNITY BARNET,277.00,07/08/2015
Commissioning,Commissioning,Professional Services,60028556,IMPOWER CONSULTING LIMITED,"10,000.00",27/08/2015
Commissioning,Commissioning,Publications,60026831,CLIKAPAD LTD,"1,100.00",12/08/2015
Commissioning,Commissioning,Training,60029915,FILEMAKER INTERNATIONAL LTD,404.00,24/08/2015
Commissioning,Commissioning,Training,20023066,REDACTED - PERSONAL DATA,620.00,24/08/2015
Corporate Accounting,Corporate Accounting,Miscellaneous Expenses,20023036,REDACTED - PERSONAL DATA,159.00,21/08/2015
Corporate Accounting,Corporate Accounting,Other Agencies - Third Party P,10012592,THE BARNETGROUP LIMITED,"3,260,000.00",04/08/2015
Corporate Accounting,Corporate Accounting,Other Local Authorities - Thir,EBX0073831,GREATER LONDON AUTHORITY,"1,642,337.00",11/08/2015
Corporate Accounting,Corporate Accounting,Other Local Authorities - Thir,EBX0074676,GREATER LONDON AUTHORITY,"233,647.00",19/08/2015
Corporate Accounting,Corporate Accounting,Other Transfer Payments to Soc,60027985,CITIBANK NA LONDON,59.98,04/08/2015
Corporate Accounting,Corporate Accounting,Other Transfer Payments to Soc,60028001,CITIBANK NA LONDON,"2,682.90",04/08/2015
Corporate Accounting,Corporate Accounting,Other Transfer Payments to Soc,60028008,CITIBANK NA LONDON,57.90,04/08/2015
Corporate Accounting,Corporate Accounting,Other Transfer Payments to Soc,60028042,CITIBANK NA LONDON,"1,422.11",04/08/2015
Corporate Accounting,Corporate Accounting,Other Transfer Payments to Soc,60028059,CITIBANK NA LONDON,120.00,04/08/2015
Corporate Accounting,Corporate Accounting,Other Transfer Payments to Soc,60028067,CITIBANK NA LONDON,176.75,04/08/2015
Corporate Accounting,Corporate Accounting,Other Transfer Payments to Soc,60028071,CITIBANK NA LONDON,"2,579.67",04/08/2015
Corporate Accounting,Corporate Accounting,Other Transfer Payments to Soc,60028328,CITIBANK NA LONDON,"106,964.68",06/08/2015
Corporate Accounting,Corporate Accounting,Other Transfer Payments to Soc,60028988,CITIBANK NA LONDON,"11,993.06",12/08/2015
Corporate Accounting,Corporate Accounting,Other Transfer Payments to Soc,60029003,CITIBANK NA LONDON,85.00,12/08/2015
Corporate Accounting,Corporate Accounting,Other Transfer Payments to Soc,60029007,CITIBANK NA LONDON,"3,282.22",12/08/2015
Corporate Accounting,Corporate Accounting,Other Transfer Payments to Soc,60029018,CITIBANK NA LONDON,165.80,12/08/2015
Corporate Accounting,Corporate Accounting,Other Transfer Payments to Soc,60029019,CITIBANK NA LONDON,780.23,12/08/2015
Corporate Accounting,Corporate Accounting,Other Transfer Payments to Soc,60029020,CITIBANK NA LONDON,185.00,12/08/2015
Corporate Accounting,Corporate Accounting,Other Transfer Payments to Soc,60029022,CITIBANK NA LONDON,557.83,12/08/2015
Corporate Accounting,Corporate Accounting,Other Transfer Payments to Soc,60029033,CITIBANK NA LONDON,164.16,12/08/2015
Corporate Accounting,Corporate Accounting,Other Transfer Payments to Soc,60029040,CITIBANK NA LONDON,150.00,12/08/2015
Corporate Accounting,Corporate Accounting,Other Transfer Payments to Soc,60029050,CITIBANK NA LONDON,135.00,12/08/2015
Corporate Accounting,Corporate Accounting,Other Transfer Payments to Soc,60029052,CITIBANK NA LONDON,500.00,12/08/2015
Corporate Accounting,Corporate Accounting,Other Transfer Payments to Soc,60029053,CITIBANK NA LONDON,651.00,12/08/2015
Corporate Accounting,Corporate Accounting,Other Transfer Payments to Soc,60029055,CITIBANK NA LONDON,"8,108.47",12/08/2015
Corporate Accounting,Corporate Accounting,Other Transfer Payments to Soc,60029062,CITIBANK NA LONDON,126.70,12/08/2015
Corporate Accounting,Corporate Accounting,Other Transfer Payments to Soc,60029074,CITIBANK NA LONDON,150.00,12/08/2015
Corporate Accounting,Corporate Accounting,Other Transfer Payments to Soc,60029076,CITIBANK NA LONDON,650.00,12/08/2015
Corporate Accounting,Corporate Accounting,Other Transfer Payments to Soc,60029089,CITIBANK NA LONDON,496.75,12/08/2015
Corporate Accounting,Corporate Accounting,Other Transfer Payments to Soc,60029789,CITIBANK NA LONDON,405.00,25/08/2015
Corporate Accounting,Corporate Accounting,Other Transfer Payments to Soc,60029801,CITIBANK NA LONDON,50.00,25/08/2015
Corporate Accounting,Corporate Accounting,Other Transfer Payments to Soc,60029862,CITIBANK NA LONDON,157.90,25/08/2015
Delivery Units,Adults and Communities,Advertising for staff,60022539,PREMIER PEOPLE SOLUTIONS LTD,"1,424.00",21/08/2015
Delivery Units,Adults and Communities,Advertising for staff,60026943,PREMIER PEOPLE SOLUTIONS LTD,819.00,12/08/2015
Delivery Units,Adults and Communities,Advertising for staff,60029552,PREMIER PEOPLE SOLUTIONS LTD,"4,355.00",24/08/2015
Delivery Units,Adults and Communities,Consultants Fees,10012597,VOICEABILITY,"1,252.00",11/08/2015
Delivery Units,Adults and Communities,Consultants Fees,10012598,VOICEABILITY,"2,128.00",11/08/2015
Delivery Units,Adults and Communities,Consultants Fees,10012599,VOICEABILITY,"5,611.00",11/08/2015
Delivery Units,Adults and Communities,Consultants Fees,10012600,VOICEABILITY,976.00,11/08/2015
Delivery Units,Adults and Communities,Consultants Fees,10012601,VOICEABILITY,"5,611.00",11/08/2015
Delivery Units,Adults and Communities,Consultants Fees,10012602,VOICEABILITY,728.00,11/08/2015
Delivery Units,Adults and Communities,Consultants Fees,10012603,VOICEABILITY,"1,128.00",11/08/2015
Delivery Units,Adults and Communities,Consultants Fees,60029807,WILLIAM STURGES & CO,"1,744.60",26/08/2015
Delivery Units,Adults and Communities,Contract Cleaning,60020661,CHURCHILL CONTRACT SERVICES,381.08,27/08/2015
Delivery Units,Adults and Communities,Contract Cleaning,60028531,CHURCHILL CONTRACT SERVICES,367.88,27/08/2015
Delivery Units,Adults and Communities,Electricity,60027915,KENT COUNTY COUNCIL (KCS),129.25,04/08/2015
Delivery Units,Adults and Communities,Electricity,60028285,KENT COUNTY COUNCIL (KCS),367.24,06/08/2015
Delivery Units,Adults and Communities,Electricity,60028357,KENT COUNTY COUNCIL (KCS),178.96,06/08/2015
Delivery Units,Adults and Communities,Electricity,60028365,KENT COUNTY COUNCIL (KCS),359.64,06/08/2015
Delivery Units,Adults and Communities,Employee Expenses,60028190,CENTRAL LONDONCOMMUNITY HEALTHCARE,"88,097.00",05/08/2015
Delivery Units,Adults and Communities,Employee Expenses,60028223,CENTRAL LONDONCOMMUNITY HEALTHCARE,"106,288.00",05/08/2015
Delivery Units,Adults and Communities,Employee Expenses,60028232,CENTRAL LONDONCOMMUNITY HEALTHCARE,"88,097.17",05/08/2015
Delivery Units,Adults and Communities,Employee Expenses,60030198,CENTRAL LONDONCOMMUNITY HEALTHCARE,"88,097.00",28/08/2015
Delivery Units,Adults and Communities,Employee Expenses,60030214,CENTRAL LONDONCOMMUNITY HEALTHCARE,"88,097.00",28/08/2015
Delivery Units,Adults and Communities,Employee Expenses,60030217,CENTRAL LONDONCOMMUNITY HEALTHCARE,"88,097.17",28/08/2015
Delivery Units,Adults and Communities,Employee Expenses,60030228,CENTRAL LONDONCOMMUNITY HEALTHCARE,"88,097.17",28/08/2015
Delivery Units,Adults and Communities,Employee Expenses,60030257,CENTRAL LONDONCOMMUNITY HEALTHCARE,"88,097.00",28/08/2015
Delivery Units,Adults and Communities,Food Costs,60027889,DAIRY CREST LIMITED,2.88,07/08/2015
Delivery Units,Adults and Communities,Food Costs,60028616,DAIRY CREST LIMITED,2.88,21/08/2015
Delivery Units,Adults and Communities,Food Costs,60028703,DAIRY CREST LIMITED,2.88,11/08/2015
Delivery Units,Adults and Communities,Food Costs,60029119,DAIRY CREST LIMITED,2.88,27/08/2015
Delivery Units,Adults and Communities,Furniture-Purchase-Repair,60028608,BLUE 9 SECURITY LIMITED,"5,616.00",10/08/2015
Delivery Units,Adults and Communities,Gas,60026938,KENT COUNTY COUNCIL (KCS),129.69,03/08/2015
Delivery Units,Adults and Communities,Grounds maintenance,10012613,REDACTED - PERSONAL DATA,100.00,25/08/2015
Delivery Units,Adults and Communities,Other Agencies - Third Party P,30090051,AARON COURT CARE HOME,"2,216.41",27/08/2015
Delivery Units,Adults and Communities,Other Agencies - Third Party P,30086934,ABBEY RAVENSCROFT PARK NURSING HOME,"3,100.00",03/08/2015
Delivery Units,Adults and Communities,Other Agencies - Third Party P,30087330,ABBEY RAVENSCROFT PARK NURSING HOME,"2,318.93",10/08/2015
Delivery Units,Adults and Communities,Other Agencies - Third Party P,30087331,ABBEY RAVENSCROFT PARK NURSING HOME,-559.33,10/08/2015
Delivery Units,Adults and Communities,Other Agencies - Third Party P,30087431,ABBEY RAVENSCROFT PARK NURSING HOME,"4,477.99",12/08/2015
Delivery Units,Adults and Communities,Other Agencies - Third Party P,30089843,ABBEY RAVENSCROFT PARK NURSING HOME,"4,368.08",26/08/2015
Delivery Units,Adults and Communities,Other Agencies - Third Party P,30086924,ACCEDO CARE LTD,"8,960.00",03/08/2015
Delivery Units,Adults and Communities,Other Agencies - Third Party P,30087413,ACCEDO CARE LTD,"4,000.00",12/08/2015
Delivery Units,Adults and Communities,Other Agencies - Third Party P,30089739,ACCEDO CARE LTD,"5,600.00",26/08/2015
Delivery Units,Adults and Communities,Other Agencies - Third Party P,30089740,ACCEDO CARE LTD,"4,000.00",26/08/2015
Delivery Units,Adults and Communities,Other Agencies - Third Party P,30089741,ACCEDO CARE LTD,"-5,600.00",26/08/2015
Delivery Units,Adults and Communities,Other Agencies - Third Party P,30090006,ACCEDO CARE LTD,"8,960.00",27/08/2015
Delivery Units,Adults and Communities,Other Agencies - Third Party P,30090121,ACCEDO CARE LTD,"4,000.00",28/08/2015
Delivery Units,Adults and Communities,Other Agencies - Third Party P,30086955,ACTION ON HEARING LOSS,"1,908.93",03/08/2015
Delivery Units,Adults and Communities,Other Agencies - Third Party P,30086956,ACTION ON HEARING LOSS,-318.73,03/08/2015
Delivery Units,Adults and Communities,Other Agencies - Third Party P,30089894,ACTION ON HEARING LOSS,"33,194.10",26/08/2015
Delivery Units,Adults and Communities,Other Agencies - Third Party P,30089895,ACTION ON HEARING LOSS,"-5,542.34",26/08/2015
Delivery Units,Adults and Communities,Other Agencies - Third Party P,30087561,ADVANTAGE HEALTHCARE GROUP LTD,914.43,17/08/2015
Delivery Units,Adults and Communities,Other Agencies - Third Party P,30087562,ADVANTAGE HEALTHCARE GROUP LTD,"1,744.08",17/08/2015
Delivery Units,Adults and Communities,Other Agencies - Third Party P,30087563,ADVANTAGE HEALTHCARE GROUP LTD,"1,604.05",17/08/2015
Delivery Units,Adults and Communities,Other Agencies - Third Party P,30087564,ADVANTAGE HEALTHCARE GROUP LTD,"1,723.30",17/08/2015
Delivery Units,Adults and Communities,Other Agencies - Third Party P,30087565,ADVANTAGE HEALTHCARE GROUP LTD,"1,547.80",17/08/2015
Delivery Units,Adults and Communities,Other Agencies - Third Party P,30087566,ADVANTAGE HEALTHCARE GROUP LTD,87.75,17/08/2015
Delivery Units,Adults and Communities,Other Agencies - Third Party P,30087567,ADVANTAGE HEALTHCARE GROUP LTD,"1,683.80",17/08/2015
Delivery Units,Adults and Communities,Other Agencies - Third Party P,30087568,ADVANTAGE HEALTHCARE GROUP LTD,"1,723.30",17/08/2015
Delivery Units,Adults and Communities,Other Agencies - Third Party P,30087569,ADVANTAGE HEALTHCARE GROUP LTD,"1,527.41",18/08/2015
Delivery Units,Adults and Communities,Other Agencies - Third Party P,30086020,AGUDAS ISRAEL HOUSING ASSCTN LTD,"3,321.43",03/08/2015
Delivery Units,Adults and Communities,Other Agencies - Third Party P,30086021,AGUDAS ISRAEL HOUSING ASSCTN LTD,-559.33,03/08/2015
Delivery Units,Adults and Communities,Other Agencies - Third Party P,30086022,AGUDAS ISRAEL HOUSING ASSCTN LTD,"3,214.29",03/08/2015
Delivery Units,Adults and Communities,Other Agencies - Third Party P,30086023,AGUDAS ISRAEL HOUSING ASSCTN LTD,-541.29,03/08/2015
Delivery Units,Adults and Communities,Other Agencies - Third Party P,30087402,AGUDAS ISRAEL HOUSING ASSCTN LTD,"1,600.20",12/08/2015
Delivery Units,Adults and Communities,Other Agencies - Third Party P,30087756,AGUDAS ISRAEL HOUSING ASSCTN LTD,"1,600.20",21/08/2015
Delivery Units,Adults and Communities,Other Agencies - Third Party P,30088316,AGUDAS ISRAEL HOUSING ASSCTN LTD,"3,154.25",19/08/2015
Delivery Units,Adults and Communities,Other Agencies - Third Party P,30088317,AGUDAS ISRAEL HOUSING ASSCTN LTD,"2,527.83",19/08/2015
Delivery Units,Adults and Communities,Other Agencies - Third Party P,30088318,AGUDAS ISRAEL HOUSING ASSCTN LTD,"3,321.43",19/08/2015
Delivery Units,Adults and Communities,Other Agencies - Third Party P,30088319,AGUDAS ISRAEL HOUSING ASSCTN LTD,-559.33,19/08/2015
Delivery Units,Adults and Communities,Other Agencies - Third Party P,30089804,AGUDAS ISRAEL HOUSING ASSCTN LTD,"4,207.14",26/08/2015
Delivery Units,Adults and Communities,Other Agencies - Third Party P,30087930,ALLIED HEALTHCARE LTD,"4,770.76",17/08/2015
Delivery Units,Adults and Communities,Other Agencies - Third Party P,30086925,ALWYCK HOUSING GROUP,"6,126.97",03/08/2015
Delivery Units,Adults and Communities,Other Agencies - Third Party P,30088297,ANASTASIA LODGE,"3,964.28",19/08/2015
Delivery Units,Adults and Communities,Other Agencies - Third Party P,30090086,ANCASTER COURT NURSING HOME,"2,570.70",27/08/2015
Delivery Units,Adults and Communities,Other Agencies - Third Party P,30086935,ANCHOR TRUST,"2,232.64",03/08/2015
Delivery Units,Adults and Communities,Other Agencies - Third Party P,30087879,ANCHOR TRUST,"2,232.64",17/08/2015
Delivery Units,Adults and Communities,Other Agencies - Third Party P,30086959,APEX CARE HOME LTD,"4,133.01",03/08/2015
Delivery Units,Adults and Communities,Other Agencies - Third Party P,30086960,APEX CARE HOME LTD,-356.28,03/08/2015
Delivery Units,Adults and Communities,Other Agencies - Third Party P,30086961,APEX CARE HOME LTD,"3,999.69",03/08/2015
Delivery Units,Adults and Communities,Other Agencies - Third Party P,30086962,APEX CARE HOME LTD,-344.79,03/08/2015
Delivery Units,Adults and Communities,Other Agencies - Third Party P,30086963,APEX CARE HOME LTD,"4,133.01",03/08/2015
Delivery Units,Adults and Communities,Other Agencies - Third Party P,30086964,APEX CARE HOME LTD,-356.28,03/08/2015
Delivery Units,Adults and Communities,Other Agencies - Third Party P,30084126,ASHFIELDS RESIDENTIAL CARE HOME,"2,418.04",03/08/2015
Delivery Units,Adults and Communities,Other Agencies - Third Party P,30085468,ASHFIELDS RESIDENTIAL CARE HOME,"2,216.41",03/08/2015
Delivery Units,Adults and Communities,Other Agencies - Third Party P,30085469,ASHFIELDS RESIDENTIAL CARE HOME,"2,418.04",03/08/2015
Delivery Units,Adults and Communities,Other Agencies - Third Party P,30085470,ASHFIELDS RESIDENTIAL CARE HOME,"2,418.04",03/08/2015
Delivery Units,Adults and Communities,Other Agencies - Third Party P,30089870,ASHFIELDS RESIDENTIAL CARE HOME,"4,028.57",27/08/2015
Delivery Units,Adults and Communities,Other Agencies - Third Party P,30089871,ASHFIELDS RESIDENTIAL CARE HOME,"2,418.04",27/08/2015
Delivery Units,Adults and Communities,Other Agencies - Third Party P,30089872,ASHFIELDS RESIDENTIAL CARE HOME,"2,418.04",27/08/2015
Delivery Units,Adults and Communities,Other Agencies - Third Party P,30086938,ASHTON LODGE CARE CENTRE,-251.77,10/08/2015
Delivery Units,Adults and Communities,Other Agencies - Third Party P,30087358,ASHTON LODGE CARE CENTRE,"3,482.88",10/08/2015
Delivery Units,Adults and Communities,Other Agencies - Third Party P,30090054,ASPEN VILLAGES LTD,"2,216.41",27/08/2015
Delivery Units,Adults and Communities,Other Agencies - Third Party P,30090055,ASPEN VILLAGES LTD,"2,570.70",27/08/2015
Delivery Units,Adults and Communities,Other Agencies - Third Party P,30090056,ASPEN VILLAGES LTD,"3,321.43",27/08/2015
Delivery Units,Adults and Communities,Other Agencies - Third Party P,30090057,ASPEN VILLAGES LTD,"3,542.86",27/08/2015
Delivery Units,Adults and Communities,Other Agencies - Third Party P,30090058,ASPEN VILLAGES LTD,"4,871.43",27/08/2015
Delivery Units,Adults and Communities,Other Agencies - Third Party P,30090059,ASPEN VILLAGES LTD,"3,764.29",27/08/2015
Delivery Units,Adults and Communities,Other Agencies - Third Party P,30087308,AUTUMN GARDENS,"9,240.00",10/08/2015
Delivery Units,Adults and Communities,Other Agencies - Third Party P,30088334,AUTUMN GARDENS,"2,184.04",21/08/2015
Delivery Units,Adults and Communities,Other Agencies - Third Party P,30090146,AUTUMN GARDENS,"2,800.00",28/08/2015
Delivery Units,Adults and Communities,Other Agencies - Third Party P,30090147,AUTUMN GARDENS,"2,880.00",28/08/2015
Delivery Units,Adults and Communities,Other Agencies - Third Party P,30088634,B & M CARE,"2,418.04",19/08/2015
Delivery Units,Adults and Communities,Other Agencies - Third Party P,30089970,BARNET CENTRE FOR INDEPENDENT LIVIN,"11,948.25",26/08/2015
Delivery Units,Adults and Communities,Other Agencies - Third Party P,30088757,BARNET EXECUTIVE CAR SERVICE,480.00,21/08/2015
Delivery Units,Adults and Communities,Other Agencies - Third Party P,30088758,BARNET EXECUTIVE CAR SERVICE,480.00,21/08/2015
Delivery Units,Adults and Communities,Other Agencies - Third Party P,30088759,BARNET EXECUTIVE CAR SERVICE,400.00,21/08/2015
Delivery Units,Adults and Communities,Other Agencies - Third Party P,30088760,BARNET EXECUTIVE CAR SERVICE,400.00,21/08/2015
Delivery Units,Adults and Communities,Other Agencies - Third Party P,30088761,BARNET EXECUTIVE CAR SERVICE,400.00,21/08/2015
Delivery Units,Adults and Communities,Other Agencies - Third Party P,30088762,BARNET EXECUTIVE CAR SERVICE,400.00,21/08/2015
Delivery Units,Adults and Communities,Other Agencies - Third Party P,30088786,BARNET EXECUTIVE CAR SERVICE,480.00,21/08/2015
Delivery Units,Adults and Communities,Other Agencies - Third Party P,30088787,BARNET EXECUTIVE CAR SERVICE,480.00,21/08/2015
Delivery Units,Adults and Communities,Other Agencies - Third Party P,30088788,BARNET EXECUTIVE CAR SERVICE,400.00,21/08/2015
Delivery Units,Adults and Communities,Other Agencies - Third Party P,30088789,BARNET EXECUTIVE CAR SERVICE,480.00,21/08/2015
Delivery Units,Adults and Communities,Other Agencies - Third Party P,30088790,BARNET EXECUTIVE CAR SERVICE,480.00,21/08/2015
Delivery Units,Adults and Communities,Other Agencies - Third Party P,30088791,BARNET EXECUTIVE CAR SERVICE,480.00,21/08/2015
Delivery Units,Adults and Communities,Other Agencies - Third Party P,30088792,BARNET EXECUTIVE CAR SERVICE,480.00,21/08/2015
Delivery Units,Adults and Communities,Other Agencies - Third Party P,30088793,BARNET EXECUTIVE CAR SERVICE,480.00,21/08/2015
Delivery Units,Adults and Communities,Other Agencies - Third Party P,30089971,BARNET HOMES LIMITED,"1,097.61",26/08/2015
Delivery Units,Adults and Communities,Other Agencies - Third Party P,30089908,BARNET MENCAP,589.65,26/08/2015
Delivery Units,Adults and Communities,Other Agencies - Third Party P,30090188,BARNET MENCAP,"18,197.25",28/08/2015
Delivery Units,Adults and Communities,Other Agencies - Third Party P,30090189,BARNET MENCAP,"18,197.25",28/08/2015
Delivery Units,Adults and Communities,Other Agencies - Third Party P,30090190,BARNET MENCAP,"18,197.25",28/08/2015
Delivery Units,Adults and Communities,Other Agencies - Third Party P,30090191,BARNET MENCAP,"18,197.25",28/08/2015
Delivery Units,Adults and Communities,Other Agencies - Third Party P,30087199,BAYTREE COMMUNITY CARE (LONDON) LTD,734.40,07/08/2015
Delivery Units,Adults and Communities,Other Agencies - Third Party P,30090026,BAYTREE COMMUNITY CARE (LONDON) LTD,-559.33,27/08/2015
Delivery Units,Adults and Communities,Other Agencies - Third Party P,30090027,BAYTREE COMMUNITY CARE (LONDON) LTD,"3,538.37",27/08/2015
Delivery Units,Adults and Communities,Other Agencies - Third Party P,30087335,BIRCHWOOD GRANGE CARE HOME,"14,097.38",10/08/2015
Delivery Units,Adults and Communities,Other Agencies - Third Party P,20022751,BROOKDALE HEALTHCARE,"7,928.70",07/08/2015
Delivery Units,Adults and Communities,Other Agencies - Third Party P,30087712,BROOKDALE HEALTHCARE,"7,554.90",17/08/2015
Delivery Units,Adults and Communities,Other Agencies - Third Party P,30087713,BROOKDALE HEALTHCARE,"9,497.70",17/08/2015
Delivery Units,Adults and Communities,Other Agencies - Third Party P,30088209,BROOKDALE HEALTHCARE,"9,300.00",19/08/2015
Delivery Units,Adults and Communities,Other Agencies - Third Party P,30088210,BROOKDALE HEALTHCARE,"9,610.00",19/08/2015
Delivery Units,Adults and Communities,Other Agencies - Third Party P,30089729,BROOKDALE HEALTHCARE,"7,806.73",26/08/2015
Delivery Units,Adults and Communities,Other Agencies - Third Party P,30089730,BROOKDALE HEALTHCARE,"9,814.29",26/08/2015
Delivery Units,Adults and Communities,Other Agencies - Third Party P,30089731,BROOKDALE HEALTHCARE,"7,806.73",26/08/2015
Delivery Units,Adults and Communities,Other Agencies - Third Party P,30089732,BROOKDALE HEALTHCARE,"9,814.29",26/08/2015
Delivery Units,Adults and Communities,Other Agencies - Third Party P,30090098,BROOKDALE HEALTHCARE,"9,000.00",28/08/2015
Delivery Units,Adults and Communities,Other Agencies - Third Party P,30090099,BROOKDALE HEALTHCARE,"9,300.00",28/08/2015
Delivery Units,Adults and Communities,Other Agencies - Third Party P,30087635,BRUNSWICK SUPPORTED LIVING SERVICES,"1,321.60",17/08/2015
Delivery Units,Adults and Communities,Other Agencies - Third Party P,30087637,BRUNSWICK SUPPORTED LIVING SERVICES,"1,412.68",17/08/2015
Delivery Units,Adults and Communities,Other Agencies - Third Party P,30087638,BRUNSWICK SUPPORTED LIVING SERVICES,"1,942.84",17/08/2015
Delivery Units,Adults and Communities,Other Agencies - Third Party P,30087640,BRUNSWICK SUPPORTED LIVING SERVICES,"2,153.92",17/08/2015
Delivery Units,Adults and Communities,Other Agencies - Third Party P,30087359,BUPA CARE HOMES,"1,047.26",10/08/2015
Delivery Units,Adults and Communities,Other Agencies - Third Party P,30087360,BUPA CARE HOMES,285.99,10/08/2015
Delivery Units,Adults and Communities,Other Agencies - Third Party P,30087361,BUPA CARE HOMES,"1,485.71",10/08/2015
Delivery Units,Adults and Communities,Other Agencies - Third Party P,30087362,BUPA CARE HOMES,"3,258.81",10/08/2015
Delivery Units,Adults and Communities,Other Agencies - Third Party P,30087907,BUPA CARE HOMES,"2,318.93",17/08/2015
Delivery Units,Adults and Communities,Other Agencies - Third Party P,30087908,BUPA CARE HOMES,"2,318.93",17/08/2015
Delivery Units,Adults and Communities,Other Agencies - Third Party P,30087909,BUPA CARE HOMES,"2,878.57",17/08/2015
Delivery Units,Adults and Communities,Other Agencies - Third Party P,30087911,BUPA CARE HOMES,"2,318.93",18/08/2015
Delivery Units,Adults and Communities,Other Agencies - Third Party P,30087912,BUPA CARE HOMES,"2,924.05",18/08/2015
Delivery Units,Adults and Communities,Other Agencies - Third Party P,30087913,BUPA CARE HOMES,"2,302.06",18/08/2015
Delivery Units,Adults and Communities,Other Agencies - Third Party P,30087914,BUPA CARE HOMES,"3,752.04",18/08/2015
Delivery Units,Adults and Communities,Other Agencies - Third Party P,30087915,BUPA CARE HOMES,"2,318.93",18/08/2015
Delivery Units,Adults and Communities,Other Agencies - Third Party P,30088635,BUPA CARE HOMES,"2,318.93",19/08/2015
Delivery Units,Adults and Communities,Other Agencies - Third Party P,30089881,BUPA CARE HOMES,-74.80,27/08/2015
Delivery Units,Adults and Communities,Other Agencies - Third Party P,30090064,BUPA CARE HOMES,"2,216.41",27/08/2015
Delivery Units,Adults and Communities,Other Agencies - Third Party P,30090065,BUPA CARE HOMES,"2,612.86",27/08/2015
Delivery Units,Adults and Communities,Other Agencies - Third Party P,30090066,BUPA CARE HOMES,"7,750.00",27/08/2015
Delivery Units,Adults and Communities,Other Agencies - Third Party P,30090067,BUPA CARE HOMES,"3,258.81",27/08/2015
Delivery Units,Adults and Communities,Other Agencies - Third Party P,30090068,BUPA CARE HOMES,"3,258.81",27/08/2015
Delivery Units,Adults and Communities,Other Agencies - Third Party P,30090069,BUPA CARE HOMES,"3,321.43",27/08/2015
Delivery Units,Adults and Communities,Other Agencies - Third Party P,30090070,BUPA CARE HOMES,"3,321.43",27/08/2015
Delivery Units,Adults and Communities,Other Agencies - Third Party P,30090071,BUPA CARE HOMES,"2,418.04",27/08/2015
Delivery Units,Adults and Communities,Other Agencies - Third Party P,30090171,BUPA CARE HOMES,857.97,28/08/2015
Delivery Units,Adults and Communities,Other Agencies - Third Party P,30090172,BUPA CARE HOMES,500.48,28/08/2015
Delivery Units,Adults and Communities,Other Agencies - Third Party P,30090238,BUPA CARE HOMES,-71.50,28/08/2015
Delivery Units,Adults and Communities,Other Agencies - Third Party P,30089845,BUPA NURSING HOMES LTD - ARKLEY,"1,604.52",26/08/2015
Delivery Units,Adults and Communities,Other Agencies - Third Party P,30089846,BUPA NURSING HOMES LTD - ARKLEY,"2,094.52",26/08/2015
Delivery Units,Adults and Communities,Other Agencies - Third Party P,30089847,BUPA NURSING HOMES LTD - ARKLEY,"2,094.52",26/08/2015
Delivery Units,Adults and Communities,Other Agencies - Third Party P,30089848,BUPA NURSING HOMES LTD - ARKLEY,"2,001.92",26/08/2015
Delivery Units,Adults and Communities,Other Agencies - Third Party P,30089849,BUPA NURSING HOMES LTD - ARKLEY,598.43,26/08/2015
Delivery Units,Adults and Communities,Other Agencies - Third Party P,30089850,BUPA NURSING HOMES LTD - ARKLEY,"3,356.44",26/08/2015
Delivery Units,Adults and Communities,Other Agencies - Third Party P,30089851,BUPA NURSING HOMES LTD - ARKLEY,"2,094.52",26/08/2015
Delivery Units,Adults and Communities,Other Agencies - Third Party P,30089852,BUPA NURSING HOMES LTD - ARKLEY,"1,604.52",26/08/2015
Delivery Units,Adults and Communities,Other Agencies - Third Party P,30089853,BUPA NURSING HOMES LTD - ARKLEY,"2,094.52",26/08/2015
Delivery Units,Adults and Communities,Other Agencies - Third Party P,30089854,BUPA NURSING HOMES LTD - ARKLEY,"2,094.52",26/08/2015
Delivery Units,Adults and Communities,Other Agencies - Third Party P,30089855,BUPA NURSING HOMES LTD - ARKLEY,"2,094.52",26/08/2015
Delivery Units,Adults and Communities,Other Agencies - Third Party P,30089856,BUPA NURSING HOMES LTD - ARKLEY,"2,001.92",26/08/2015
Delivery Units,Adults and Communities,Other Agencies - Third Party P,30089857,BUPA NURSING HOMES LTD - ARKLEY,"2,001.92",26/08/2015
Delivery Units,Adults and Communities,Other Agencies - Third Party P,30089858,BUPA NURSING HOMES LTD - ARKLEY,"2,094.52",26/08/2015
Delivery Units,Adults and Communities,Other Agencies - Third Party P,30089859,BUPA NURSING HOMES LTD - ARKLEY,"3,356.44",26/08/2015
Delivery Units,Adults and Communities,Other Agencies - Third Party P,30088300,CAMPHILL DEVON COMMUNITY LIMITED,"4,508.00",19/08/2015
Delivery Units,Adults and Communities,Other Agencies - Third Party P,30086926,CANDLE COURT NURSING HOME,"2,570.70",03/08/2015
Delivery Units,Adults and Communities,Other Agencies - Third Party P,30086927,CANDLE COURT NURSING HOME,"2,570.70",03/08/2015
Delivery Units,Adults and Communities,Other Agencies - Third Party P,30086928,CANDLE COURT NURSING HOME,"3,764.29",03/08/2015
Delivery Units,Adults and Communities,Other Agencies - Third Party P,30087280,CANDLE COURT NURSING HOME,214.50,10/08/2015
Delivery Units,Adults and Communities,Other Agencies - Third Party P,30090053,CARE UK COMMUNITY PARTNERSHIPS,"2,867.46",27/08/2015
Delivery Units,Adults and Communities,Other Agencies - Third Party P,30087404,CARE WORLDWIDE (LONDON) LTD,"2,680.88",11/08/2015
Delivery Units,Adults and Communities,Other Agencies - Third Party P,30087405,CARE WORLDWIDE (LONDON) LTD,"3,936.46",11/08/2015
Delivery Units,Adults and Communities,Other Agencies - Third Party P,30087406,CARE WORLDWIDE (LONDON) LTD,"4,246.53",11/08/2015
Delivery Units,Adults and Communities,Other Agencies - Third Party P,30087407,CARE WORLDWIDE (LONDON) LTD,"2,685.98",11/08/2015
Delivery Units,Adults and Communities,Other Agencies - Third Party P,30087408,CARE WORLDWIDE (LONDON) LTD,"2,794.44",11/08/2015
Delivery Units,Adults and Communities,Other Agencies - Third Party P,30090159,CARE WORLDWIDE (LONDON) LTD,"2,680.88",28/08/2015
Delivery Units,Adults and Communities,Other Agencies - Third Party P,30090160,CARE WORLDWIDE (LONDON) LTD,"3,936.46",28/08/2015
Delivery Units,Adults and Communities,Other Agencies - Third Party P,30090161,CARE WORLDWIDE (LONDON) LTD,"4,246.53",28/08/2015
Delivery Units,Adults and Communities,Other Agencies - Third Party P,30090162,CARE WORLDWIDE (LONDON) LTD,"2,685.98",28/08/2015
Delivery Units,Adults and Communities,Other Agencies - Third Party P,30090163,CARE WORLDWIDE (LONDON) LTD,"2,794.44",28/08/2015
Delivery Units,Adults and Communities,Other Agencies - Third Party P,30087080,CAREBASE BURNT OAK 2006 LIMITED,"2,302.06",04/08/2015
Delivery Units,Adults and Communities,Other Agencies - Third Party P,30088624,CARETECH COMMUNITY SERVICES LTD,-10.05,28/08/2015
Delivery Units,Adults and Communities,Other Agencies - Third Party P,30090235,CARETECH COMMUNITY SERVICES LTD,"2,149.94",28/08/2015
Delivery Units,Adults and Communities,Other Agencies - Third Party P,30088133,CARLTON COURT (TLC GROUP),720.00,18/08/2015
Delivery Units,Adults and Communities,Other Agencies - Third Party P,30088134,CARLTON COURT (TLC GROUP),"2,232.00",18/08/2015
Delivery Units,Adults and Communities,Other Agencies - Third Party P,30088220,CARLTON COURT (TLC GROUP),"5,757.14",19/08/2015
Delivery Units,Adults and Communities,Other Agencies - Third Party P,30089744,CARLTON COURT (TLC GROUP),"1,024.23",26/08/2015
Delivery Units,Adults and Communities,Other Agencies - Third Party P,30089745,CARLTON COURT (TLC GROUP),434.52,26/08/2015
Delivery Units,Adults and Communities,Other Agencies - Third Party P,30089746,CARLTON COURT (TLC GROUP),"3,051.77",26/08/2015
Delivery Units,Adults and Communities,Other Agencies - Third Party P,30089747,CARLTON COURT (TLC GROUP),"1,124.81",26/08/2015
Delivery Units,Adults and Communities,Other Agencies - Third Party P,30089748,CARLTON COURT (TLC GROUP),"3,428.57",26/08/2015
Delivery Units,Adults and Communities,Other Agencies - Third Party P,30089749,CARLTON COURT (TLC GROUP),"2,953.33",26/08/2015
Delivery Units,Adults and Communities,Other Agencies - Third Party P,30089750,CARLTON COURT (TLC GROUP),"3,542.86",26/08/2015
Delivery Units,Adults and Communities,Other Agencies - Third Party P,30089751,CARLTON COURT (TLC GROUP),"3,051.77",26/08/2015
Delivery Units,Adults and Communities,Other Agencies - Third Party P,30089752,CARLTON COURT (TLC GROUP),"3,428.57",26/08/2015
Delivery Units,Adults and Communities,Other Agencies - Third Party P,30089753,CARLTON COURT (TLC GROUP),"2,953.33",26/08/2015
Delivery Units,Adults and Communities,Other Agencies - Third Party P,30089754,CARLTON COURT (TLC GROUP),357.49,26/08/2015
Delivery Units,Adults and Communities,Other Agencies - Third Party P,30089755,CARLTON COURT (TLC GROUP),"-4,327.68",26/08/2015
Delivery Units,Adults and Communities,Other Agencies - Third Party P,30089756,CARLTON COURT (TLC GROUP),-940.80,26/08/2015
Delivery Units,Adults and Communities,Other Agencies - Third Party P,30089757,CARLTON COURT (TLC GROUP),"-3,352.01",26/08/2015
Delivery Units,Adults and Communities,Other Agencies - Third Party P,30087282,CATHERINE LODGE,"2,184.04",10/08/2015
Delivery Units,Adults and Communities,Other Agencies - Third Party P,30087283,CATHERINE LODGE,"2,184.04",10/08/2015
Delivery Units,Adults and Communities,Other Agencies - Third Party P,30088217,CATHERINE LODGE,"2,184.04",19/08/2015
Delivery Units,Adults and Communities,Other Agencies - Third Party P,30087718,CDR CARE LTD,"2,510.00",17/08/2015
Delivery Units,Adults and Communities,Other Agencies - Third Party P,30087719,CDR CARE LTD,"2,400.00",17/08/2015
Delivery Units,Adults and Communities,Other Agencies - Third Party P,30087754,CDR CARE LTD,"2,600.00",17/08/2015
Delivery Units,Adults and Communities,Other Agencies - Third Party P,30087755,CDR CARE LTD,"2,600.00",17/08/2015
Delivery Units,Adults and Communities,Other Agencies - Third Party P,30090041,CEDARS NURSING HOME,"2,565.78",27/08/2015
Delivery Units,Adults and Communities,Other Agencies - Third Party P,30090042,CEDARS NURSING HOME,"2,565.78",27/08/2015
Delivery Units,Adults and Communities,Other Agencies - Third Party P,30090043,CEDARS NURSING HOME,"2,565.78",27/08/2015
Delivery Units,Adults and Communities,Other Agencies - Third Party P,30090044,CEDARS NURSING HOME,"2,353.25",27/08/2015
Delivery Units,Adults and Communities,Other Agencies - Third Party P,30090045,CEDARS NURSING HOME,"2,565.78",27/08/2015
Delivery Units,Adults and Communities,Other Agencies - Third Party P,30090046,CEDARS NURSING HOME,"2,314.02",27/08/2015
Delivery Units,Adults and Communities,Other Agencies - Third Party P,30090047,CEDARS NURSING HOME,"2,565.78",27/08/2015
Delivery Units,Adults and Communities,Other Agencies - Third Party P,30090048,CEDARS NURSING HOME,"2,353.25",27/08/2015
Delivery Units,Adults and Communities,Other Agencies - Third Party P,60028229,CENTRAL LONDONCOMMUNITY HEALTHCARE,"125,000.00",05/08/2015
Delivery Units,Adults and Communities,Other Agencies - Third Party P,30089795,CENTRAL MIDDLESEX SKILLS,"1,175.98",26/08/2015
Delivery Units,Adults and Communities,Other Agencies - Third Party P,30089796,CENTRAL MIDDLESEX SKILLS,904.60,26/08/2015
Delivery Units,Adults and Communities,Other Agencies - Third Party P,30088160,CHEQUERS TRANSPORT LIMITED,480.00,18/08/2015
Delivery Units,Adults and Communities,Other Agencies - Third Party P,30088161,CHEQUERS TRANSPORT LIMITED,176.00,18/08/2015
Delivery Units,Adults and Communities,Other Agencies - Third Party P,30088162,CHEQUERS TRANSPORT LIMITED,120.00,18/08/2015
Delivery Units,Adults and Communities,Other Agencies - Third Party P,30088163,CHEQUERS TRANSPORT LIMITED,214.72,18/08/2015
Delivery Units,Adults and Communities,Other Agencies - Third Party P,20022917,CHINGFORD KENNELS,225.00,14/08/2015
Delivery Units,Adults and Communities,Other Agencies - Third Party P,30087889,CLARE HOUSE NURSING HOME,"2,094.52",17/08/2015
Delivery Units,Adults and Communities,Other Agencies - Third Party P,30087336,CLOVELLY HOUSE RESID. HOME LTD,"2,600.00",10/08/2015
Delivery Units,Adults and Communities,Other Agencies - Third Party P,30087337,CLOVELLY HOUSE RESID. HOME LTD,"2,600.00",10/08/2015
Delivery Units,Adults and Communities,Other Agencies - Third Party P,30087338,CLOVELLY HOUSE RESID. HOME LTD,"2,184.04",10/08/2015
Delivery Units,Adults and Communities,Other Agencies - Third Party P,30087339,CLOVELLY HOUSE RESID. HOME LTD,"1,872.64",10/08/2015
Delivery Units,Adults and Communities,Other Agencies - Third Party P,30087340,CLOVELLY HOUSE RESID. HOME LTD,"2,600.00",10/08/2015
Delivery Units,Adults and Communities,Other Agencies - Third Party P,30087341,CLOVELLY HOUSE RESID. HOME LTD,"2,184.04",10/08/2015
Delivery Units,Adults and Communities,Other Agencies - Third Party P,30087342,CLOVELLY HOUSE RESID. HOME LTD,"2,184.04",10/08/2015
Delivery Units,Adults and Communities,Other Agencies - Third Party P,30087344,CLOVELLY HOUSE RESID. HOME LTD,-713.04,10/08/2015
Delivery Units,Adults and Communities,Other Agencies - Third Party P,30087414,CMG HOMES LTD,"2,097.96",12/08/2015
Delivery Units,Adults and Communities,Other Agencies - Third Party P,30087415,CMG HOMES LTD,-505.20,12/08/2015
Delivery Units,Adults and Communities,Other Agencies - Third Party P,30087416,CMG HOMES LTD,592.40,12/08/2015
Delivery Units,Adults and Communities,Other Agencies - Third Party P,30087417,CMG HOMES LTD,"2,097.96",12/08/2015
Delivery Units,Adults and Communities,Other Agencies - Third Party P,30087418,CMG HOMES LTD,-505.20,12/08/2015
Delivery Units,Adults and Communities,Other Agencies - Third Party P,30087419,CMG HOMES LTD,592.40,12/08/2015
Delivery Units,Adults and Communities,Other Agencies - Third Party P,30087420,CMG HOMES LTD,"2,097.96",12/08/2015
Delivery Units,Adults and Communities,Other Agencies - Third Party P,30087421,CMG HOMES LTD,-505.20,12/08/2015
Delivery Units,Adults and Communities,Other Agencies - Third Party P,30087422,CMG HOMES LTD,592.40,12/08/2015
Delivery Units,Adults and Communities,Other Agencies - Third Party P,30087423,CMG HOMES LTD,"2,097.96",12/08/2015
Delivery Units,Adults and Communities,Other Agencies - Third Party P,30087424,CMG HOMES LTD,-505.20,12/08/2015
Delivery Units,Adults and Communities,Other Agencies - Third Party P,30087425,CMG HOMES LTD,592.40,12/08/2015
Delivery Units,Adults and Communities,Other Agencies - Third Party P,30087426,CMG HOMES LTD,"3,990.12",12/08/2015
Delivery Units,Adults and Communities,Other Agencies - Third Party P,30087427,CMG HOMES LTD,-505.20,12/08/2015
Delivery Units,Adults and Communities,Other Agencies - Third Party P,30087428,CMG HOMES LTD,"3,990.12",12/08/2015
Delivery Units,Adults and Communities,Other Agencies - Third Party P,30087429,CMG HOMES LTD,-505.20,12/08/2015
Delivery Units,Adults and Communities,Other Agencies - Third Party P,30087576,CMG HOMES LTD,"3,086.84",17/08/2015
Delivery Units,Adults and Communities,Other Agencies - Third Party P,30087577,CMG HOMES LTD,"3,086.84",17/08/2015
Delivery Units,Adults and Communities,Other Agencies - Third Party P,30087578,CMG HOMES LTD,"4,800.00",17/08/2015
Delivery Units,Adults and Communities,Other Agencies - Third Party P,30087794,CMG HOMES LTD,"4,800.00",17/08/2015
Delivery Units,Adults and Communities,Other Agencies - Third Party P,30088225,CMG HOMES LTD,"3,990.12",19/08/2015
Delivery Units,Adults and Communities,Other Agencies - Third Party P,30088226,CMG HOMES LTD,-505.20,19/08/2015
Delivery Units,Adults and Communities,Other Agencies - Third Party P,30090015,COMPLETE CARE SERVICES LTD,"5,426.86",27/08/2015
Delivery Units,Adults and Communities,Other Agencies - Third Party P,30087060,CRESWICK HOUSE,"3,608.24",05/08/2015
Delivery Units,Adults and Communities,Other Agencies - Third Party P,30087061,CRESWICK HOUSE,-321.80,05/08/2015
Delivery Units,Adults and Communities,Other Agencies - Third Party P,30087062,CRESWICK HOUSE,"6,091.28",05/08/2015
Delivery Units,Adults and Communities,Other Agencies - Third Party P,30087063,CRESWICK HOUSE,-321.80,05/08/2015
Delivery Units,Adults and Communities,Other Agencies - Third Party P,30087064,CRESWICK HOUSE,"7,123.12",05/08/2015
Delivery Units,Adults and Communities,Other Agencies - Third Party P,30087800,DABB PAA,"1,092.96",17/08/2015
Delivery Units,Adults and Communities,Other Agencies - Third Party P,30087301,DANA CARE LIMITED,"1,582.55",10/08/2015
Delivery Units,Adults and Communities,Other Agencies - Third Party P,30087302,DANA CARE LIMITED,-68.53,10/08/2015
Delivery Units,Adults and Communities,Other Agencies - Third Party P,30087303,DANA CARE LIMITED,"7,912.33",10/08/2015
Delivery Units,Adults and Communities,Other Agencies - Third Party P,30087304,DANA CARE LIMITED,-344.79,10/08/2015
Delivery Units,Adults and Communities,Other Agencies - Third Party P,30090127,DANA CARE LIMITED,"4,951.28",28/08/2015
Delivery Units,Adults and Communities,Other Agencies - Third Party P,30090128,DANA CARE LIMITED,-356.28,28/08/2015
Delivery Units,Adults and Communities,Other Agencies - Third Party P,30090144,DANA CARE LIMITED,"8,176.07",28/08/2015
Delivery Units,Adults and Communities,Other Agencies - Third Party P,30090145,DANA CARE LIMITED,-356.28,28/08/2015
Delivery Units,Adults and Communities,Other Agencies - Third Party P,30089784,DERWEN COLLEGE,"5,367.33",26/08/2015
Delivery Units,Adults and Communities,Other Agencies - Third Party P,30089785,DERWEN COLLEGE,"5,367.34",26/08/2015
Delivery Units,Adults and Communities,Other Agencies - Third Party P,30089786,DERWEN COLLEGE,"6,117.50",26/08/2015
Delivery Units,Adults and Communities,Other Agencies - Third Party P,30089787,DERWEN COLLEGE,"6,117.50",26/08/2015
Delivery Units,Adults and Communities,Other Agencies - Third Party P,30090143,DERWEN COLLEGE,"6,117.49",28/08/2015
Delivery Units,Adults and Communities,Other Agencies - Third Party P,30087849,DEVELOPMENT AND LEARNING OPPORTUNIT,908.28,17/08/2015
Delivery Units,Adults and Communities,Other Agencies - Third Party P,30087850,DEVELOPMENT AND LEARNING OPPORTUNIT,"1,056.00",17/08/2015
Delivery Units,Adults and Communities,Other Agencies - Third Party P,30087851,DEVELOPMENT AND LEARNING OPPORTUNIT,"2,025.00",17/08/2015
Delivery Units,Adults and Communities,Other Agencies - Third Party P,30087852,DEVELOPMENT AND LEARNING OPPORTUNIT,500.00,17/08/2015
Delivery Units,Adults and Communities,Other Agencies - Third Party P,30087853,DEVELOPMENT AND LEARNING OPPORTUNIT,652.40,17/08/2015
Delivery Units,Adults and Communities,Other Agencies - Third Party P,30087650,DILLON CARE LTD,"3,900.00",17/08/2015
Delivery Units,Adults and Communities,Other Agencies - Third Party P,30087116,DIMENSIONS UK,"7,950.68",04/08/2015
Delivery Units,Adults and Communities,Other Agencies - Third Party P,30087205,DIMENSIONS UK,224.40,07/08/2015
Delivery Units,Adults and Communities,Other Agencies - Third Party P,30087206,DIMENSIONS UK,"1,122.00",07/08/2015
Delivery Units,Adults and Communities,Other Agencies - Third Party P,30087207,DIMENSIONS UK,149.60,07/08/2015
Delivery Units,Adults and Communities,Other Agencies - Third Party P,30087208,DIMENSIONS UK,149.60,07/08/2015
Delivery Units,Adults and Communities,Other Agencies - Third Party P,30087209,DIMENSIONS UK,224.40,07/08/2015
Delivery Units,Adults and Communities,Other Agencies - Third Party P,30087411,DIMENSIONS UK,209.79,11/08/2015
Delivery Units,Adults and Communities,Other Agencies - Third Party P,30087456,DIMENSIONS UK,"-4,012.25",26/08/2015
Delivery Units,Adults and Communities,Other Agencies - Third Party P,30087641,DIMENSIONS UK,-319.20,26/08/2015
Delivery Units,Adults and Communities,Other Agencies - Third Party P,30087642,DIMENSIONS UK,-456.00,26/08/2015
Delivery Units,Adults and Communities,Other Agencies - Third Party P,30087644,DIMENSIONS UK,18.70,26/08/2015
Delivery Units,Adults and Communities,Other Agencies - Third Party P,30087645,DIMENSIONS UK,374.00,26/08/2015
Delivery Units,Adults and Communities,Other Agencies - Third Party P,30087646,DIMENSIONS UK,"1,196.80",26/08/2015
Delivery Units,Adults and Communities,Other Agencies - Third Party P,30087647,DIMENSIONS UK,149.60,26/08/2015
Delivery Units,Adults and Communities,Other Agencies - Third Party P,30087648,DIMENSIONS UK,"1,028.50",26/08/2015
Delivery Units,Adults and Communities,Other Agencies - Third Party P,30087649,DIMENSIONS UK,"1,122.00",26/08/2015
Delivery Units,Adults and Communities,Other Agencies - Third Party P,30087941,DIMENSIONS UK,372.96,26/08/2015
Delivery Units,Adults and Communities,Other Agencies - Third Party P,30090196,DIMENSIONS UK,149.60,28/08/2015
Delivery Units,Adults and Communities,Other Agencies - Third Party P,30090197,DIMENSIONS UK,224.40,28/08/2015
Delivery Units,Adults and Communities,Other Agencies - Third Party P,30090198,DIMENSIONS UK,149.60,28/08/2015
Delivery Units,Adults and Communities,Other Agencies - Third Party P,30090199,DIMENSIONS UK,224.40,28/08/2015
Delivery Units,Adults and Communities,Other Agencies - Third Party P,30090200,DIMENSIONS UK,149.60,28/08/2015
Delivery Units,Adults and Communities,Other Agencies - Third Party P,30090201,DIMENSIONS UK,149.60,28/08/2015
Delivery Units,Adults and Communities,Other Agencies - Third Party P,30090202,DIMENSIONS UK,149.60,28/08/2015
Delivery Units,Adults and Communities,Other Agencies - Third Party P,30090203,DIMENSIONS UK,74.80,28/08/2015
Delivery Units,Adults and Communities,Other Agencies - Third Party P,30090204,DIMENSIONS UK,149.60,28/08/2015
Delivery Units,Adults and Communities,Other Agencies - Third Party P,30090205,DIMENSIONS UK,74.80,28/08/2015
Delivery Units,Adults and Communities,Other Agencies - Third Party P,30090206,DIMENSIONS UK,149.60,28/08/2015
Delivery Units,Adults and Communities,Other Agencies - Third Party P,30090207,DIMENSIONS UK,149.60,28/08/2015
Delivery Units,Adults and Communities,Other Agencies - Third Party P,30090208,DIMENSIONS UK,149.60,28/08/2015
Delivery Units,Adults and Communities,Other Agencies - Third Party P,30090209,DIMENSIONS UK,149.60,28/08/2015
Delivery Units,Adults and Communities,Other Agencies - Third Party P,30090210,DIMENSIONS UK,149.60,28/08/2015
Delivery Units,Adults and Communities,Other Agencies - Third Party P,30090211,DIMENSIONS UK,74.80,28/08/2015
Delivery Units,Adults and Communities,Other Agencies - Third Party P,30090212,DIMENSIONS UK,523.60,28/08/2015
Delivery Units,Adults and Communities,Other Agencies - Third Party P,30090213,DIMENSIONS UK,299.20,28/08/2015
Delivery Units,Adults and Communities,Other Agencies - Third Party P,30090214,DIMENSIONS UK,224.40,28/08/2015
Delivery Units,Adults and Communities,Other Agencies - Third Party P,30090215,DIMENSIONS UK,299.20,28/08/2015
Delivery Units,Adults and Communities,Other Agencies - Third Party P,30090216,DIMENSIONS UK,149.60,28/08/2015
Delivery Units,Adults and Communities,Other Agencies - Third Party P,30090217,DIMENSIONS UK,448.80,28/08/2015
Delivery Units,Adults and Communities,Other Agencies - Third Party P,30090218,DIMENSIONS UK,149.60,28/08/2015
Delivery Units,Adults and Communities,Other Agencies - Third Party P,30090219,DIMENSIONS UK,112.20,28/08/2015
Delivery Units,Adults and Communities,Other Agencies - Third Party P,30090220,DIMENSIONS UK,149.60,28/08/2015
Delivery Units,Adults and Communities,Other Agencies - Third Party P,30090221,DIMENSIONS UK,74.80,28/08/2015
Delivery Units,Adults and Communities,Other Agencies - Third Party P,30090222,DIMENSIONS UK,149.60,28/08/2015
Delivery Units,Adults and Communities,Other Agencies - Third Party P,30090223,DIMENSIONS UK,149.60,28/08/2015
Delivery Units,Adults and Communities,Other Agencies - Third Party P,30090224,DIMENSIONS UK,74.80,28/08/2015
Delivery Units,Adults and Communities,Other Agencies - Third Party P,30090225,DIMENSIONS UK,448.80,28/08/2015
Delivery Units,Adults and Communities,Other Agencies - Third Party P,30090226,DIMENSIONS UK,149.60,28/08/2015
Delivery Units,Adults and Communities,Other Agencies - Third Party P,30090227,DIMENSIONS UK,224.40,28/08/2015
Delivery Units,Adults and Communities,Other Agencies - Third Party P,30090228,DIMENSIONS UK,149.60,28/08/2015
Delivery Units,Adults and Communities,Other Agencies - Third Party P,30090229,DIMENSIONS UK,224.40,28/08/2015
Delivery Units,Adults and Communities,Other Agencies - Third Party P,30090230,DIMENSIONS UK,56.10,28/08/2015
Delivery Units,Adults and Communities,Other Agencies - Third Party P,30090231,DIMENSIONS UK,74.80,28/08/2015
Delivery Units,Adults and Communities,Other Agencies - Third Party P,30090232,DIMENSIONS UK,149.60,28/08/2015
Delivery Units,Adults and Communities,Other Agencies - Third Party P,30090234,DIMENSIONS UK,374.00,28/08/2015
Delivery Units,Adults and Communities,Other Agencies - Third Party P,30087899,DR FRENCH MEMORIAL HOME LTD,"2,184.04",19/08/2015
Delivery Units,Adults and Communities,Other Agencies - Third Party P,30087795,ELEANOR PALMER TRUST NO 2 A/C.,"2,730.05",17/08/2015
Delivery Units,Adults and Communities,Other Agencies - Third Party P,30088302,ELEANOR PALMER TRUST NO 2 A/C.,"3,002.88",19/08/2015
Delivery Units,Adults and Communities,Other Agencies - Third Party P,30088304,ELEANOR PALMER TRUST NO 2 A/C.,-357.49,19/08/2015
Delivery Units,Adults and Communities,Other Agencies - Third Party P,30089789,ELEANOR PALMER TRUST NO 2 A/C.,-390.01,26/08/2015
Delivery Units,Adults and Communities,Other Agencies - Third Party P,30089790,ELEANOR PALMER TRUST NO 2 A/C.,"1,404.03",26/08/2015
Delivery Units,Adults and Communities,Other Agencies - Third Party P,30087045,ELIZABETH HOUSE,"4,620.00",04/08/2015
Delivery Units,Adults and Communities,Other Agencies - Third Party P,30090173,ELIZABETH HOUSE,"2,418.04",28/08/2015
Delivery Units,Adults and Communities,Other Agencies - Third Party P,30087276,ELMHURST RESIDENTIAL HOME,"7,098.13",10/08/2015
Delivery Units,Adults and Communities,Other Agencies - Third Party P,30087760,ELMHURST RESIDENTIAL HOME,"2,322.00",17/08/2015
Delivery Units,Adults and Communities,Other Agencies - Third Party P,30087761,ELMHURST RESIDENTIAL HOME,-467.44,17/08/2015
Delivery Units,Adults and Communities,Other Agencies - Third Party P,30088165,ELMHURST RESIDENTIAL HOME,"7,098.12",18/08/2015
Delivery Units,Adults and Communities,Other Agencies - Third Party P,30088166,ELMHURST RESIDENTIAL HOME,"-2,453.26",18/08/2015
Delivery Units,Adults and Communities,Other Agencies - Third Party P,30088174,ELMHURST RESIDENTIAL HOME,"7,098.14",18/08/2015
Delivery Units,Adults and Communities,Other Agencies - Third Party P,30088175,ELMHURST RESIDENTIAL HOME,"-1,640.23",18/08/2015
Delivery Units,Adults and Communities,Other Agencies - Third Party P,30089805,ELMHURST RESIDENTIAL HOME,"2,638.52",26/08/2015
Delivery Units,Adults and Communities,Other Agencies - Third Party P,30089806,ELMHURST RESIDENTIAL HOME,-708.47,26/08/2015
Delivery Units,Adults and Communities,Other Agencies - Third Party P,30087901,EMMAUS HOUSE,"2,184.04",17/08/2015
Delivery Units,Adults and Communities,Other Agencies - Third Party P,30088796,EVE HERSOV & CO,262.00,21/08/2015
Delivery Units,Adults and Communities,Other Agencies - Third Party P,30089810,FERNBANK NURSING HOME.,"2,318.80",26/08/2015
Delivery Units,Adults and Communities,Other Agencies - Third Party P,30089811,FERNBANK NURSING HOME.,"2,318.80",26/08/2015
Delivery Units,Adults and Communities,Other Agencies - Third Party P,30089812,FERNBANK NURSING HOME.,"2,318.80",26/08/2015
Delivery Units,Adults and Communities,Other Agencies - Third Party P,30089813,FERNBANK NURSING HOME.,"2,318.80",26/08/2015
Delivery Units,Adults and Communities,Other Agencies - Third Party P,30089814,FERNBANK NURSING HOME.,"2,318.80",26/08/2015
Delivery Units,Adults and Communities,Other Agencies - Third Party P,30089815,FERNBANK NURSING HOME.,"2,318.80",26/08/2015
Delivery Units,Adults and Communities,Other Agencies - Third Party P,30089816,FERNBANK NURSING HOME.,"2,318.80",26/08/2015
Delivery Units,Adults and Communities,Other Agencies - Third Party P,30089817,FERNBANK NURSING HOME.,"2,318.80",26/08/2015
Delivery Units,Adults and Communities,Other Agencies - Third Party P,30089818,FERNBANK NURSING HOME.,"2,570.52",26/08/2015
Delivery Units,Adults and Communities,Other Agencies - Third Party P,30087847,FINBOND LIMITED,"4,758.09",26/08/2015
Delivery Units,Adults and Communities,Other Agencies - Third Party P,30087848,FINBOND LIMITED,"2,216.41",26/08/2015
Delivery Units,Adults and Communities,Other Agencies - Third Party P,30090030,FINBOND LIMITED,"2,657.14",27/08/2015
Delivery Units,Adults and Communities,Other Agencies - Third Party P,30090031,FINBOND LIMITED,"2,216.41",27/08/2015
Delivery Units,Adults and Communities,Other Agencies - Third Party P,30087928,FLAGSWAN TWO LTD,"2,546.43",17/08/2015
Delivery Units,Adults and Communities,Other Agencies - Third Party P,30086953,FOUR SEASONS HEALTH CARE,"1,404.37",03/08/2015
Delivery Units,Adults and Communities,Other Agencies - Third Party P,30086954,FOUR SEASONS HEALTH CARE,"1,084.71",03/08/2015
Delivery Units,Adults and Communities,Other Agencies - Third Party P,30087442,FOUR SEASONS HEALTH CARE,"2,443.32",12/08/2015
Delivery Units,Adults and Communities,Other Agencies - Third Party P,30087443,FOUR SEASONS HEALTH CARE,"2,085.68",12/08/2015
Delivery Units,Adults and Communities,Other Agencies - Third Party P,30087444,FOUR SEASONS HEALTH CARE,"2,085.68",12/08/2015
Delivery Units,Adults and Communities,Other Agencies - Third Party P,30087445,FOUR SEASONS HEALTH CARE,"2,123.48",12/08/2015
Delivery Units,Adults and Communities,Other Agencies - Third Party P,30087446,FOUR SEASONS HEALTH CARE,"2,313.08",12/08/2015
Delivery Units,Adults and Communities,Other Agencies - Third Party P,30087447,FOUR SEASONS HEALTH CARE,"2,085.68",12/08/2015
Delivery Units,Adults and Communities,Other Agencies - Third Party P,30087448,FOUR SEASONS HEALTH CARE,"2,094.52",12/08/2015
Delivery Units,Adults and Communities,Other Agencies - Third Party P,30087449,FOUR SEASONS HEALTH CARE,"2,313.08",12/08/2015
Delivery Units,Adults and Communities,Other Agencies - Third Party P,30087450,FOUR SEASONS HEALTH CARE,"2,090.08",12/08/2015
Delivery Units,Adults and Communities,Other Agencies - Third Party P,30087451,FOUR SEASONS HEALTH CARE,"2,321.92",12/08/2015
Delivery Units,Adults and Communities,Other Agencies - Third Party P,30087452,FOUR SEASONS HEALTH CARE,"2,085.68",12/08/2015
Delivery Units,Adults and Communities,Other Agencies - Third Party P,30087453,FOUR SEASONS HEALTH CARE,"2,090.08",12/08/2015
Delivery Units,Adults and Communities,Other Agencies - Third Party P,30087919,FOUR SEASONS HEALTH CARE,624.01,17/08/2015
Delivery Units,Adults and Communities,Other Agencies - Third Party P,30088181,FOUR SEASONS HEALTH CARE,-671.81,18/08/2015
Delivery Units,Adults and Communities,Other Agencies - Third Party P,30088188,FOUR SEASONS HEALTH CARE,"2,123.48",18/08/2015
Delivery Units,Adults and Communities,Other Agencies - Third Party P,30088189,FOUR SEASONS HEALTH CARE,"2,090.08",18/08/2015
Delivery Units,Adults and Communities,Other Agencies - Third Party P,30088641,FOUR SEASONS HEALTH CARE,"1,436.62",19/08/2015
Delivery Units,Adults and Communities,Other Agencies - Third Party P,30088642,FOUR SEASONS HEALTH CARE,"2,571.48",19/08/2015
Delivery Units,Adults and Communities,Other Agencies - Third Party P,30089892,FOUR SEASONS HEALTH CARE,"2,085.72",26/08/2015
Delivery Units,Adults and Communities,Other Agencies - Third Party P,30089893,FOUR SEASONS HEALTH CARE,"2,090.08",26/08/2015
Delivery Units,Adults and Communities,Other Agencies - Third Party P,30089792,FOUR SEASONS HEALTH CARE (NO.4) LTD,"2,004.00",26/08/2015
Delivery Units,Adults and Communities,Other Agencies - Third Party P,30086965,FREEWAYS TRUST LIMITED,829.80,03/08/2015
Delivery Units,Adults and Communities,Other Agencies - Third Party P,30089920,FREEWAYS TRUST LIMITED,"2,979.76",26/08/2015
Delivery Units,Adults and Communities,Other Agencies - Third Party P,30089921,FREEWAYS TRUST LIMITED,-890.20,26/08/2015
Delivery Units,Adults and Communities,Other Agencies - Third Party P,30087921,FREMANTLE TRUST,"2,951.18",17/08/2015
Delivery Units,Adults and Communities,Other Agencies - Third Party P,30087922,FREMANTLE TRUST,-336.60,17/08/2015
Delivery Units,Adults and Communities,Other Agencies - Third Party P,30087923,FREMANTLE TRUST,"25,205.98",17/08/2015
Delivery Units,Adults and Communities,Other Agencies - Third Party P,30087924,FREMANTLE TRUST,"27,189.56",17/08/2015
Delivery Units,Adults and Communities,Other Agencies - Third Party P,30087925,FREMANTLE TRUST,"-2,419.65",17/08/2015
Delivery Units,Adults and Communities,Other Agencies - Third Party P,30090181,FREMANTLE TRUST,"2,274.44",28/08/2015
Delivery Units,Adults and Communities,Other Agencies - Third Party P,30089766,FRIARY LODGE,"2,418.04",26/08/2015
Delivery Units,Adults and Communities,Other Agencies - Third Party P,30089775,FRIARY LODGE,"2,216.41",26/08/2015
Delivery Units,Adults and Communities,Other Agencies - Third Party P,30089791,FRIARY LODGE,"2,418.04",26/08/2015
Delivery Units,Adults and Communities,Other Agencies - Third Party P,30089807,FRIARY LODGE,"2,418.04",26/08/2015
Delivery Units,Adults and Communities,Other Agencies - Third Party P,30088184,FRIERN RESIDENTIAL CARE HOME,"2,144.92",18/08/2015
Delivery Units,Adults and Communities,Other Agencies - Third Party P,30088185,FRIERN RESIDENTIAL CARE HOME,-541.29,18/08/2015
Delivery Units,Adults and Communities,Other Agencies - Third Party P,30088186,FRIERN RESIDENTIAL CARE HOME,"2,216.41",18/08/2015
Delivery Units,Adults and Communities,Other Agencies - Third Party P,30088187,FRIERN RESIDENTIAL CARE HOME,-559.33,18/08/2015
Delivery Units,Adults and Communities,Other Agencies - Third Party P,30088190,FRIERN RESIDENTIAL CARE HOME,"2,035.46",18/08/2015
Delivery Units,Adults and Communities,Other Agencies - Third Party P,30088191,FRIERN RESIDENTIAL CARE HOME,-344.79,18/08/2015
Delivery Units,Adults and Communities,Other Agencies - Third Party P,30088192,FRIERN RESIDENTIAL CARE HOME,"2,103.31",18/08/2015
Delivery Units,Adults and Communities,Other Agencies - Third Party P,30088193,FRIERN RESIDENTIAL CARE HOME,-356.28,18/08/2015
Delivery Units,Adults and Communities,Other Agencies - Third Party P,30088194,FRIERN RESIDENTIAL CARE HOME,"1,322.66",18/08/2015
Delivery Units,Adults and Communities,Other Agencies - Third Party P,30088195,FRIERN RESIDENTIAL CARE HOME,-392.57,18/08/2015
Delivery Units,Adults and Communities,Other Agencies - Third Party P,30088196,FRIERN RESIDENTIAL CARE HOME,"1,366.75",18/08/2015
Delivery Units,Adults and Communities,Other Agencies - Third Party P,30088197,FRIERN RESIDENTIAL CARE HOME,-405.66,18/08/2015
Delivery Units,Adults and Communities,Other Agencies - Third Party P,30088198,FRIERN RESIDENTIAL CARE HOME,"2,144.92",18/08/2015
Delivery Units,Adults and Communities,Other Agencies - Third Party P,30088199,FRIERN RESIDENTIAL CARE HOME,-541.29,18/08/2015
Delivery Units,Adults and Communities,Other Agencies - Third Party P,30088200,FRIERN RESIDENTIAL CARE HOME,"2,216.41",18/08/2015
Delivery Units,Adults and Communities,Other Agencies - Third Party P,30088201,FRIERN RESIDENTIAL CARE HOME,-559.33,18/08/2015
Delivery Units,Adults and Communities,Other Agencies - Third Party P,30088621,FRIERN RESIDENTIAL CARE HOME,"2,035.46",19/08/2015
Delivery Units,Adults and Communities,Other Agencies - Third Party P,30088623,FRIERN RESIDENTIAL CARE HOME,"3,857.14",19/08/2015
Delivery Units,Adults and Communities,Other Agencies - Third Party P,30088630,FRIERN RESIDENTIAL CARE HOME,"1,219.72",19/08/2015
Delivery Units,Adults and Communities,Other Agencies - Third Party P,30088631,FRIERN RESIDENTIAL CARE HOME,-541.29,19/08/2015
Delivery Units,Adults and Communities,Other Agencies - Third Party P,30088632,FRIERN RESIDENTIAL CARE HOME,"1,260.37",19/08/2015
Delivery Units,Adults and Communities,Other Agencies - Third Party P,30088633,FRIERN RESIDENTIAL CARE HOME,-559.33,19/08/2015
Delivery Units,Adults and Communities,Other Agencies - Third Party P,30087905,GENTLE HANDS CARE AGENCY,"1,400.00",19/08/2015
Delivery Units,Adults and Communities,Other Agencies - Third Party P,30087906,GENTLE HANDS CARE AGENCY,455.00,17/08/2015
Delivery Units,Adults and Communities,Other Agencies - Third Party P,30087904,GENTLE HANDS CARE HOMES LIMITED,"4,394.00",17/08/2015
Delivery Units,Adults and Communities,Other Agencies - Third Party P,30087269,GLEBELANDS,"12,000.00",10/08/2015
Delivery Units,Adults and Communities,Other Agencies - Third Party P,30084792,H.C.S. (ENFIELD) LTD,-2.53,10/08/2015
Delivery Units,Adults and Communities,Other Agencies - Third Party P,30087277,H.C.S. (ENFIELD) LTD,"5,271.77",10/08/2015
Delivery Units,Adults and Communities,Other Agencies - Third Party P,30087278,H.C.S. (ENFIELD) LTD,-353.62,10/08/2015
Delivery Units,Adults and Communities,Other Agencies - Third Party P,30089760,H.C.S. (ENFIELD) LTD,"5,271.77",26/08/2015
Delivery Units,Adults and Communities,Other Agencies - Third Party P,30089761,H.C.S. (ENFIELD) LTD,-353.62,26/08/2015
Delivery Units,Adults and Communities,Other Agencies - Third Party P,30090079,HARDEN,"4,343.12",27/08/2015
Delivery Units,Adults and Communities,Other Agencies - Third Party P,30087763,HENRY NIHILL HOUSE,"2,002.60",21/08/2015
Delivery Units,Adults and Communities,Other Agencies - Third Party P,30087764,HENRY NIHILL HOUSE,-505.20,21/08/2015
Delivery Units,Adults and Communities,Other Agencies - Third Party P,30087765,HENRY NIHILL HOUSE,"2,321.92",21/08/2015
Delivery Units,Adults and Communities,Other Agencies - Third Party P,30090028,HILLVIEW COURT NURSING HOME,"4,200.00",27/08/2015
Delivery Units,Adults and Communities,Other Agencies - Third Party P,30090029,HILLVIEW COURT NURSING HOME,-321.20,27/08/2015
Delivery Units,Adults and Communities,Other Agencies - Third Party P,30087345,HILTON LODGE LTD.,"2,184.04",10/08/2015
Delivery Units,Adults and Communities,Other Agencies - Third Party P,30087346,HILTON LODGE LTD.,-783.20,10/08/2015
Delivery Units,Adults and Communities,Other Agencies - Third Party P,30087365,HILTON LODGE LTD.,"2,184.04",10/08/2015
Delivery Units,Adults and Communities,Other Agencies - Third Party P,30087366,HILTON LODGE LTD.,"2,256.04",10/08/2015
Delivery Units,Adults and Communities,Other Agencies - Third Party P,30087370,HILTON LODGE LTD.,"2,184.04",10/08/2015
Delivery Units,Adults and Communities,Other Agencies - Third Party P,30087371,HILTON LODGE LTD.,"2,184.04",10/08/2015
Delivery Units,Adults and Communities,Other Agencies - Third Party P,30087382,HILTON LODGE LTD.,"2,184.04",10/08/2015
Delivery Units,Adults and Communities,Other Agencies - Third Party P,30087384,HILTON LODGE LTD.,"2,184.04",10/08/2015
Delivery Units,Adults and Communities,Other Agencies - Third Party P,30089898,HILTON LODGE LTD.,"2,184.04",26/08/2015
Delivery Units,Adults and Communities,Other Agencies - Third Party P,30087383,HOLLY HOUSE,"1,748.60",10/08/2015
Delivery Units,Adults and Communities,Other Agencies - Third Party P,30087347,HOLLY HOUSE CARE HOME,"3,276.06",10/08/2015
Delivery Units,Adults and Communities,Other Agencies - Third Party P,30088649,HOLLY HOUSE RESIDENTIAL CARE HOME,"3,535.06",19/08/2015
Delivery Units,Adults and Communities,Other Agencies - Third Party P,30085095,HOME FARM TRUST LTD,"8,034.76",05/08/2015
Delivery Units,Adults and Communities,Other Agencies - Third Party P,30085096,HOME FARM TRUST LTD,-321.80,05/08/2015
Delivery Units,Adults and Communities,Other Agencies - Third Party P,30085461,HOME FARM TRUST LTD,"2,657.40",05/08/2015
Delivery Units,Adults and Communities,Other Agencies - Third Party P,30085462,HOME FARM TRUST LTD,-321.80,05/08/2015
Delivery Units,Adults and Communities,Other Agencies - Third Party P,30088684,HOME FROM HOME CARE LTD,"9,769.00",19/08/2015
Delivery Units,Adults and Communities,Other Agencies - Third Party P,30088685,HOME FROM HOME CARE LTD,-350.60,19/08/2015
Delivery Units,Adults and Communities,Other Agencies - Third Party P,30087334,HONISTER RESIDENTIAL CARE LTD,"2,418.04",10/08/2015
Delivery Units,Adults and Communities,Other Agencies - Third Party P,30090040,HONISTER RESIDENTIAL CARE LTD,"2,418.04",27/08/2015
Delivery Units,Adults and Communities,Other Agencies - Third Party P,30087081,HOUSING 21 (BARNET),-164.00,04/08/2015
Delivery Units,Adults and Communities,Other Agencies - Third Party P,30087082,HOUSING 21 (BARNET),-164.00,04/08/2015
Delivery Units,Adults and Communities,Other Agencies - Third Party P,30087702,HOUSING 21 (BARNET),-164.00,17/08/2015
Delivery Units,Adults and Communities,Other Agencies - Third Party P,30087703,HOUSING 21 (BARNET),-164.00,17/08/2015
Delivery Units,Adults and Communities,Other Agencies - Third Party P,30087057,INDEPENDENCE HOMES LIMITED,"2,900.00",04/08/2015
Delivery Units,Adults and Communities,Other Agencies - Third Party P,30087058,INDEPENDENCE HOMES LIMITED,"5,400.00",04/08/2015
Delivery Units,Adults and Communities,Other Agencies - Third Party P,30087042,INDIVIDUALISED CARE LIMITED,"1,000.00",04/08/2015
Delivery Units,Adults and Communities,Other Agencies - Third Party P,30087043,INDIVIDUALISED CARE LIMITED,928.00,04/08/2015
Delivery Units,Adults and Communities,Other Agencies - Third Party P,30087044,INDIVIDUALISED CARE LIMITED,540.00,04/08/2015
Delivery Units,Adults and Communities,Other Agencies - Third Party P,30087392,INDIVIDUALISED CARE LIMITED,590.00,11/08/2015
Delivery Units,Adults and Communities,Other Agencies - Third Party P,30087393,INDIVIDUALISED CARE LIMITED,225.00,11/08/2015
Delivery Units,Adults and Communities,Other Agencies - Third Party P,30087394,INDIVIDUALISED CARE LIMITED,769.50,11/08/2015
Delivery Units,Adults and Communities,Other Agencies - Third Party P,30089632,INDIVIDUALISED CARE LIMITED,"1,000.00",25/08/2015
Delivery Units,Adults and Communities,Other Agencies - Third Party P,30089633,INDIVIDUALISED CARE LIMITED,"2,400.00",25/08/2015
Delivery Units,Adults and Communities,Other Agencies - Third Party P,30089634,INDIVIDUALISED CARE LIMITED,"1,000.00",25/08/2015
Delivery Units,Adults and Communities,Other Agencies - Third Party P,30089636,INDIVIDUALISED CARE LIMITED,712.00,25/08/2015
Delivery Units,Adults and Communities,Other Agencies - Third Party P,30089637,INDIVIDUALISED CARE LIMITED,500.00,25/08/2015
Delivery Units,Adults and Communities,Other Agencies - Third Party P,30089638,INDIVIDUALISED CARE LIMITED,140.00,25/08/2015
Delivery Units,Adults and Communities,Other Agencies - Third Party P,30089639,INDIVIDUALISED CARE LIMITED,200.00,25/08/2015
Delivery Units,Adults and Communities,Other Agencies - Third Party P,30089640,INDIVIDUALISED CARE LIMITED,700.00,25/08/2015
Delivery Units,Adults and Communities,Other Agencies - Third Party P,30089641,INDIVIDUALISED CARE LIMITED,255.00,25/08/2015
Delivery Units,Adults and Communities,Other Agencies - Third Party P,30089642,INDIVIDUALISED CARE LIMITED,224.00,25/08/2015
Delivery Units,Adults and Communities,Other Agencies - Third Party P,30089643,INDIVIDUALISED CARE LIMITED,700.00,25/08/2015
Delivery Units,Adults and Communities,Other Agencies - Third Party P,30089644,INDIVIDUALISED CARE LIMITED,224.00,25/08/2015
Delivery Units,Adults and Communities,Other Agencies - Third Party P,30089645,INDIVIDUALISED CARE LIMITED,214.00,25/08/2015
Delivery Units,Adults and Communities,Other Agencies - Third Party P,30089646,INDIVIDUALISED CARE LIMITED,560.00,25/08/2015
Delivery Units,Adults and Communities,Other Agencies - Third Party P,30089647,INDIVIDUALISED CARE LIMITED,516.00,25/08/2015
Delivery Units,Adults and Communities,Other Agencies - Third Party P,30089648,INDIVIDUALISED CARE LIMITED,888.00,25/08/2015
Delivery Units,Adults and Communities,Other Agencies - Third Party P,30089649,INDIVIDUALISED CARE LIMITED,300.00,25/08/2015
Delivery Units,Adults and Communities,Other Agencies - Third Party P,30089650,INDIVIDUALISED CARE LIMITED,140.00,25/08/2015
Delivery Units,Adults and Communities,Other Agencies - Third Party P,30089651,INDIVIDUALISED CARE LIMITED,228.00,25/08/2015
Delivery Units,Adults and Communities,Other Agencies - Third Party P,30089652,INDIVIDUALISED CARE LIMITED,"1,000.00",25/08/2015
Delivery Units,Adults and Communities,Other Agencies - Third Party P,30089653,INDIVIDUALISED CARE LIMITED,700.00,25/08/2015
Delivery Units,Adults and Communities,Other Agencies - Third Party P,30089654,INDIVIDUALISED CARE LIMITED,500.00,25/08/2015
Delivery Units,Adults and Communities,Other Agencies - Third Party P,30089655,INDIVIDUALISED CARE LIMITED,300.00,25/08/2015
Delivery Units,Adults and Communities,Other Agencies - Third Party P,30089656,INDIVIDUALISED CARE LIMITED,800.00,25/08/2015
Delivery Units,Adults and Communities,Other Agencies - Third Party P,30089658,INDIVIDUALISED CARE LIMITED,56.00,25/08/2015
Delivery Units,Adults and Communities,Other Agencies - Third Party P,30089659,INDIVIDUALISED CARE LIMITED,510.00,25/08/2015
Delivery Units,Adults and Communities,Other Agencies - Third Party P,30089660,INDIVIDUALISED CARE LIMITED,700.00,25/08/2015
Delivery Units,Adults and Communities,Other Agencies - Third Party P,30089661,INDIVIDUALISED CARE LIMITED,300.00,25/08/2015
Delivery Units,Adults and Communities,Other Agencies - Third Party P,30089662,INDIVIDUALISED CARE LIMITED,800.00,25/08/2015
Delivery Units,Adults and Communities,Other Agencies - Third Party P,30089663,INDIVIDUALISED CARE LIMITED,300.00,25/08/2015
Delivery Units,Adults and Communities,Other Agencies - Third Party P,30089743,INDIVIDUALISED CARE LIMITED,700.00,26/08/2015
Delivery Units,Adults and Communities,Other Agencies - Third Party P,30090125,INDIVIDUALISED CARE LIMITED,600.00,28/08/2015
Delivery Units,Adults and Communities,Other Agencies - Third Party P,30090126,INDIVIDUALISED CARE LIMITED,700.00,28/08/2015
Delivery Units,Adults and Communities,Other Agencies - Third Party P,20023017,INTEGRATED SERVICES PROGRAMME,"2,600.08",21/08/2015
Delivery Units,Adults and Communities,Other Agencies - Third Party P,30087753,INTEGRATED SERVICES PROGRAMME,"2,600.08",25/08/2015
Delivery Units,Adults and Communities,Other Agencies - Third Party P,30088228,IVER HOUSE LTD,"3,517.88",19/08/2015
Delivery Units,Adults and Communities,Other Agencies - Third Party P,30088229,IVER HOUSE LTD,-366.40,19/08/2015
Delivery Units,Adults and Communities,Other Agencies - Third Party P,30089758,IVER HOUSE LTD,"3,430.56",26/08/2015
Delivery Units,Adults and Communities,Other Agencies - Third Party P,30089759,IVER HOUSE LTD,-279.08,26/08/2015
Delivery Units,Adults and Communities,Other Agencies - Third Party P,30089762,IVER HOUSE LTD,"3,430.56",26/08/2015
Delivery Units,Adults and Communities,Other Agencies - Third Party P,30089763,IVER HOUSE LTD,-279.08,26/08/2015
Delivery Units,Adults and Communities,Other Agencies - Third Party P,30089764,IVER HOUSE LTD,"3,430.56",26/08/2015
Delivery Units,Adults and Communities,Other Agencies - Third Party P,30089765,IVER HOUSE LTD,-279.08,26/08/2015
Delivery Units,Adults and Communities,Other Agencies - Third Party P,30087266,JEMINI RESPONSE,"9,100.00",12/08/2015
Delivery Units,Adults and Communities,Other Agencies - Third Party P,30087318,JEWISH CARE,"2,019.42",10/08/2015
Delivery Units,Adults and Communities,Other Agencies - Third Party P,30087319,JEWISH CARE,"4,176.97",10/08/2015
Delivery Units,Adults and Communities,Other Agencies - Third Party P,30087320,JEWISH CARE,"1,146.62",10/08/2015
Delivery Units,Adults and Communities,Other Agencies - Third Party P,30087322,JEWISH CARE,737.11,10/08/2015
Delivery Units,Adults and Communities,Other Agencies - Third Party P,30087326,JEWISH CARE,"1,714.28",10/08/2015
Delivery Units,Adults and Communities,Other Agencies - Third Party P,30087327,JEWISH CARE,"-1,367.75",10/08/2015
Delivery Units,Adults and Communities,Other Agencies - Third Party P,30087328,JEWISH CARE,300.29,10/08/2015
Delivery Units,Adults and Communities,Other Agencies - Third Party P,30087329,JEWISH CARE,"-1,714.29",10/08/2015
Delivery Units,Adults and Communities,Other Agencies - Third Party P,30088587,JEWISH CARE,"2,102.00",19/08/2015
Delivery Units,Adults and Communities,Other Agencies - Third Party P,30088588,JEWISH CARE,"3,200.00",19/08/2015
Delivery Units,Adults and Communities,Other Agencies - Third Party P,30088593,JEWISH CARE,"2,199.24",19/08/2015
Delivery Units,Adults and Communities,Other Agencies - Third Party P,30088595,JEWISH CARE,"2,133.84",19/08/2015
Delivery Units,Adults and Communities,Other Agencies - Third Party P,30088596,JEWISH CARE,-505.20,19/08/2015
Delivery Units,Adults and Communities,Other Agencies - Third Party P,30089838,JEWISH CARE,"3,800.00",26/08/2015
Delivery Units,Adults and Communities,Other Agencies - Third Party P,30089839,JEWISH CARE,"-1,393.14",26/08/2015
Delivery Units,Adults and Communities,Other Agencies - Third Party P,30089840,JEWISH CARE,522.43,26/08/2015
Delivery Units,Adults and Communities,Other Agencies - Third Party P,30089841,JEWISH CARE,"2,293.24",26/08/2015
Delivery Units,Adults and Communities,Other Agencies - Third Party P,30089842,JEWISH CARE,"2,102.00",26/08/2015
Delivery Units,Adults and Communities,Other Agencies - Third Party P,30087173,JIGSAW CREATIVE CARE LIMITED,"2,998.68",06/08/2015
Delivery Units,Adults and Communities,Other Agencies - Third Party P,30087174,JIGSAW CREATIVE CARE LIMITED,"1,412.00",06/08/2015
Delivery Units,Adults and Communities,Other Agencies - Third Party P,30087175,JIGSAW CREATIVE CARE LIMITED,"2,783.00",06/08/2015
Delivery Units,Adults and Communities,Other Agencies - Third Party P,30087571,JIGSAW CREATIVE CARE LIMITED,"2,998.68",17/08/2015
Delivery Units,Adults and Communities,Other Agencies - Third Party P,30087572,JIGSAW CREATIVE CARE LIMITED,"1,412.00",17/08/2015
Delivery Units,Adults and Communities,Other Agencies - Third Party P,30087573,JIGSAW CREATIVE CARE LIMITED,"2,783.00",17/08/2015
Delivery Units,Adults and Communities,Other Agencies - Third Party P,30089767,JIGSAW CREATIVE CARE LIMITED,"1,412.00",26/08/2015
Delivery Units,Adults and Communities,Other Agencies - Third Party P,30089768,JIGSAW CREATIVE CARE LIMITED,"2,783.00",26/08/2015
Delivery Units,Adults and Communities,Other Agencies - Third Party P,30089770,JIGSAW CREATIVE CARE LIMITED,"2,998.68",26/08/2015
Delivery Units,Adults and Communities,Other Agencies - Third Party P,30089771,JIGSAW CREATIVE CARE LIMITED,"1,412.00",26/08/2015
Delivery Units,Adults and Communities,Other Agencies - Third Party P,30089772,JIGSAW CREATIVE CARE LIMITED,"2,783.00",26/08/2015
Delivery Units,Adults and Communities,Other Agencies - Third Party P,30090129,JIGSAW CREATIVE CARE LIMITED,"2,998.68",28/08/2015
Delivery Units,Adults and Communities,Other Agencies - Third Party P,30087714,KEMBLE HOUSE,"3,231.30",17/08/2015
Delivery Units,Adults and Communities,Other Agencies - Third Party P,30087715,KEMBLE HOUSE,"7,198.50",17/08/2015
Delivery Units,Adults and Communities,Other Agencies - Third Party P,30088208,KEMBLE HOUSE,"8,192.99",19/08/2015
Delivery Units,Adults and Communities,Other Agencies - Third Party P,30088211,KEMBLE HOUSE,"9,680.37",19/08/2015
Delivery Units,Adults and Communities,Other Agencies - Third Party P,30088212,KEMBLE HOUSE,"7,438.45",19/08/2015
Delivery Units,Adults and Communities,Other Agencies - Third Party P,30090000,KEMBLE HOUSE,"9,368.10",27/08/2015
Delivery Units,Adults and Communities,Other Agencies - Third Party P,30090100,KEMBLE HOUSE,"3,339.01",28/08/2015
Delivery Units,Adults and Communities,Other Agencies - Third Party P,30090183,KILCULLEN HOMES (UK) LLP,"1,569.48",28/08/2015
Delivery Units,Adults and Communities,Other Agencies - Third Party P,30090184,KILCULLEN HOMES (UK) LLP,"1,569.48",28/08/2015
Delivery Units,Adults and Communities,Other Agencies - Third Party P,30090185,KILCULLEN HOMES (UK) LLP,"1,569.48",28/08/2015
Delivery Units,Adults and Communities,Other Agencies - Third Party P,30087388,KIRKLEY MANOR,"2,001.92",10/08/2015
Delivery Units,Adults and Communities,Other Agencies - Third Party P,30087389,KIRKLEY MANOR,-505.20,10/08/2015
Delivery Units,Adults and Communities,Other Agencies - Third Party P,30090073,KIRKLEY MANOR,"2,001.92",27/08/2015
Delivery Units,Adults and Communities,Other Agencies - Third Party P,30090074,KIRKLEY MANOR,-505.20,27/08/2015
Delivery Units,Adults and Communities,Other Agencies - Third Party P,30087078,KISHARON DAY SCHOOL,"1,373.68",04/08/2015
Delivery Units,Adults and Communities,Other Agencies - Third Party P,30087295,KISHARON DAY SCHOOL,"5,044.10",10/08/2015
Delivery Units,Adults and Communities,Other Agencies - Third Party P,30087296,KISHARON DAY SCHOOL,-356.28,10/08/2015
Delivery Units,Adults and Communities,Other Agencies - Third Party P,30087297,KISHARON DAY SCHOOL,"3,097.92",10/08/2015
Delivery Units,Adults and Communities,Other Agencies - Third Party P,30087298,KISHARON DAY SCHOOL,-356.28,10/08/2015
Delivery Units,Adults and Communities,Other Agencies - Third Party P,30087299,KISHARON DAY SCHOOL,"3,097.92",10/08/2015
Delivery Units,Adults and Communities,Other Agencies - Third Party P,30087300,KISHARON DAY SCHOOL,-356.28,10/08/2015
Delivery Units,Adults and Communities,Other Agencies - Third Party P,30087570,LANGDON COMMUNITY LTD,243.20,17/08/2015
Delivery Units,Adults and Communities,Other Agencies - Third Party P,30087636,LANGDON COMMUNITY LTD,"3,411.49",17/08/2015
Delivery Units,Adults and Communities,Other Agencies - Third Party P,30087654,LANGDON COMMUNITY LTD,"1,641.60",17/08/2015
Delivery Units,Adults and Communities,Other Agencies - Third Party P,30087655,LANGDON COMMUNITY LTD,851.20,17/08/2015
Delivery Units,Adults and Communities,Other Agencies - Third Party P,30087656,LANGDON COMMUNITY LTD,"2,403.92",17/08/2015
Delivery Units,Adults and Communities,Other Agencies - Third Party P,30087657,LANGDON COMMUNITY LTD,"2,979.20",17/08/2015
Delivery Units,Adults and Communities,Other Agencies - Third Party P,30087699,LANGDON COMMUNITY LTD,"1,276.80",17/08/2015
Delivery Units,Adults and Communities,Other Agencies - Third Party P,30087700,LANGDON COMMUNITY LTD,956.38,17/08/2015
Delivery Units,Adults and Communities,Other Agencies - Third Party P,30087701,LANGDON COMMUNITY LTD,"3,144.56",17/08/2015
Delivery Units,Adults and Communities,Other Agencies - Third Party P,30087704,LANGDON COMMUNITY LTD,"1,763.20",17/08/2015
Delivery Units,Adults and Communities,Other Agencies - Third Party P,30087705,LANGDON COMMUNITY LTD,425.60,17/08/2015
Delivery Units,Adults and Communities,Other Agencies - Third Party P,30087706,LANGDON COMMUNITY LTD,"1,772.32",17/08/2015
Delivery Units,Adults and Communities,Other Agencies - Third Party P,30087707,LANGDON COMMUNITY LTD,"2,097.60",17/08/2015
Delivery Units,Adults and Communities,Other Agencies - Third Party P,30087708,LANGDON COMMUNITY LTD,"5,002.64",17/08/2015
Delivery Units,Adults and Communities,Other Agencies - Third Party P,30087709,LANGDON COMMUNITY LTD,"1,315.12",17/08/2015
Delivery Units,Adults and Communities,Other Agencies - Third Party P,30087710,LANGDON COMMUNITY LTD,608.00,17/08/2015
Delivery Units,Adults and Communities,Other Agencies - Third Party P,30087711,LANGDON COMMUNITY LTD,"1,064.00",17/08/2015
Delivery Units,Adults and Communities,Other Agencies - Third Party P,30088129,LANGDON COMMUNITY LTD,"6,335.32",18/08/2015
Delivery Units,Adults and Communities,Other Agencies - Third Party P,30087917,LCS PARTNERSHIPS LTD,300.00,17/08/2015
Delivery Units,Adults and Communities,Other Agencies - Third Party P,30087918,LCS PARTNERSHIPS LTD,300.00,25/08/2015
Delivery Units,Adults and Communities,Other Agencies - Third Party P,30087789,LEO BAECK HOUSING ASSOC. LTD,"2,430.90",21/08/2015
Delivery Units,Adults and Communities,Other Agencies - Third Party P,30087790,LEO BAECK HOUSING ASSOC. LTD,"5,934.32",21/08/2015
Delivery Units,Adults and Communities,Other Agencies - Third Party P,30087890,LEO BAECK HOUSING ASSOC. LTD,"4,361.32",21/08/2015
Delivery Units,Adults and Communities,Other Agencies - Third Party P,30087891,LEO BAECK HOUSING ASSOC. LTD,"6,577.73",21/08/2015
Delivery Units,Adults and Communities,Other Agencies - Third Party P,30087892,LEO BAECK HOUSING ASSOC. LTD,"4,361.32",21/08/2015
Delivery Units,Adults and Communities,Other Agencies - Third Party P,30087893,LEO BAECK HOUSING ASSOC. LTD,"2,430.90",21/08/2015
Delivery Units,Adults and Communities,Other Agencies - Third Party P,30087894,LEO BAECK HOUSING ASSOC. LTD,"6,577.73",21/08/2015
Delivery Units,Adults and Communities,Other Agencies - Third Party P,30087895,LEO BAECK HOUSING ASSOC. LTD,"4,758.00",21/08/2015
Delivery Units,Adults and Communities,Other Agencies - Third Party P,30089779,LEO BAECK HOUSING ASSOC. LTD,"6,577.73",26/08/2015
Delivery Units,Adults and Communities,Other Agencies - Third Party P,30089781,LEO BAECK HOUSING ASSOC. LTD,"6,577.73",26/08/2015
Delivery Units,Adults and Communities,Other Agencies - Third Party P,30089874,LEO BAECK HOUSING ASSOC. LTD,"4,361.32",27/08/2015
Delivery Units,Adults and Communities,Other Agencies - Third Party P,30089875,LEO BAECK HOUSING ASSOC. LTD,"6,577.73",27/08/2015
Delivery Units,Adults and Communities,Other Agencies - Third Party P,30089876,LEO BAECK HOUSING ASSOC. LTD,"3,002.91",27/08/2015
Delivery Units,Adults and Communities,Other Agencies - Third Party P,30086939,LIFESTYLE CARE PLC,"2,318.93",03/08/2015
Delivery Units,Adults and Communities,Other Agencies - Third Party P,30086940,LIFESTYLE CARE PLC,"2,570.39",03/08/2015
Delivery Units,Adults and Communities,Other Agencies - Third Party P,30086941,LIFESTYLE CARE PLC,"2,318.93",03/08/2015
Delivery Units,Adults and Communities,Other Agencies - Third Party P,30086942,LIFESTYLE CARE PLC,"2,244.13",03/08/2015
Delivery Units,Adults and Communities,Other Agencies - Third Party P,30086943,LIFESTYLE CARE PLC,"2,318.93",03/08/2015
Delivery Units,Adults and Communities,Other Agencies - Third Party P,30086944,LIFESTYLE CARE PLC,"2,318.93",03/08/2015
Delivery Units,Adults and Communities,Other Agencies - Third Party P,30086945,LIFESTYLE CARE PLC,"2,570.39",03/08/2015
Delivery Units,Adults and Communities,Other Agencies - Third Party P,30086946,LIFESTYLE CARE PLC,"2,094.52",03/08/2015
Delivery Units,Adults and Communities,Other Agencies - Third Party P,30086947,LIFESTYLE CARE PLC,"2,094.52",03/08/2015
Delivery Units,Adults and Communities,Other Agencies - Third Party P,30086948,LIFESTYLE CARE PLC,"2,321.64",03/08/2015
Delivery Units,Adults and Communities,Other Agencies - Third Party P,30086949,LIFESTYLE CARE PLC,"2,244.13",03/08/2015
Delivery Units,Adults and Communities,Other Agencies - Third Party P,30086950,LIFESTYLE CARE PLC,"2,244.13",03/08/2015
Delivery Units,Adults and Communities,Other Agencies - Third Party P,30086951,LIFESTYLE CARE PLC,"2,318.93",03/08/2015
Delivery Units,Adults and Communities,Other Agencies - Third Party P,30086952,LIFESTYLE CARE PLC,"-2,321.64",03/08/2015
Delivery Units,Adults and Communities,Other Agencies - Third Party P,30086966,LIFESTYLE CARE PLC,"2,318.93",03/08/2015
Delivery Units,Adults and Communities,Other Agencies - Third Party P,30087102,LIFESTYLE CARE PLC,"2,570.39",04/08/2015
Delivery Units,Adults and Communities,Other Agencies - Third Party P,30087103,LIFESTYLE CARE PLC,"2,418.04",04/08/2015
Delivery Units,Adults and Communities,Other Agencies - Third Party P,30087104,LIFESTYLE CARE PLC,"2,244.13",04/08/2015
Delivery Units,Adults and Communities,Other Agencies - Third Party P,30087105,LIFESTYLE CARE PLC,"2,487.47",04/08/2015
Delivery Units,Adults and Communities,Other Agencies - Third Party P,30087106,LIFESTYLE CARE PLC,"2,570.39",04/08/2015
Delivery Units,Adults and Communities,Other Agencies - Third Party P,30087107,LIFESTYLE CARE PLC,"2,418.04",04/08/2015
Delivery Units,Adults and Communities,Other Agencies - Third Party P,30087108,LIFESTYLE CARE PLC,"2,487.47",04/08/2015
Delivery Units,Adults and Communities,Other Agencies - Third Party P,30087109,LIFESTYLE CARE PLC,"2,340.04",04/08/2015
Delivery Units,Adults and Communities,Other Agencies - Third Party P,30087110,LIFESTYLE CARE PLC,"2,570.39",04/08/2015
Delivery Units,Adults and Communities,Other Agencies - Third Party P,30087111,LIFESTYLE CARE PLC,"2,321.64",04/08/2015
Delivery Units,Adults and Communities,Other Agencies - Third Party P,30087112,LIFESTYLE CARE PLC,"2,487.47",04/08/2015
Delivery Units,Adults and Communities,Other Agencies - Third Party P,30087113,LIFESTYLE CARE PLC,"2,570.39",04/08/2015
Delivery Units,Adults and Communities,Other Agencies - Third Party P,30087114,LIFESTYLE CARE PLC,"2,487.47",04/08/2015
Delivery Units,Adults and Communities,Other Agencies - Third Party P,30087432,LIFESTYLE CARE PLC,"2,318.93",12/08/2015
Delivery Units,Adults and Communities,Other Agencies - Third Party P,30087433,LIFESTYLE CARE PLC,"2,318.93",12/08/2015
Delivery Units,Adults and Communities,Other Agencies - Third Party P,30087434,LIFESTYLE CARE PLC,"2,570.39",12/08/2015
Delivery Units,Adults and Communities,Other Agencies - Third Party P,30087435,LIFESTYLE CARE PLC,"2,570.39",12/08/2015
Delivery Units,Adults and Communities,Other Agencies - Third Party P,30087436,LIFESTYLE CARE PLC,"2,318.93",12/08/2015
Delivery Units,Adults and Communities,Other Agencies - Third Party P,30087437,LIFESTYLE CARE PLC,"2,318.93",12/08/2015
Delivery Units,Adults and Communities,Other Agencies - Third Party P,30087438,LIFESTYLE CARE PLC,"2,570.70",12/08/2015
Delivery Units,Adults and Communities,Other Agencies - Third Party P,30087440,LIFESTYLE CARE PLC,"2,318.93",12/08/2015
Delivery Units,Adults and Communities,Other Agencies - Third Party P,30087441,LIFESTYLE CARE PLC,"2,318.93",12/08/2015
Delivery Units,Adults and Communities,Other Agencies - Third Party P,30087083,LIFEWAYS,"3,145.24",04/08/2015
Delivery Units,Adults and Communities,Other Agencies - Third Party P,30087084,LIFEWAYS,"6,930.00",04/08/2015
Delivery Units,Adults and Communities,Other Agencies - Third Party P,30087086,LIFEWAYS,"5,037.40",04/08/2015
Delivery Units,Adults and Communities,Other Agencies - Third Party P,30087087,LIFEWAYS,"5,943.00",04/08/2015
Delivery Units,Adults and Communities,Other Agencies - Third Party P,30087093,LIFEWAYS,"3,656.00",04/08/2015
Delivery Units,Adults and Communities,Other Agencies - Third Party P,30087094,LIFEWAYS,"5,766.44",04/08/2015
Delivery Units,Adults and Communities,Other Agencies - Third Party P,30087095,LIFEWAYS,"2,377.20",04/08/2015
Delivery Units,Adults and Communities,Other Agencies - Third Party P,30087409,LIFEWAYS,37.68,11/08/2015
Delivery Units,Adults and Communities,Other Agencies - Third Party P,30087066,LILAS HOUSE,"2,574.32",05/08/2015
Delivery Units,Adults and Communities,Other Agencies - Third Party P,30087067,LILAS HOUSE,-321.80,05/08/2015
Delivery Units,Adults and Communities,Other Agencies - Third Party P,30087287,LILAS HOUSE,"7,723.18",10/08/2015
Delivery Units,Adults and Communities,Other Agencies - Third Party P,30087288,LILAS HOUSE,-964.98,10/08/2015
Delivery Units,Adults and Communities,Other Agencies - Third Party P,30089864,LIVABILITY,"2,400.00",26/08/2015
Delivery Units,Adults and Communities,Other Agencies - Third Party P,30089865,LIVABILITY,"3,189.32",26/08/2015
Delivery Units,Adults and Communities,Other Agencies - Third Party P,30089866,LIVABILITY,-505.20,26/08/2015
Delivery Units,Adults and Communities,Other Agencies - Third Party P,30089867,LIVABILITY,"3,424.00",26/08/2015
Delivery Units,Adults and Communities,Other Agencies - Third Party P,30089868,LIVABILITY,"3,672.00",26/08/2015
Delivery Units,Adults and Communities,Other Agencies - Third Party P,30089869,LIVABILITY,-321.80,26/08/2015
Delivery Units,Adults and Communities,Other Agencies - Third Party P,30089900,LIVABILITY,"5,279.24",26/08/2015
Delivery Units,Adults and Communities,Other Agencies - Third Party P,30089901,LIVABILITY,"4,891.20",26/08/2015
Delivery Units,Adults and Communities,Other Agencies - Third Party P,30087076,LONG FURROWS RESIDENTIAL CARE HOME,"1,778.94",04/08/2015
Delivery Units,Adults and Communities,Other Agencies - Third Party P,30087077,LONG FURROWS RESIDENTIAL CARE HOME,-234.55,04/08/2015
Delivery Units,Adults and Communities,Other Agencies - Third Party P,30089780,LORRAINES CARE HOME LTD,"1,820.00",26/08/2015
Delivery Units,Adults and Communities,Other Agencies - Third Party P,30087381,MADELAYNE COURT,"2,216.41",10/08/2015
Delivery Units,Adults and Communities,Other Agencies - Third Party P,30087579,MAISON MOTI LTD,"1,642.48",17/08/2015
Delivery Units,Adults and Communities,Other Agencies - Third Party P,30087581,MAISON MOTI LTD,"2,460.00",17/08/2015
Delivery Units,Adults and Communities,Other Agencies - Third Party P,30087582,MAISON MOTI LTD,"2,500.00",17/08/2015
Delivery Units,Adults and Communities,Other Agencies - Third Party P,30087583,MAISON MOTI LTD,"2,440.00",17/08/2015
Delivery Units,Adults and Communities,Other Agencies - Third Party P,30087584,MAISON MOTI LTD,"2,500.00",17/08/2015
Delivery Units,Adults and Communities,Other Agencies - Third Party P,30087585,MAISON MOTI LTD,"2,440.00",17/08/2015
Delivery Units,Adults and Communities,Other Agencies - Third Party P,30087586,MAISON MOTI LTD,"1,026.00",17/08/2015
Delivery Units,Adults and Communities,Other Agencies - Third Party P,30087643,MAISON MOTI LTD,343.40,17/08/2015
Delivery Units,Adults and Communities,Other Agencies - Third Party P,30087065,MANDELA HOUSE,"3,541.84",05/08/2015
Delivery Units,Adults and Communities,Other Agencies - Third Party P,30087068,MANDELA HOUSE,"4,050.36",05/08/2015
Delivery Units,Adults and Communities,Other Agencies - Third Party P,30087069,MANDELA HOUSE,-321.80,05/08/2015
Delivery Units,Adults and Communities,Other Agencies - Third Party P,30089916,MARLBOROUGH HOUSE,"3,951.44",26/08/2015
Delivery Units,Adults and Communities,Other Agencies - Third Party P,30090166,MEERA NURSING HOME LIMITED,"2,318.93",28/08/2015
Delivery Units,Adults and Communities,Other Agencies - Third Party P,30090167,MEERA NURSING HOME LIMITED,"2,318.93",28/08/2015
Delivery Units,Adults and Communities,Other Agencies - Third Party P,30090169,MEERA NURSING HOME LIMITED,"2,318.93",28/08/2015
Delivery Units,Adults and Communities,Other Agencies - Third Party P,30090179,MEERA NURSING HOME LIMITED,"2,320.57",28/08/2015
Delivery Units,Adults and Communities,Other Agencies - Third Party P,30090182,MEERA NURSING HOME LIMITED,"2,318.93",28/08/2015
Delivery Units,Adults and Communities,Other Agencies - Third Party P,30090187,MEERA NURSING HOME LIMITED,"2,318.93",28/08/2015
Delivery Units,Adults and Communities,Other Agencies - Third Party P,30090192,MEERA NURSING HOME LIMITED,"2,318.93",28/08/2015
Delivery Units,Adults and Communities,Other Agencies - Third Party P,30090193,MEERA NURSING HOME LIMITED,"2,320.53",28/08/2015
Delivery Units,Adults and Communities,Other Agencies - Third Party P,30090194,MEERA NURSING HOME LIMITED,"2,318.93",28/08/2015
Delivery Units,Adults and Communities,Other Agencies - Third Party P,30090195,MEERA NURSING HOME LIMITED,"2,531.42",28/08/2015
Delivery Units,Adults and Communities,Other Agencies - Third Party P,30090236,MEERA NURSING HOME LIMITED,"2,318.93",28/08/2015
Delivery Units,Adults and Communities,Other Agencies - Third Party P,30089903,METHODIST HOMES FOR THE AGED,"2,500.00",26/08/2015
Delivery Units,Adults and Communities,Other Agencies - Third Party P,30089958,METHODIST HOMES FOR THE AGED,"2,321.92",26/08/2015
Delivery Units,Adults and Communities,Other Agencies - Third Party P,30089959,METHODIST HOMES FOR THE AGED,-505.20,26/08/2015
Delivery Units,Adults and Communities,Other Agencies - Third Party P,30088176,METRO RADIO CARS,59.40,18/08/2015
Delivery Units,Adults and Communities,Other Agencies - Third Party P,30088177,METRO RADIO CARS,118.80,18/08/2015
Delivery Units,Adults and Communities,Other Agencies - Third Party P,30088688,MILBURY,"6,235.00",19/08/2015
Delivery Units,Adults and Communities,Other Agencies - Third Party P,30088689,MILBURY,-321.80,19/08/2015
Delivery Units,Adults and Communities,Other Agencies - Third Party P,30088692,MILBURY,-132.27,19/08/2015
Delivery Units,Adults and Communities,Other Agencies - Third Party P,30087185,ML HOMES LTD,"1,780.80",07/08/2015
Delivery Units,Adults and Communities,Other Agencies - Third Party P,30087186,ML HOMES LTD,"2,118.36",07/08/2015
Delivery Units,Adults and Communities,Other Agencies - Third Party P,30087187,ML HOMES LTD,"1,433.56",07/08/2015
Delivery Units,Adults and Communities,Other Agencies - Third Party P,30087188,ML HOMES LTD,"2,118.36",07/08/2015
Delivery Units,Adults and Communities,Other Agencies - Third Party P,30087189,ML HOMES LTD,"1,417.24",07/08/2015
Delivery Units,Adults and Communities,Other Agencies - Third Party P,30087190,ML HOMES LTD,"1,428.68",07/08/2015
Delivery Units,Adults and Communities,Other Agencies - Third Party P,30087191,ML HOMES LTD,"1,751.16",07/08/2015
Delivery Units,Adults and Communities,Other Agencies - Third Party P,30087195,ML HOMES LTD,"1,780.80",07/08/2015
Delivery Units,Adults and Communities,Other Agencies - Third Party P,30087200,ML HOMES LTD,"1,740.00",07/08/2015
Delivery Units,Adults and Communities,Other Agencies - Third Party P,30087201,ML HOMES LTD,"1,751.16",07/08/2015
Delivery Units,Adults and Communities,Other Agencies - Third Party P,30087202,ML HOMES LTD,"1,955.84",07/08/2015
Delivery Units,Adults and Communities,Other Agencies - Third Party P,30087203,ML HOMES LTD,"1,765.80",07/08/2015
Delivery Units,Adults and Communities,Other Agencies - Third Party P,30087204,ML HOMES LTD,"1,767.40",07/08/2015
Delivery Units,Adults and Communities,Other Agencies - Third Party P,30087222,ML HOMES LTD,"1,780.00",07/08/2015
Delivery Units,Adults and Communities,Other Agencies - Third Party P,30089693,ML HOMES LTD,"1,780.80",26/08/2015
Delivery Units,Adults and Communities,Other Agencies - Third Party P,30089694,ML HOMES LTD,"2,118.36",26/08/2015
Delivery Units,Adults and Communities,Other Agencies - Third Party P,30089695,ML HOMES LTD,"2,118.36",26/08/2015
Delivery Units,Adults and Communities,Other Agencies - Third Party P,30089697,ML HOMES LTD,"1,417.24",26/08/2015
Delivery Units,Adults and Communities,Other Agencies - Third Party P,30089698,ML HOMES LTD,"1,428.68",26/08/2015
Delivery Units,Adults and Communities,Other Agencies - Third Party P,30089863,ML HOMES LTD,"1,433.56",26/08/2015
Delivery Units,Adults and Communities,Other Agencies - Third Party P,30089873,ML HOMES LTD,"1,751.16",26/08/2015
Delivery Units,Adults and Communities,Other Agencies - Third Party P,30089883,ML HOMES LTD,"1,955.84",26/08/2015
Delivery Units,Adults and Communities,Other Agencies - Third Party P,30089887,ML HOMES LTD,"1,765.80",26/08/2015
Delivery Units,Adults and Communities,Other Agencies - Third Party P,30089891,ML HOMES LTD,"1,751.16",26/08/2015
Delivery Units,Adults and Communities,Other Agencies - Third Party P,30089904,ML HOMES LTD,"1,767.40",26/08/2015
Delivery Units,Adults and Communities,Other Agencies - Third Party P,30089956,ML HOMES LTD,"1,780.00",26/08/2015
Delivery Units,Adults and Communities,Other Agencies - Third Party P,30089961,ML HOMES LTD,"1,780.80",26/08/2015
Delivery Units,Adults and Communities,Other Agencies - Third Party P,30089844,NAS SERVICES LTD,"2,035.64",26/08/2015
Delivery Units,Adults and Communities,Other Agencies - Third Party P,30089860,NAS SERVICES LTD,"9,810.08",26/08/2015
Delivery Units,Adults and Communities,Other Agencies - Third Party P,30089861,NAS SERVICES LTD,"9,810.08",26/08/2015
Delivery Units,Adults and Communities,Other Agencies - Third Party P,30089703,NAVJYOT CARE & SUPPORT LIMITED,"3,612.00",25/08/2015
Delivery Units,Adults and Communities,Other Agencies - Third Party P,30089962,NAVJYOT CARE & SUPPORT LIMITED,"4,816.00",27/08/2015
Delivery Units,Adults and Communities,Other Agencies - Third Party P,30089963,NAVJYOT CARE & SUPPORT LIMITED,"2,365.00",26/08/2015
Delivery Units,Adults and Communities,Other Agencies - Third Party P,30089964,NAVJYOT CARE & SUPPORT LIMITED,"4,816.00",27/08/2015
Delivery Units,Adults and Communities,Other Agencies - Third Party P,30089965,NAVJYOT CARE & SUPPORT LIMITED,"4,816.00",27/08/2015
Delivery Units,Adults and Communities,Other Agencies - Third Party P,30090239,NAVJYOT CARE & SUPPORT LIMITED,"5,805.00",28/08/2015
Delivery Units,Adults and Communities,Other Agencies - Third Party P,30087348,NAZARETH HOUSE,"2,001.92",10/08/2015
Delivery Units,Adults and Communities,Other Agencies - Third Party P,30087349,NAZARETH HOUSE,"2,001.92",10/08/2015
Delivery Units,Adults and Communities,Other Agencies - Third Party P,30087350,NAZARETH HOUSE,"2,650.40",10/08/2015
Delivery Units,Adults and Communities,Other Agencies - Third Party P,30087351,NAZARETH HOUSE,"2,184.04",10/08/2015
Delivery Units,Adults and Communities,Other Agencies - Third Party P,30087352,NAZARETH HOUSE,"2,001.92",10/08/2015
Delivery Units,Adults and Communities,Other Agencies - Third Party P,30087353,NAZARETH HOUSE,-505.20,10/08/2015
Delivery Units,Adults and Communities,Other Agencies - Third Party P,30087354,NAZARETH HOUSE,"2,001.92",10/08/2015
Delivery Units,Adults and Communities,Other Agencies - Third Party P,30087355,NAZARETH HOUSE,"-1,065.72",10/08/2015
Delivery Units,Adults and Communities,Other Agencies - Third Party P,30087356,NAZARETH HOUSE,"2,001.92",10/08/2015
Delivery Units,Adults and Communities,Other Agencies - Third Party P,30087357,NAZARETH HOUSE,"2,001.92",10/08/2015
Delivery Units,Adults and Communities,Other Agencies - Third Party P,30090061,NAZARETH HOUSE,"2,001.92",27/08/2015
Delivery Units,Adults and Communities,Other Agencies - Third Party P,30090062,NAZARETH HOUSE,"2,180.66",27/08/2015
Delivery Units,Adults and Communities,Other Agencies - Third Party P,30090122,NEEM TREE CARE CENTRE,700.00,28/08/2015
Delivery Units,Adults and Communities,Other Agencies - Third Party P,30090003,NEWCENTURY CARE LTD,"2,581.86",27/08/2015
Delivery Units,Adults and Communities,Other Agencies - Third Party P,30090004,NEWCENTURY CARE LTD,"2,318.93",27/08/2015
Delivery Units,Adults and Communities,Other Agencies - Third Party P,30090005,NEWCENTURY CARE LTD,"2,608.92",27/08/2015
Delivery Units,Adults and Communities,Other Agencies - Third Party P,30087887,NEXT STEP SUPPORT LIMITED,"2,240.00",17/08/2015
Delivery Units,Adults and Communities,Other Agencies - Third Party P,30087944,NEXT STEP SUPPORT LIMITED,"2,000.00",17/08/2015
Delivery Units,Adults and Communities,Other Agencies - Third Party P,30087192,NORWOOD RAVENSWOOD SCHOOLS LTD,330.00,06/08/2015
Delivery Units,Adults and Communities,Other Agencies - Third Party P,30087193,NORWOOD RAVENSWOOD SCHOOLS LTD,330.00,06/08/2015
Delivery Units,Adults and Communities,Other Agencies - Third Party P,30087194,NORWOOD RAVENSWOOD SCHOOLS LTD,660.00,06/08/2015
Delivery Units,Adults and Communities,Other Agencies - Third Party P,30088653,NORWOOD RAVENSWOOD SCHOOLS LTD,"6,528.00",19/08/2015
Delivery Units,Adults and Communities,Other Agencies - Third Party P,30088654,NORWOOD RAVENSWOOD SCHOOLS LTD,-321.80,19/08/2015
Delivery Units,Adults and Communities,Other Agencies - Third Party P,30088655,NORWOOD RAVENSWOOD SCHOOLS LTD,"4,656.00",19/08/2015
Delivery Units,Adults and Communities,Other Agencies - Third Party P,30088656,NORWOOD RAVENSWOOD SCHOOLS LTD,-321.80,19/08/2015
Delivery Units,Adults and Communities,Other Agencies - Third Party P,30088659,NORWOOD RAVENSWOOD SCHOOLS LTD,"5,792.00",19/08/2015
Delivery Units,Adults and Communities,Other Agencies - Third Party P,30088660,NORWOOD RAVENSWOOD SCHOOLS LTD,-321.80,19/08/2015
Delivery Units,Adults and Communities,Other Agencies - Third Party P,30088661,NORWOOD RAVENSWOOD SCHOOLS LTD,"7,788.00",19/08/2015
Delivery Units,Adults and Communities,Other Agencies - Third Party P,30088662,NORWOOD RAVENSWOOD SCHOOLS LTD,-505.20,19/08/2015
Delivery Units,Adults and Communities,Other Agencies - Third Party P,30088669,NORWOOD RAVENSWOOD SCHOOLS LTD,"4,748.00",19/08/2015
Delivery Units,Adults and Communities,Other Agencies - Third Party P,30088670,NORWOOD RAVENSWOOD SCHOOLS LTD,-505.20,19/08/2015
Delivery Units,Adults and Communities,Other Agencies - Third Party P,30088671,NORWOOD RAVENSWOOD SCHOOLS LTD,"4,924.00",19/08/2015
Delivery Units,Adults and Communities,Other Agencies - Third Party P,30088672,NORWOOD RAVENSWOOD SCHOOLS LTD,-505.20,19/08/2015
Delivery Units,Adults and Communities,Other Agencies - Third Party P,30088675,NORWOOD RAVENSWOOD SCHOOLS LTD,"7,148.00",19/08/2015
Delivery Units,Adults and Communities,Other Agencies - Third Party P,30088676,NORWOOD RAVENSWOOD SCHOOLS LTD,-321.80,19/08/2015
Delivery Units,Adults and Communities,Other Agencies - Third Party P,30088677,NORWOOD RAVENSWOOD SCHOOLS LTD,"8,224.00",19/08/2015
Delivery Units,Adults and Communities,Other Agencies - Third Party P,30088678,NORWOOD RAVENSWOOD SCHOOLS LTD,-348.60,19/08/2015
Delivery Units,Adults and Communities,Other Agencies - Third Party P,30088681,NORWOOD RAVENSWOOD SCHOOLS LTD,"5,540.00",19/08/2015
Delivery Units,Adults and Communities,Other Agencies - Third Party P,30089923,NORWOOD RAVENSWOOD SCHOOLS LTD,"1,520.00",26/08/2015
Delivery Units,Adults and Communities,Other Agencies - Third Party P,30089924,NORWOOD RAVENSWOOD SCHOOLS LTD,729.60,26/08/2015
Delivery Units,Adults and Communities,Other Agencies - Third Party P,30089925,NORWOOD RAVENSWOOD SCHOOLS LTD,304.00,26/08/2015
Delivery Units,Adults and Communities,Other Agencies - Third Party P,30089926,NORWOOD RAVENSWOOD SCHOOLS LTD,182.40,26/08/2015
Delivery Units,Adults and Communities,Other Agencies - Third Party P,30089927,NORWOOD RAVENSWOOD SCHOOLS LTD,790.40,26/08/2015
Delivery Units,Adults and Communities,Other Agencies - Third Party P,30089928,NORWOOD RAVENSWOOD SCHOOLS LTD,243.20,26/08/2015
Delivery Units,Adults and Communities,Other Agencies - Third Party P,30089929,NORWOOD RAVENSWOOD SCHOOLS LTD,486.40,26/08/2015
Delivery Units,Adults and Communities,Other Agencies - Third Party P,30089934,NORWOOD RAVENSWOOD SCHOOLS LTD,"1,021.44",26/08/2015
Delivery Units,Adults and Communities,Other Agencies - Third Party P,30089940,NORWOOD RAVENSWOOD SCHOOLS LTD,"1,021.44",26/08/2015
Delivery Units,Adults and Communities,Other Agencies - Third Party P,30089945,NORWOOD RAVENSWOOD SCHOOLS LTD,121.60,26/08/2015
Delivery Units,Adults and Communities,Other Agencies - Third Party P,30089946,NORWOOD RAVENSWOOD SCHOOLS LTD,820.80,26/08/2015
Delivery Units,Adults and Communities,Other Agencies - Third Party P,30089949,NORWOOD RAVENSWOOD SCHOOLS LTD,364.80,26/08/2015
Delivery Units,Adults and Communities,Other Agencies - Third Party P,30089954,NORWOOD RAVENSWOOD SCHOOLS LTD,"5,810.92",26/08/2015
Delivery Units,Adults and Communities,Other Agencies - Third Party P,30088178,OLYMPUS CARE SERVICES LTD,480.00,18/08/2015
Delivery Units,Adults and Communities,Other Agencies - Third Party P,30087119,ONE STEP (SUPPORT) LTD,"13,999.43",04/08/2015
Delivery Units,Adults and Communities,Other Agencies - Third Party P,30087210,ONE STEP (SUPPORT) LTD,"1,339.80",07/08/2015
Delivery Units,Adults and Communities,Other Agencies - Third Party P,30087211,ONE STEP (SUPPORT) LTD,"3,395.80",07/08/2015
Delivery Units,Adults and Communities,Other Agencies - Third Party P,30087212,ONE STEP (SUPPORT) LTD,638.00,07/08/2015
Delivery Units,Adults and Communities,Other Agencies - Third Party P,30087213,ONE STEP (SUPPORT) LTD,638.00,07/08/2015
Delivery Units,Adults and Communities,Other Agencies - Third Party P,30087214,ONE STEP (SUPPORT) LTD,956.00,07/08/2015
Delivery Units,Adults and Communities,Other Agencies - Third Party P,30087221,ONE STEP (SUPPORT) LTD,"2,618.20",07/08/2015
Delivery Units,Adults and Communities,Other Agencies - Third Party P,30087798,PARADISE HOUSE ASSOCIATION LTD,"3,514.56",17/08/2015
Delivery Units,Adults and Communities,Other Agencies - Third Party P,30087799,PARADISE HOUSE ASSOCIATION LTD,-356.28,17/08/2015
Delivery Units,Adults and Communities,Other Agencies - Third Party P,30087293,PARKCARE HOMES (NO2) LIMITED,"5,155.04",10/08/2015
Delivery Units,Adults and Communities,Other Agencies - Third Party P,30087294,PARKCARE HOMES (NO2) LIMITED,-356.28,10/08/2015
Delivery Units,Adults and Communities,Other Agencies - Third Party P,30089774,PAULMAY RESIDENTIAL HOME,"2,184.04",27/08/2015
Delivery Units,Adults and Communities,Other Agencies - Third Party P,30087888,PILLARCARE,"6,328.00",17/08/2015
Delivery Units,Adults and Communities,Other Agencies - Third Party P,30087036,PLAN PERSONNEL,26.30,04/08/2015
Delivery Units,Adults and Communities,Other Agencies - Third Party P,30087037,PLAN PERSONNEL,26.30,04/08/2015
Delivery Units,Adults and Communities,Other Agencies - Third Party P,30087038,PLAN PERSONNEL,26.30,04/08/2015
Delivery Units,Adults and Communities,Other Agencies - Third Party P,30087039,PLAN PERSONNEL,26.30,04/08/2015
Delivery Units,Adults and Communities,Other Agencies - Third Party P,30087040,PLAN PERSONNEL,26.30,04/08/2015
Delivery Units,Adults and Communities,Other Agencies - Third Party P,30087041,PLAN PERSONNEL,26.30,04/08/2015
Delivery Units,Adults and Communities,Other Agencies - Third Party P,30087720,PLAN PERSONNEL,26.30,17/08/2015
Delivery Units,Adults and Communities,Other Agencies - Third Party P,30087721,PLAN PERSONNEL,52.62,17/08/2015
Delivery Units,Adults and Communities,Other Agencies - Third Party P,30087722,PLAN PERSONNEL,141.44,17/08/2015
Delivery Units,Adults and Communities,Other Agencies - Third Party P,30087723,PLAN PERSONNEL,72.38,17/08/2015
Delivery Units,Adults and Communities,Other Agencies - Third Party P,30087724,PLAN PERSONNEL,115.12,17/08/2015
Delivery Units,Adults and Communities,Other Agencies - Third Party P,30087725,PLAN PERSONNEL,26.30,17/08/2015
Delivery Units,Adults and Communities,Other Agencies - Third Party P,30087726,PLAN PERSONNEL,52.60,17/08/2015
Delivery Units,Adults and Communities,Other Agencies - Third Party P,30087727,PLAN PERSONNEL,88.76,17/08/2015
Delivery Units,Adults and Communities,Other Agencies - Third Party P,30087728,PLAN PERSONNEL,101.92,17/08/2015
Delivery Units,Adults and Communities,Other Agencies - Third Party P,30087729,PLAN PERSONNEL,59.22,17/08/2015
Delivery Units,Adults and Communities,Other Agencies - Third Party P,30087730,PLAN PERSONNEL,151.28,17/08/2015
Delivery Units,Adults and Communities,Other Agencies - Third Party P,30087731,PLAN PERSONNEL,39.44,17/08/2015
Delivery Units,Adults and Communities,Other Agencies - Third Party P,30087732,PLAN PERSONNEL,26.30,17/08/2015
Delivery Units,Adults and Communities,Other Agencies - Third Party P,30087733,PLAN PERSONNEL,65.76,17/08/2015
Delivery Units,Adults and Communities,Other Agencies - Third Party P,30087734,PLAN PERSONNEL,6.58,17/08/2015
Delivery Units,Adults and Communities,Other Agencies - Third Party P,30087735,PLAN PERSONNEL,13.15,17/08/2015
Delivery Units,Adults and Communities,Other Agencies - Third Party P,30087736,PLAN PERSONNEL,19.73,17/08/2015
Delivery Units,Adults and Communities,Other Agencies - Third Party P,30087737,PLAN PERSONNEL,6.58,17/08/2015
Delivery Units,Adults and Communities,Other Agencies - Third Party P,30087738,PLAN PERSONNEL,9.86,17/08/2015
Delivery Units,Adults and Communities,Other Agencies - Third Party P,30087739,PLAN PERSONNEL,16.44,17/08/2015
Delivery Units,Adults and Communities,Other Agencies - Third Party P,30087740,PLAN PERSONNEL,6.58,17/08/2015
Delivery Units,Adults and Communities,Other Agencies - Third Party P,30087741,PLAN PERSONNEL,9.86,17/08/2015
Delivery Units,Adults and Communities,Other Agencies - Third Party P,30087742,PLAN PERSONNEL,6.58,17/08/2015
Delivery Units,Adults and Communities,Other Agencies - Third Party P,30087743,PLAN PERSONNEL,6.58,17/08/2015
Delivery Units,Adults and Communities,Other Agencies - Third Party P,30087744,PLAN PERSONNEL,6.58,17/08/2015
Delivery Units,Adults and Communities,Other Agencies - Third Party P,30087745,PLAN PERSONNEL,6.58,17/08/2015
Delivery Units,Adults and Communities,Other Agencies - Third Party P,30087746,PLAN PERSONNEL,13.16,17/08/2015
Delivery Units,Adults and Communities,Other Agencies - Third Party P,30087747,PLAN PERSONNEL,105.22,17/08/2015
Delivery Units,Adults and Communities,Other Agencies - Third Party P,30087748,PLAN PERSONNEL,105.22,17/08/2015
Delivery Units,Adults and Communities,Other Agencies - Third Party P,30087749,PLAN PERSONNEL,148.00,17/08/2015
Delivery Units,Adults and Communities,Other Agencies - Third Party P,30087750,PLAN PERSONNEL,92.12,17/08/2015
Delivery Units,Adults and Communities,Other Agencies - Third Party P,30087751,PLAN PERSONNEL,200.62,17/08/2015
Delivery Units,Adults and Communities,Other Agencies - Third Party P,30088741,PLAN PERSONNEL,115.08,21/08/2015
Delivery Units,Adults and Communities,Other Agencies - Third Party P,30088742,PLAN PERSONNEL,78.94,21/08/2015
Delivery Units,Adults and Communities,Other Agencies - Third Party P,30088743,PLAN PERSONNEL,26.32,21/08/2015
Delivery Units,Adults and Communities,Other Agencies - Third Party P,30088744,PLAN PERSONNEL,62.46,21/08/2015
Delivery Units,Adults and Communities,Other Agencies - Third Party P,30088745,PLAN PERSONNEL,124.96,21/08/2015
Delivery Units,Adults and Communities,Other Agencies - Third Party P,30088746,PLAN PERSONNEL,65.80,21/08/2015
Delivery Units,Adults and Communities,Other Agencies - Third Party P,30088747,PLAN PERSONNEL,95.36,21/08/2015
Delivery Units,Adults and Communities,Other Agencies - Third Party P,30088748,PLAN PERSONNEL,26.30,21/08/2015
Delivery Units,Adults and Communities,Other Agencies - Third Party P,30088749,PLAN PERSONNEL,59.18,21/08/2015
Delivery Units,Adults and Communities,Other Agencies - Third Party P,30088750,PLAN PERSONNEL,32.88,21/08/2015
Delivery Units,Adults and Communities,Other Agencies - Third Party P,30088751,PLAN PERSONNEL,52.60,21/08/2015
Delivery Units,Adults and Communities,Other Agencies - Third Party P,30088752,PLAN PERSONNEL,95.34,21/08/2015
Delivery Units,Adults and Communities,Other Agencies - Third Party P,30088753,PLAN PERSONNEL,26.30,21/08/2015
Delivery Units,Adults and Communities,Other Agencies - Third Party P,30088754,PLAN PERSONNEL,101.94,21/08/2015
Delivery Units,Adults and Communities,Other Agencies - Third Party P,30088755,PLAN PERSONNEL,19.73,21/08/2015
Delivery Units,Adults and Communities,Other Agencies - Third Party P,30088756,PLAN PERSONNEL,39.45,21/08/2015
Delivery Units,Adults and Communities,Other Agencies - Third Party P,30089618,PLAN PERSONNEL,72.38,25/08/2015
Delivery Units,Adults and Communities,Other Agencies - Third Party P,30089619,PLAN PERSONNEL,197.34,25/08/2015
Delivery Units,Adults and Communities,Other Agencies - Third Party P,30089620,PLAN PERSONNEL,59.22,25/08/2015
Delivery Units,Adults and Communities,Other Agencies - Third Party P,30089621,PLAN PERSONNEL,131.54,25/08/2015
Delivery Units,Adults and Communities,Other Agencies - Third Party P,30089622,PLAN PERSONNEL,59.22,25/08/2015
Delivery Units,Adults and Communities,Other Agencies - Third Party P,30089623,PLAN PERSONNEL,134.87,25/08/2015
Delivery Units,Adults and Communities,Other Agencies - Third Party P,30089624,PLAN PERSONNEL,32.88,25/08/2015
Delivery Units,Adults and Communities,Other Agencies - Third Party P,30089625,PLAN PERSONNEL,65.75,25/08/2015
Delivery Units,Adults and Communities,Other Agencies - Third Party P,30089626,PLAN PERSONNEL,27.00,25/08/2015
Delivery Units,Adults and Communities,Other Agencies - Third Party P,30089627,PLAN PERSONNEL,52.60,25/08/2015
Delivery Units,Adults and Communities,Other Agencies - Third Party P,30089628,PLAN PERSONNEL,75.66,25/08/2015
Delivery Units,Adults and Communities,Other Agencies - Third Party P,30089629,PLAN PERSONNEL,167.72,25/08/2015
Delivery Units,Adults and Communities,Other Agencies - Third Party P,30089630,PLAN PERSONNEL,39.45,25/08/2015
Delivery Units,Adults and Communities,Other Agencies - Third Party P,30089631,PLAN PERSONNEL,13.15,25/08/2015
Delivery Units,Adults and Communities,Other Agencies - Third Party P,30089742,PLAN PERSONNEL,52.64,26/08/2015
Delivery Units,Adults and Communities,Other Agencies - Third Party P,30089880,PLATINUM HEALTH RESOURCES LTD,"1,597.84",27/08/2015
Delivery Units,Adults and Communities,Other Agencies - Third Party P,30090052,PLATINUM HEALTH RESOURCES LTD,"4,949.11",27/08/2015
Delivery Units,Adults and Communities,Other Agencies - Third Party P,30090060,PLATINUM HEALTH RESOURCES LTD,"3,893.11",27/08/2015
Delivery Units,Adults and Communities,Other Agencies - Third Party P,30090075,PLATINUM HEALTH RESOURCES LTD,"3,764.29",27/08/2015
Delivery Units,Adults and Communities,Other Agencies - Third Party P,30090170,PLATINUM HEALTH RESOURCES LTD,"3,764.29",28/08/2015
Delivery Units,Adults and Communities,Other Agencies - Third Party P,30087390,PROSPECTS STAFF BUREAU LTD,373.75,11/08/2015
Delivery Units,Adults and Communities,Other Agencies - Third Party P,30087391,PROSPECTS STAFF BUREAU LTD,373.75,11/08/2015
Delivery Units,Adults and Communities,Other Agencies - Third Party P,30087716,PROSPECTS STAFF BUREAU LTD,373.75,17/08/2015
Delivery Units,Adults and Communities,Other Agencies - Third Party P,30089617,PROSPECTS STAFF BUREAU LTD,373.75,25/08/2015
Delivery Units,Adults and Communities,Other Agencies - Third Party P,30087796,PRT BARNET CARERS CENTRE,"1,015.00",17/08/2015
Delivery Units,Adults and Communities,Other Agencies - Third Party P,30088309,QUANTUM CARE LIMITED,"2,320.53",19/08/2015
Delivery Units,Adults and Communities,Other Agencies - Third Party P,30088310,QUANTUM CARE LIMITED,-559.33,19/08/2015
Delivery Units,Adults and Communities,Other Agencies - Third Party P,30088311,QUANTUM CARE LIMITED,"2,922.86",19/08/2015
Delivery Units,Adults and Communities,Other Agencies - Third Party P,30090011,RAINBOW HOMES LONDON LTD,"4,110.60",27/08/2015
Delivery Units,Adults and Communities,Other Agencies - Third Party P,30087791,RAPKYNS CARE CENTRE,"6,394.86",17/08/2015
Delivery Units,Adults and Communities,Other Agencies - Third Party P,30090024,RAPKYNS CARE CENTRE,"6,394.86",27/08/2015
Delivery Units,Adults and Communities,Other Agencies - Third Party P,30088618,REAL LIFE OPTIONS,"5,252.28",19/08/2015
Delivery Units,Adults and Communities,Other Agencies - Third Party P,30088619,REAL LIFE OPTIONS,-321.80,19/08/2015
Delivery Units,Adults and Communities,Other Agencies - Third Party P,30087309,REDACTED - PERSONAL DATA,"4,705.89",10/08/2015
Delivery Units,Adults and Communities,Other Agencies - Third Party P,30087310,REDACTED - PERSONAL DATA,-344.36,10/08/2015
Delivery Units,Adults and Communities,Other Agencies - Third Party P,30087311,REDACTED - PERSONAL DATA,"4,705.89",10/08/2015
Delivery Units,Adults and Communities,Other Agencies - Third Party P,30087312,REDACTED - PERSONAL DATA,-344.79,10/08/2015
Delivery Units,Adults and Communities,Other Agencies - Third Party P,30087313,REDACTED - PERSONAL DATA,"4,862.75",10/08/2015
Delivery Units,Adults and Communities,Other Agencies - Third Party P,30087314,REDACTED - PERSONAL DATA,-356.28,10/08/2015
Delivery Units,Adults and Communities,Other Agencies - Third Party P,30089776,REHABILITATION EDUCATION AND,"3,348.00",26/08/2015
Delivery Units,Adults and Communities,Other Agencies - Third Party P,30089777,REHABILITATION EDUCATION AND,-505.20,26/08/2015
Delivery Units,Adults and Communities,Other Agencies - Third Party P,30088626,RESIDENTIAL CARE PROVIDERS LTD,"7,800.00",19/08/2015
Delivery Units,Adults and Communities,Other Agencies - Third Party P,30088627,RESIDENTIAL CARE PROVIDERS LTD,-321.80,19/08/2015
Delivery Units,Adults and Communities,Other Agencies - Third Party P,30087929,RIDGEWAY RESIDENTIAL HOME,"2,095.56",17/08/2015
Delivery Units,Adults and Communities,Other Agencies - Third Party P,30087898,ROLAND COMMUNITY CARE LTD,"1,938.86",17/08/2015
Delivery Units,Adults and Communities,Other Agencies - Third Party P,30087920,ROLAND COMMUNITY CARE LTD,"2,542.61",17/08/2015
Delivery Units,Adults and Communities,Other Agencies - Third Party P,30087372,ROLAND RESIDENTIAL CARE HOMES,"3,741.39",10/08/2015
Delivery Units,Adults and Communities,Other Agencies - Third Party P,30089902,ROLAND RESIDENTIAL CARE HOMES,"3,741.39",26/08/2015
Delivery Units,Adults and Communities,Other Agencies - Third Party P,30087333,ROLAND RESIDENTIAL CARE HOMES LTD,"3,225.24",10/08/2015
Delivery Units,Adults and Communities,Other Agencies - Third Party P,30087363,ROLAND RESIDENTIAL CARE HOMES LTD,"4,196.51",10/08/2015
Delivery Units,Adults and Communities,Other Agencies - Third Party P,30087368,ROLAND RESIDENTIAL CARE HOMES LTD,"3,426.96",10/08/2015
Delivery Units,Adults and Communities,Other Agencies - Third Party P,30088637,ROLAND RESIDENTIAL CARE HOMES LTD,"4,196.51",19/08/2015
Delivery Units,Adults and Communities,Other Agencies - Third Party P,30090186,ROSEACRES CARE HOME LIMITED,"2,730.05",28/08/2015
Delivery Units,Adults and Communities,Other Agencies - Third Party P,30089782,ROYAL MENCAP SOCIETY,"1,722.60",26/08/2015
Delivery Units,Adults and Communities,Other Agencies - Third Party P,30089783,ROYAL MENCAP SOCIETY,"1,595.00",26/08/2015
Delivery Units,Adults and Communities,Other Agencies - Third Party P,30088986,SANCTUARY CARE LTD,"2,018.28",25/08/2015
Delivery Units,Adults and Communities,Other Agencies - Third Party P,30089725,SAXON COURT,"2,434.08",26/08/2015
Delivery Units,Adults and Communities,Other Agencies - Third Party P,30089726,SAXON COURT,-559.33,26/08/2015
Delivery Units,Adults and Communities,Other Agencies - Third Party P,30089879,SCIMITAR CARE HOTELS PLC,"1,267.00",26/08/2015
Delivery Units,Adults and Communities,Other Agencies - Third Party P,30087196,SCOPE,322.28,12/08/2015
Delivery Units,Adults and Communities,Other Agencies - Third Party P,30088128,SCOPE,-344.79,18/08/2015
Delivery Units,Adults and Communities,Other Agencies - Third Party P,30089733,SCOPE,"3,259.40",26/08/2015
Delivery Units,Adults and Communities,Other Agencies - Third Party P,30089734,SCOPE,-541.29,26/08/2015
Delivery Units,Adults and Communities,Other Agencies - Third Party P,30089735,SCOPE,"3,368.05",26/08/2015
Delivery Units,Adults and Communities,Other Agencies - Third Party P,30089736,SCOPE,-559.33,26/08/2015
Delivery Units,Adults and Communities,Other Agencies - Third Party P,30090001,SCOPE,"3,000.68",27/08/2015
Delivery Units,Adults and Communities,Other Agencies - Third Party P,30090002,SCOPE,-356.28,27/08/2015
Delivery Units,Adults and Communities,Other Agencies - Third Party P,30090115,SCOPE,"3,368.05",28/08/2015
Delivery Units,Adults and Communities,Other Agencies - Third Party P,30090116,SCOPE,-559.33,28/08/2015
Delivery Units,Adults and Communities,Other Agencies - Third Party P,30090117,SCOPE,"4,000.00",28/08/2015
Delivery Units,Adults and Communities,Other Agencies - Third Party P,30090118,SCOPE,-362.80,28/08/2015
Delivery Units,Adults and Communities,Other Agencies - Third Party P,30090119,SCOPE,"4,000.00",28/08/2015
Delivery Units,Adults and Communities,Other Agencies - Third Party P,30090120,SCOPE,-366.40,28/08/2015
Delivery Units,Adults and Communities,Other Agencies - Third Party P,30087285,SCOTTISH SOCIETY FOR AUTISM,"5,783.64",10/08/2015
Delivery Units,Adults and Communities,Other Agencies - Third Party P,30087286,SCOTTISH SOCIETY FOR AUTISM,-402.00,10/08/2015
Delivery Units,Adults and Communities,Other Agencies - Third Party P,30090164,SEAFORTH LODGE,"2,418.04",28/08/2015
Delivery Units,Adults and Communities,Other Agencies - Third Party P,30090165,SEAFORTH LODGE,"2,418.04",28/08/2015
Delivery Units,Adults and Communities,Other Agencies - Third Party P,30090168,SEAFORTH LODGE,"2,418.04",28/08/2015
Delivery Units,Adults and Communities,Other Agencies - Third Party P,30090178,SEAFORTH LODGE,"2,216.41",28/08/2015
Delivery Units,Adults and Communities,Other Agencies - Third Party P,30090237,SEAFORTH LODGE,"2,418.04",28/08/2015
Delivery Units,Adults and Communities,Other Agencies - Third Party P,30087603,SELF UNLIMITED-LONDON REGION,"3,920.00",17/08/2015
Delivery Units,Adults and Communities,Other Agencies - Third Party P,30087604,SELF UNLIMITED-LONDON REGION,"3,920.00",17/08/2015
Delivery Units,Adults and Communities,Other Agencies - Third Party P,30087605,SELF UNLIMITED-LONDON REGION,"3,920.00",17/08/2015
Delivery Units,Adults and Communities,Other Agencies - Third Party P,30087606,SELF UNLIMITED-LONDON REGION,"2,120.72",17/08/2015
Delivery Units,Adults and Communities,Other Agencies - Third Party P,30087607,SELF UNLIMITED-LONDON REGION,"4,221.36",17/08/2015
Delivery Units,Adults and Communities,Other Agencies - Third Party P,30087608,SELF UNLIMITED-LONDON REGION,"1,520.00",17/08/2015
Delivery Units,Adults and Communities,Other Agencies - Third Party P,30087609,SELF UNLIMITED-LONDON REGION,"3,947.12",17/08/2015
Delivery Units,Adults and Communities,Other Agencies - Third Party P,30087610,SELF UNLIMITED-LONDON REGION,"1,781.44",17/08/2015
Delivery Units,Adults and Communities,Other Agencies - Third Party P,30087611,SELF UNLIMITED-LONDON REGION,"1,690.24",17/08/2015
Delivery Units,Adults and Communities,Other Agencies - Third Party P,30087612,SELF UNLIMITED-LONDON REGION,"1,088.32",17/08/2015
Delivery Units,Adults and Communities,Other Agencies - Third Party P,30087613,SELF UNLIMITED-LONDON REGION,"4,025.56",17/08/2015
Delivery Units,Adults and Communities,Other Agencies - Third Party P,30087614,SELF UNLIMITED-LONDON REGION,"3,279.56",17/08/2015
Delivery Units,Adults and Communities,Other Agencies - Third Party P,30087615,SELF UNLIMITED-LONDON REGION,"1,459.20",17/08/2015
Delivery Units,Adults and Communities,Other Agencies - Third Party P,30087616,SELF UNLIMITED-LONDON REGION,"6,157.84",17/08/2015
Delivery Units,Adults and Communities,Other Agencies - Third Party P,30087617,SELF UNLIMITED-LONDON REGION,"3,240.64",17/08/2015
Delivery Units,Adults and Communities,Other Agencies - Third Party P,30087618,SELF UNLIMITED-LONDON REGION,"2,783.44",17/08/2015
Delivery Units,Adults and Communities,Other Agencies - Third Party P,30087619,SELF UNLIMITED-LONDON REGION,"2,342.64",17/08/2015
Delivery Units,Adults and Communities,Other Agencies - Third Party P,30087620,SELF UNLIMITED-LONDON REGION,"2,145.04",17/08/2015
Delivery Units,Adults and Communities,Other Agencies - Third Party P,30087621,SELF UNLIMITED-LONDON REGION,"3,432.76",17/08/2015
Delivery Units,Adults and Communities,Other Agencies - Third Party P,30087622,SELF UNLIMITED-LONDON REGION,"4,496.16",17/08/2015
Delivery Units,Adults and Communities,Other Agencies - Third Party P,30087623,SELF UNLIMITED-LONDON REGION,"11,354.64",17/08/2015
Delivery Units,Adults and Communities,Other Agencies - Third Party P,30087624,SELF UNLIMITED-LONDON REGION,"3,947.12",17/08/2015
Delivery Units,Adults and Communities,Other Agencies - Third Party P,30087626,SELF UNLIMITED-LONDON REGION,"3,149.44",17/08/2015
Delivery Units,Adults and Communities,Other Agencies - Third Party P,30087627,SELF UNLIMITED-LONDON REGION,"1,094.40",17/08/2015
Delivery Units,Adults and Communities,Other Agencies - Third Party P,30087628,SELF UNLIMITED-LONDON REGION,"1,428.80",17/08/2015
Delivery Units,Adults and Communities,Other Agencies - Third Party P,30087629,SELF UNLIMITED-LONDON REGION,"4,859.12",17/08/2015
Delivery Units,Adults and Communities,Other Agencies - Third Party P,30087630,SELF UNLIMITED-LONDON REGION,"1,921.28",17/08/2015
Delivery Units,Adults and Communities,Other Agencies - Third Party P,30087631,SELF UNLIMITED-LONDON REGION,"1,914.00",17/08/2015
Delivery Units,Adults and Communities,Other Agencies - Third Party P,30087632,SELF UNLIMITED-LONDON REGION,"2,926.32",17/08/2015
Delivery Units,Adults and Communities,Other Agencies - Third Party P,30087633,SELF UNLIMITED-LONDON REGION,"2,110.96",17/08/2015
Delivery Units,Adults and Communities,Other Agencies - Third Party P,30087634,SELF UNLIMITED-LONDON REGION,"1,177.20",17/08/2015
Delivery Units,Adults and Communities,Other Agencies - Third Party P,30088180,SELF UNLIMITED-LONDON REGION,"1,921.28",18/08/2015
Delivery Units,Adults and Communities,Other Agencies - Third Party P,30090032,SELF UNLIMITED-LONDON REGION,"2,291.17",27/08/2015
Delivery Units,Adults and Communities,Other Agencies - Third Party P,30090033,SELF UNLIMITED-LONDON REGION,-559.33,27/08/2015
Delivery Units,Adults and Communities,Other Agencies - Third Party P,30090036,SELF UNLIMITED-LONDON REGION,"3,301.86",27/08/2015
Delivery Units,Adults and Communities,Other Agencies - Third Party P,30090037,SELF UNLIMITED-LONDON REGION,-356.28,27/08/2015
Delivery Units,Adults and Communities,Other Agencies - Third Party P,30087373,SENSE CAS FINANCE TEAM,"8,206.94",10/08/2015
Delivery Units,Adults and Communities,Other Agencies - Third Party P,30087374,SENSE CAS FINANCE TEAM,-559.33,10/08/2015
Delivery Units,Adults and Communities,Other Agencies - Third Party P,30087375,SENSE CAS FINANCE TEAM,"6,511.68",10/08/2015
Delivery Units,Adults and Communities,Other Agencies - Third Party P,30087376,SENSE CAS FINANCE TEAM,-400.60,10/08/2015
Delivery Units,Adults and Communities,Other Agencies - Third Party P,30087377,SENSE CAS FINANCE TEAM,"6,773.28",10/08/2015
Delivery Units,Adults and Communities,Other Agencies - Third Party P,30087378,SENSE CAS FINANCE TEAM,-400.60,10/08/2015
Delivery Units,Adults and Communities,Other Agencies - Third Party P,30087379,SENSE CAS FINANCE TEAM,"4,754.52",10/08/2015
Delivery Units,Adults and Communities,Other Agencies - Third Party P,30087380,SENSE CAS FINANCE TEAM,-400.60,10/08/2015
Delivery Units,Adults and Communities,Other Agencies - Third Party P,30087936,SENSE CAS FINANCE TEAM,"6,511.68",17/08/2015
Delivery Units,Adults and Communities,Other Agencies - Third Party P,30087937,SENSE CAS FINANCE TEAM,-319.40,17/08/2015
Delivery Units,Adults and Communities,Other Agencies - Third Party P,30087938,SENSE CAS FINANCE TEAM,"2,413.60",17/08/2015
Delivery Units,Adults and Communities,Other Agencies - Third Party P,30087939,SENSE CAS FINANCE TEAM,"3,866.28",17/08/2015
Delivery Units,Adults and Communities,Other Agencies - Third Party P,30087940,SENSE CAS FINANCE TEAM,"3,768.00",17/08/2015
Delivery Units,Adults and Communities,Other Agencies - Third Party P,30090021,SEVA CARE HOME,"2,216.41",27/08/2015
Delivery Units,Adults and Communities,Other Agencies - Third Party P,30090022,SEVA CARE HOME,"2,216.41",27/08/2015
Delivery Units,Adults and Communities,Other Agencies - Third Party P,30087897,SGSL LTD,"2,707.60",17/08/2015
Delivery Units,Adults and Communities,Other Agencies - Third Party P,30087916,SGSL LTD,"2,880.00",17/08/2015
Delivery Units,Adults and Communities,Other Agencies - Third Party P,30087942,SGSL LTD,"2,399.88",17/08/2015
Delivery Units,Adults and Communities,Other Agencies - Third Party P,30087943,SGSL LTD,"2,720.00",17/08/2015
Delivery Units,Adults and Communities,Other Agencies - Third Party P,30087100,SHINE PARTNERSHIPS LTD,"2,640.00",04/08/2015
Delivery Units,Adults and Communities,Other Agencies - Third Party P,30087115,SHINE PARTNERSHIPS LTD,"2,640.00",04/08/2015
Delivery Units,Adults and Communities,Other Agencies - Third Party P,30089882,SHINE PARTNERSHIPS LTD,"2,640.00",26/08/2015
Delivery Units,Adults and Communities,Other Agencies - Third Party P,30089909,SHINE PARTNERSHIPS LTD,"2,640.00",26/08/2015
Delivery Units,Adults and Communities,Other Agencies - Third Party P,30087653,SNEH CARE,358.00,17/08/2015
Delivery Units,Adults and Communities,Other Agencies - Third Party P,30089692,SODEXO HEALTHCARE SERVICES LTD,"6,455.85",25/08/2015
Delivery Units,Adults and Communities,Other Agencies - Third Party P,30087181,SOMA HEALTHCARE LTD,300.00,06/08/2015
Delivery Units,Adults and Communities,Other Agencies - Third Party P,30087182,SOMA HEALTHCARE LTD,420.00,06/08/2015
Delivery Units,Adults and Communities,Other Agencies - Third Party P,30087183,SOMA HEALTHCARE LTD,300.00,06/08/2015
Delivery Units,Adults and Communities,Other Agencies - Third Party P,30087184,SOMA HEALTHCARE LTD,430.00,06/08/2015
Delivery Units,Adults and Communities,Other Agencies - Third Party P,30089669,SOMA HEALTHCARE LTD,320.00,25/08/2015
Delivery Units,Adults and Communities,Other Agencies - Third Party P,30090148,SOMA HEALTHCARE LTD,"1,200.00",28/08/2015
Delivery Units,Adults and Communities,Other Agencies - Third Party P,30090149,SOMA HEALTHCARE LTD,300.00,28/08/2015
Delivery Units,Adults and Communities,Other Agencies - Third Party P,30086957,SOUTHDOWN HOUSING ASSOC. LIMITED,"3,680.00",03/08/2015
Delivery Units,Adults and Communities,Other Agencies - Third Party P,30086958,SOUTHDOWN HOUSING ASSOC. LIMITED,-321.80,03/08/2015
Delivery Units,Adults and Communities,Other Agencies - Third Party P,30088650,SOUTHDOWN HOUSING ASSOC. LIMITED,"3,680.00",19/08/2015
Delivery Units,Adults and Communities,Other Agencies - Third Party P,30088651,SOUTHDOWN HOUSING ASSOC. LIMITED,-321.80,19/08/2015
Delivery Units,Adults and Communities,Other Agencies - Third Party P,30087284,SPRINGDENE,"3,617.70",10/08/2015
Delivery Units,Adults and Communities,Other Agencies - Third Party P,30087305,SPRINGDENE,580.51,10/08/2015
Delivery Units,Adults and Communities,Other Agencies - Third Party P,30087306,SPRINGDENE,"3,321.43",10/08/2015
Delivery Units,Adults and Communities,Other Agencies - Third Party P,30089994,SPRINGDENE,"6,948.50",27/08/2015
Delivery Units,Adults and Communities,Other Agencies - Third Party P,30089995,SPRINGDENE,"-1,821.86",27/08/2015
Delivery Units,Adults and Communities,Other Agencies - Third Party P,30087315,SPRINGVIEW,"3,100.00",10/08/2015
Delivery Units,Adults and Communities,Other Agencies - Third Party P,30090080,ST ELIZABETH'S CENTRE,"10,485.44",27/08/2015
Delivery Units,Adults and Communities,Other Agencies - Third Party P,30090081,ST ELIZABETH'S CENTRE,-385.95,27/08/2015
Delivery Units,Adults and Communities,Other Agencies - Third Party P,30090082,ST ELIZABETH'S CENTRE,"4,351.78",27/08/2015
Delivery Units,Adults and Communities,Other Agencies - Third Party P,30090083,ST ELIZABETH'S CENTRE,-561.32,27/08/2015
Delivery Units,Adults and Communities,Other Agencies - Third Party P,30090084,ST ELIZABETH'S CENTRE,"11,753.34",27/08/2015
Delivery Units,Adults and Communities,Other Agencies - Third Party P,30088139,ST JOSEPH'S PASTORAL CENTRE,412.00,18/08/2015
Delivery Units,Adults and Communities,Other Agencies - Third Party P,30088140,ST JOSEPH'S PASTORAL CENTRE,624.00,18/08/2015
Delivery Units,Adults and Communities,Other Agencies - Third Party P,30088141,ST JOSEPH'S PASTORAL CENTRE,640.00,18/08/2015
Delivery Units,Adults and Communities,Other Agencies - Third Party P,30088142,ST JOSEPH'S PASTORAL CENTRE,116.00,18/08/2015
Delivery Units,Adults and Communities,Other Agencies - Third Party P,30088143,ST JOSEPH'S PASTORAL CENTRE,496.00,18/08/2015
Delivery Units,Adults and Communities,Other Agencies - Third Party P,30088144,ST JOSEPH'S PASTORAL CENTRE,144.00,18/08/2015
Delivery Units,Adults and Communities,Other Agencies - Third Party P,30088145,ST JOSEPH'S PASTORAL CENTRE,212.00,18/08/2015
Delivery Units,Adults and Communities,Other Agencies - Third Party P,30088146,ST JOSEPH'S PASTORAL CENTRE,180.00,18/08/2015
Delivery Units,Adults and Communities,Other Agencies - Third Party P,30088147,ST JOSEPH'S PASTORAL CENTRE,76.00,18/08/2015
Delivery Units,Adults and Communities,Other Agencies - Third Party P,30088148,ST JOSEPH'S PASTORAL CENTRE,292.00,18/08/2015
Delivery Units,Adults and Communities,Other Agencies - Third Party P,30088149,ST JOSEPH'S PASTORAL CENTRE,456.00,18/08/2015
Delivery Units,Adults and Communities,Other Agencies - Third Party P,30089793,ST MUNGO ASSOCIATION,680.00,26/08/2015
Delivery Units,Adults and Communities,Other Agencies - Third Party P,30089794,ST MUNGO ASSOCIATION,-123.95,26/08/2015
Delivery Units,Adults and Communities,Other Agencies - Third Party P,30089798,ST MUNGO ASSOCIATION,"2,040.00",26/08/2015
Delivery Units,Adults and Communities,Other Agencies - Third Party P,30089799,ST MUNGO ASSOCIATION,-378.90,26/08/2015
Delivery Units,Adults and Communities,Other Agencies - Third Party P,30089800,ST MUNGO ASSOCIATION,"2,720.00",26/08/2015
Delivery Units,Adults and Communities,Other Agencies - Third Party P,30089801,ST MUNGO ASSOCIATION,-505.20,26/08/2015
Delivery Units,Adults and Communities,Other Agencies - Third Party P,30089802,ST MUNGO ASSOCIATION,"2,720.00",26/08/2015
Delivery Units,Adults and Communities,Other Agencies - Third Party P,30089803,ST MUNGO ASSOCIATION,-505.20,26/08/2015
Delivery Units,Adults and Communities,Other Agencies - Third Party P,30087777,ST RAPHAELS HOME,"2,462.29",17/08/2015
Delivery Units,Adults and Communities,Other Agencies - Third Party P,30087778,ST RAPHAELS HOME,-559.33,17/08/2015
Delivery Units,Adults and Communities,Other Agencies - Third Party P,30088983,ST. MARK'S DAY SERVICE,"1,999.08",27/08/2015
Delivery Units,Adults and Communities,Other Agencies - Third Party P,30087270,STALLCOMBE HOUSE FARM TRUST,"6,472.00",10/08/2015
Delivery Units,Adults and Communities,Other Agencies - Third Party P,30089955,STAMFORD NURSING CENTRE,"3,029.63",26/08/2015
Delivery Units,Adults and Communities,Other Agencies - Third Party P,30087880,SWANBOROUGH HOUSE,"3,722.44",17/08/2015
Delivery Units,Adults and Communities,Other Agencies - Third Party P,30089912,SYDMAR LODGE,"2,657.14",26/08/2015
Delivery Units,Adults and Communities,Other Agencies - Third Party P,30089913,SYDMAR LODGE,"2,878.57",26/08/2015
Delivery Units,Adults and Communities,Other Agencies - Third Party P,30089914,SYDMAR LODGE,"2,657.14",26/08/2015
Delivery Units,Adults and Communities,Other Agencies - Third Party P,30089915,SYDMAR LODGE,"2,418.04",26/08/2015
Delivery Units,Adults and Communities,Other Agencies - Third Party P,30089917,SYDMAR LODGE,"2,418.04",26/08/2015
Delivery Units,Adults and Communities,Other Agencies - Third Party P,30089918,SYDMAR LODGE,"-1,062.81",26/08/2015
Delivery Units,Adults and Communities,Other Agencies - Third Party P,30089957,TENTERDEN HOUSE,"3,957.50",26/08/2015
Delivery Units,Adults and Communities,Other Agencies - Third Party P,30089884,THE BANCROFT RESIDENTIAL HOME,858.02,26/08/2015
Delivery Units,Adults and Communities,Other Agencies - Third Party P,20022591,THE BARNETGROUP LIMITED,"32,119.94",03/08/2015
Delivery Units,Adults and Communities,Other Agencies - Third Party P,30088767,THE BARNETGROUP LIMITED,813.20,21/08/2015
Delivery Units,Adults and Communities,Other Agencies - Third Party P,30089668,THE BARNETGROUP LIMITED,"16,530.14",25/08/2015
Delivery Units,Adults and Communities,Other Agencies - Third Party P,30087772,THE CAMDEN SOCIETY,458.16,18/08/2015
Delivery Units,Adults and Communities,Other Agencies - Third Party P,30087773,THE CAMDEN SOCIETY,114.54,18/08/2015
Delivery Units,Adults and Communities,Other Agencies - Third Party P,30087774,THE CAMDEN SOCIETY,152.72,18/08/2015
Delivery Units,Adults and Communities,Other Agencies - Third Party P,30087775,THE CAMDEN SOCIETY,38.18,18/08/2015
Delivery Units,Adults and Communities,Other Agencies - Third Party P,30087457,THE CHRISTIAN CARE TRUST,"2,184.04",12/08/2015
Delivery Units,Adults and Communities,Other Agencies - Third Party P,30088640,THE CHRISTIAN CARE TRUST,"2,001.92",19/08/2015
Delivery Units,Adults and Communities,Other Agencies - Third Party P,30089878,THE CHRISTIAN CARE TRUST,"2,418.04",26/08/2015
Delivery Units,Adults and Communities,Other Agencies - Third Party P,30087316,THE CONIFERS,"2,497.58",10/08/2015
Delivery Units,Adults and Communities,Other Agencies - Third Party P,30087317,THE CONIFERS,-532.76,10/08/2015
Delivery Units,Adults and Communities,Other Agencies - Third Party P,30090076,THE DISABILITIES TRUST,"11,038.48",27/08/2015
Delivery Units,Adults and Communities,Other Agencies - Third Party P,30090077,THE DISABILITIES TRUST,"15,921.33",27/08/2015
Delivery Units,Adults and Communities,Other Agencies - Third Party P,30090078,THE DISABILITIES TRUST,"18,232.43",27/08/2015
Delivery Units,Adults and Communities,Other Agencies - Third Party P,30087589,THE EXTRA MILE CARE CO LTD,105.76,17/08/2015
Delivery Units,Adults and Communities,Other Agencies - Third Party P,30087590,THE EXTRA MILE CARE CO LTD,955.26,17/08/2015
Delivery Units,Adults and Communities,Other Agencies - Third Party P,30087591,THE EXTRA MILE CARE CO LTD,"1,515.58",17/08/2015
Delivery Units,Adults and Communities,Other Agencies - Third Party P,30087592,THE EXTRA MILE CARE CO LTD,84.68,17/08/2015
Delivery Units,Adults and Communities,Other Agencies - Third Party P,30087593,THE EXTRA MILE CARE CO LTD,52.88,17/08/2015
Delivery Units,Adults and Communities,Other Agencies - Third Party P,30087594,THE EXTRA MILE CARE CO LTD,444.64,17/08/2015
Delivery Units,Adults and Communities,Other Agencies - Third Party P,30087595,THE EXTRA MILE CARE CO LTD,582.00,17/08/2015
Delivery Units,Adults and Communities,Other Agencies - Third Party P,30087596,THE EXTRA MILE CARE CO LTD,150.86,17/08/2015
Delivery Units,Adults and Communities,Other Agencies - Third Party P,30087598,THE EXTRA MILE CARE CO LTD,592.48,17/08/2015
Delivery Units,Adults and Communities,Other Agencies - Third Party P,30087599,THE EXTRA MILE CARE CO LTD,201.02,17/08/2015
Delivery Units,Adults and Communities,Other Agencies - Third Party P,30087600,THE EXTRA MILE CARE CO LTD,"1,259.44",17/08/2015
Delivery Units,Adults and Communities,Other Agencies - Third Party P,30087601,THE EXTRA MILE CARE CO LTD,362.42,17/08/2015
Delivery Units,Adults and Communities,Other Agencies - Third Party P,30087602,THE EXTRA MILE CARE CO LTD,296.24,17/08/2015
Delivery Units,Adults and Communities,Other Agencies - Third Party P,30087664,THE EXTRA MILE CARE CO LTD,"2,778.74",17/08/2015
Delivery Units,Adults and Communities,Other Agencies - Third Party P,30087665,THE EXTRA MILE CARE CO LTD,-199.13,17/08/2015
Delivery Units,Adults and Communities,Other Agencies - Third Party P,30087666,THE EXTRA MILE CARE CO LTD,317.40,17/08/2015
Delivery Units,Adults and Communities,Other Agencies - Third Party P,30087667,THE EXTRA MILE CARE CO LTD,-169.28,17/08/2015
Delivery Units,Adults and Communities,Other Agencies - Third Party P,30087669,THE EXTRA MILE CARE CO LTD,42.32,17/08/2015
Delivery Units,Adults and Communities,Other Agencies - Third Party P,30087670,THE EXTRA MILE CARE CO LTD,-5.32,17/08/2015
Delivery Units,Adults and Communities,Other Agencies - Third Party P,30087671,THE EXTRA MILE CARE CO LTD,892.79,17/08/2015
Delivery Units,Adults and Communities,Other Agencies - Third Party P,30087672,THE EXTRA MILE CARE CO LTD,-19.79,17/08/2015
Delivery Units,Adults and Communities,Other Agencies - Third Party P,30087673,THE EXTRA MILE CARE CO LTD,971.14,17/08/2015
Delivery Units,Adults and Communities,Other Agencies - Third Party P,30087674,THE EXTRA MILE CARE CO LTD,-7.94,17/08/2015
Delivery Units,Adults and Communities,Other Agencies - Third Party P,30087675,THE EXTRA MILE CARE CO LTD,518.56,17/08/2015
Delivery Units,Adults and Communities,Other Agencies - Third Party P,30087676,THE EXTRA MILE CARE CO LTD,981.78,17/08/2015
Delivery Units,Adults and Communities,Other Agencies - Third Party P,30087677,THE EXTRA MILE CARE CO LTD,-82.10,17/08/2015
Delivery Units,Adults and Communities,Other Agencies - Third Party P,30087678,THE EXTRA MILE CARE CO LTD,"1,113.68",17/08/2015
Delivery Units,Adults and Communities,Other Agencies - Third Party P,30087679,THE EXTRA MILE CARE CO LTD,-10.58,17/08/2015
Delivery Units,Adults and Communities,Other Agencies - Third Party P,30087680,THE EXTRA MILE CARE CO LTD,378.10,17/08/2015
Delivery Units,Adults and Communities,Other Agencies - Third Party P,30087681,THE EXTRA MILE CARE CO LTD,-7.94,17/08/2015
Delivery Units,Adults and Communities,Other Agencies - Third Party P,30087682,THE EXTRA MILE CARE CO LTD,"1,727.90",17/08/2015
Delivery Units,Adults and Communities,Other Agencies - Third Party P,30087683,THE EXTRA MILE CARE CO LTD,-23.82,17/08/2015
Delivery Units,Adults and Communities,Other Agencies - Third Party P,30087686,THE EXTRA MILE CARE CO LTD,659.02,17/08/2015
Delivery Units,Adults and Communities,Other Agencies - Third Party P,30087687,THE EXTRA MILE CARE CO LTD,666.38,17/08/2015
Delivery Units,Adults and Communities,Other Agencies - Third Party P,30087688,THE EXTRA MILE CARE CO LTD,846.52,17/08/2015
Delivery Units,Adults and Communities,Other Agencies - Third Party P,30087689,THE EXTRA MILE CARE CO LTD,224.74,17/08/2015
Delivery Units,Adults and Communities,Other Agencies - Third Party P,30087690,THE EXTRA MILE CARE CO LTD,179.86,17/08/2015
Delivery Units,Adults and Communities,Other Agencies - Third Party P,30087692,THE EXTRA MILE CARE CO LTD,963.20,17/08/2015
Delivery Units,Adults and Communities,Other Agencies - Third Party P,30087693,THE EXTRA MILE CARE CO LTD,764.66,17/08/2015
Delivery Units,Adults and Communities,Other Agencies - Third Party P,30087694,THE EXTRA MILE CARE CO LTD,296.24,17/08/2015
Delivery Units,Adults and Communities,Other Agencies - Third Party P,30087695,THE EXTRA MILE CARE CO LTD,624.32,17/08/2015
Delivery Units,Adults and Communities,Other Agencies - Third Party P,30087696,THE EXTRA MILE CARE CO LTD,841.64,17/08/2015
Delivery Units,Adults and Communities,Other Agencies - Third Party P,30087697,THE EXTRA MILE CARE CO LTD,"1,200.24",17/08/2015
Delivery Units,Adults and Communities,Other Agencies - Third Party P,30087698,THE EXTRA MILE CARE CO LTD,420.82,17/08/2015
Delivery Units,Adults and Communities,Other Agencies - Third Party P,30087854,THE EXTRA MILE CARE CO LTD,79.32,17/08/2015
Delivery Units,Adults and Communities,Other Agencies - Third Party P,30087857,THE EXTRA MILE CARE CO LTD,13.22,17/08/2015
Delivery Units,Adults and Communities,Other Agencies - Third Party P,30087858,THE EXTRA MILE CARE CO LTD,343.72,17/08/2015
Delivery Units,Adults and Communities,Other Agencies - Third Party P,30087859,THE EXTRA MILE CARE CO LTD,349.36,17/08/2015
Delivery Units,Adults and Communities,Other Agencies - Third Party P,30087860,THE EXTRA MILE CARE CO LTD,508.00,17/08/2015
Delivery Units,Adults and Communities,Other Agencies - Third Party P,30087861,THE EXTRA MILE CARE CO LTD,914.09,17/08/2015
Delivery Units,Adults and Communities,Other Agencies - Third Party P,30087862,THE EXTRA MILE CARE CO LTD,333.20,17/08/2015
Delivery Units,Adults and Communities,Other Agencies - Third Party P,30087863,THE EXTRA MILE CARE CO LTD,280.36,17/08/2015
Delivery Units,Adults and Communities,Other Agencies - Third Party P,30087864,THE EXTRA MILE CARE CO LTD,899.28,17/08/2015
Delivery Units,Adults and Communities,Other Agencies - Third Party P,30087865,THE EXTRA MILE CARE CO LTD,"1,810.14",17/08/2015
Delivery Units,Adults and Communities,Other Agencies - Third Party P,30087866,THE EXTRA MILE CARE CO LTD,963.20,17/08/2015
Delivery Units,Adults and Communities,Other Agencies - Third Party P,30087867,THE EXTRA MILE CARE CO LTD,740.88,17/08/2015
Delivery Units,Adults and Communities,Other Agencies - Third Party P,30087868,THE EXTRA MILE CARE CO LTD,42.32,17/08/2015
Delivery Units,Adults and Communities,Other Agencies - Third Party P,30087869,THE EXTRA MILE CARE CO LTD,592.48,17/08/2015
Delivery Units,Adults and Communities,Other Agencies - Third Party P,30087870,THE EXTRA MILE CARE CO LTD,"1,037.12",17/08/2015
Delivery Units,Adults and Communities,Other Agencies - Third Party P,30087871,THE EXTRA MILE CARE CO LTD,740.88,17/08/2015
Delivery Units,Adults and Communities,Other Agencies - Third Party P,30087872,THE EXTRA MILE CARE CO LTD,328.08,17/08/2015
Delivery Units,Adults and Communities,Other Agencies - Third Party P,30087873,THE EXTRA MILE CARE CO LTD,581.84,17/08/2015
Delivery Units,Adults and Communities,Other Agencies - Third Party P,30088770,THE EXTRA MILE CARE CO LTD,423.20,21/08/2015
Delivery Units,Adults and Communities,Other Agencies - Third Party P,30088771,THE EXTRA MILE CARE CO LTD,"1,037.12",21/08/2015
Delivery Units,Adults and Communities,Other Agencies - Third Party P,30088772,THE EXTRA MILE CARE CO LTD,"2,144.70",21/08/2015
Delivery Units,Adults and Communities,Other Agencies - Third Party P,30088773,THE EXTRA MILE CARE CO LTD,"1,299.26",21/08/2015
Delivery Units,Adults and Communities,Other Agencies - Third Party P,30088774,THE EXTRA MILE CARE CO LTD,37.04,21/08/2015
Delivery Units,Adults and Communities,Other Agencies - Third Party P,30088775,THE EXTRA MILE CARE CO LTD,"1,952.52",21/08/2015
Delivery Units,Adults and Communities,Other Agencies - Third Party P,30088776,THE EXTRA MILE CARE CO LTD,261.92,21/08/2015
Delivery Units,Adults and Communities,Other Agencies - Third Party P,30088777,THE EXTRA MILE CARE CO LTD,296.24,21/08/2015
Delivery Units,Adults and Communities,Other Agencies - Third Party P,30088778,THE EXTRA MILE CARE CO LTD,635.04,21/08/2015
Delivery Units,Adults and Communities,Other Agencies - Third Party P,30088779,THE EXTRA MILE CARE CO LTD,740.88,21/08/2015
Delivery Units,Adults and Communities,Other Agencies - Third Party P,30088780,THE EXTRA MILE CARE CO LTD,132.20,21/08/2015
Delivery Units,Adults and Communities,Other Agencies - Third Party P,30088781,THE EXTRA MILE CARE CO LTD,423.04,21/08/2015
Delivery Units,Adults and Communities,Other Agencies - Third Party P,30088782,THE EXTRA MILE CARE CO LTD,277.74,21/08/2015
Delivery Units,Adults and Communities,Other Agencies - Third Party P,30088783,THE EXTRA MILE CARE CO LTD,296.24,21/08/2015
Delivery Units,Adults and Communities,Other Agencies - Third Party P,30088784,THE EXTRA MILE CARE CO LTD,63.52,21/08/2015
Delivery Units,Adults and Communities,Other Agencies - Third Party P,30088785,THE EXTRA MILE CARE CO LTD,296.24,21/08/2015
Delivery Units,Adults and Communities,Other Agencies - Third Party P,30088867,THE EXTRA MILE CARE CO LTD,856.94,21/08/2015
Delivery Units,Adults and Communities,Other Agencies - Third Party P,30088868,THE EXTRA MILE CARE CO LTD,616.26,21/08/2015
Delivery Units,Adults and Communities,Other Agencies - Third Party P,30088869,THE EXTRA MILE CARE CO LTD,476.00,21/08/2015
Delivery Units,Adults and Communities,Other Agencies - Third Party P,30088870,THE EXTRA MILE CARE CO LTD,296.24,21/08/2015
Delivery Units,Adults and Communities,Other Agencies - Third Party P,30088872,THE EXTRA MILE CARE CO LTD,613.60,21/08/2015
Delivery Units,Adults and Communities,Other Agencies - Third Party P,30088875,THE EXTRA MILE CARE CO LTD,222.32,21/08/2015
Delivery Units,Adults and Communities,Other Agencies - Third Party P,30088877,THE EXTRA MILE CARE CO LTD,832.86,21/08/2015
Delivery Units,Adults and Communities,Other Agencies - Third Party P,30088878,THE EXTRA MILE CARE CO LTD,251.18,21/08/2015
Delivery Units,Adults and Communities,Other Agencies - Third Party P,30088879,THE EXTRA MILE CARE CO LTD,296.24,21/08/2015
Delivery Units,Adults and Communities,Other Agencies - Third Party P,30088880,THE EXTRA MILE CARE CO LTD,312.20,21/08/2015
Delivery Units,Adults and Communities,Other Agencies - Third Party P,30088881,THE EXTRA MILE CARE CO LTD,111.16,21/08/2015
Delivery Units,Adults and Communities,Other Agencies - Third Party P,30088882,THE EXTRA MILE CARE CO LTD,"1,333.36",21/08/2015
Delivery Units,Adults and Communities,Other Agencies - Third Party P,30088883,THE EXTRA MILE CARE CO LTD,158.80,21/08/2015
Delivery Units,Adults and Communities,Other Agencies - Third Party P,30088884,THE EXTRA MILE CARE CO LTD,"1,778.56",21/08/2015
Delivery Units,Adults and Communities,Other Agencies - Third Party P,30088885,THE EXTRA MILE CARE CO LTD,518.56,21/08/2015
Delivery Units,Adults and Communities,Other Agencies - Third Party P,30088886,THE EXTRA MILE CARE CO LTD,444.36,21/08/2015
Delivery Units,Adults and Communities,Other Agencies - Third Party P,30088887,THE EXTRA MILE CARE CO LTD,888.72,21/08/2015
Delivery Units,Adults and Communities,Other Agencies - Third Party P,30088888,THE EXTRA MILE CARE CO LTD,52.88,21/08/2015
Delivery Units,Adults and Communities,Other Agencies - Third Party P,30088889,THE EXTRA MILE CARE CO LTD,518.56,21/08/2015
Delivery Units,Adults and Communities,Other Agencies - Third Party P,30088890,THE EXTRA MILE CARE CO LTD,58.20,21/08/2015
Delivery Units,Adults and Communities,Other Agencies - Third Party P,30088891,THE EXTRA MILE CARE CO LTD,727.10,21/08/2015
Delivery Units,Adults and Communities,Other Agencies - Third Party P,30088893,THE EXTRA MILE CARE CO LTD,277.62,21/08/2015
Delivery Units,Adults and Communities,Other Agencies - Third Party P,30088894,THE EXTRA MILE CARE CO LTD,296.24,21/08/2015
Delivery Units,Adults and Communities,Other Agencies - Third Party P,30088895,THE EXTRA MILE CARE CO LTD,518.56,21/08/2015
Delivery Units,Adults and Communities,Other Agencies - Third Party P,30088896,THE EXTRA MILE CARE CO LTD,814.80,21/08/2015
Delivery Units,Adults and Communities,Other Agencies - Third Party P,30088897,THE EXTRA MILE CARE CO LTD,"1,058.14",21/08/2015
Delivery Units,Adults and Communities,Other Agencies - Third Party P,30088898,THE EXTRA MILE CARE CO LTD,306.80,21/08/2015
Delivery Units,Adults and Communities,Other Agencies - Third Party P,30088899,THE EXTRA MILE CARE CO LTD,105.80,21/08/2015
Delivery Units,Adults and Communities,Other Agencies - Third Party P,30088901,THE EXTRA MILE CARE CO LTD,576.60,21/08/2015
Delivery Units,Adults and Communities,Other Agencies - Third Party P,30088902,THE EXTRA MILE CARE CO LTD,489.46,21/08/2015
Delivery Units,Adults and Communities,Other Agencies - Third Party P,30088903,THE EXTRA MILE CARE CO LTD,740.88,21/08/2015
Delivery Units,Adults and Communities,Other Agencies - Third Party P,30088904,THE EXTRA MILE CARE CO LTD,52.92,21/08/2015
Delivery Units,Adults and Communities,Other Agencies - Third Party P,30088905,THE EXTRA MILE CARE CO LTD,402.00,21/08/2015
Delivery Units,Adults and Communities,Other Agencies - Third Party P,30088906,THE EXTRA MILE CARE CO LTD,817.26,21/08/2015
Delivery Units,Adults and Communities,Other Agencies - Third Party P,30088907,THE EXTRA MILE CARE CO LTD,801.58,21/08/2015
Delivery Units,Adults and Communities,Other Agencies - Third Party P,30088908,THE EXTRA MILE CARE CO LTD,95.28,21/08/2015
Delivery Units,Adults and Communities,Other Agencies - Third Party P,30088909,THE EXTRA MILE CARE CO LTD,863.71,21/08/2015
Delivery Units,Adults and Communities,Other Agencies - Third Party P,30088910,THE EXTRA MILE CARE CO LTD,296.24,21/08/2015
Delivery Units,Adults and Communities,Other Agencies - Third Party P,30088911,THE EXTRA MILE CARE CO LTD,171.86,21/08/2015
Delivery Units,Adults and Communities,Other Agencies - Third Party P,30088912,THE EXTRA MILE CARE CO LTD,"1,481.76",21/08/2015
Delivery Units,Adults and Communities,Other Agencies - Third Party P,30088913,THE EXTRA MILE CARE CO LTD,"1,884.06",21/08/2015
Delivery Units,Adults and Communities,Other Agencies - Third Party P,30088914,THE EXTRA MILE CARE CO LTD,"1,602.52",21/08/2015
Delivery Units,Adults and Communities,Other Agencies - Third Party P,30088915,THE EXTRA MILE CARE CO LTD,"1,016.08",21/08/2015
Delivery Units,Adults and Communities,Other Agencies - Third Party P,30088916,THE EXTRA MILE CARE CO LTD,592.48,21/08/2015
Delivery Units,Adults and Communities,Other Agencies - Third Party P,30088917,THE EXTRA MILE CARE CO LTD,351.88,21/08/2015
Delivery Units,Adults and Communities,Other Agencies - Third Party P,30088918,THE EXTRA MILE CARE CO LTD,296.24,21/08/2015
Delivery Units,Adults and Communities,Other Agencies - Third Party P,30088919,THE EXTRA MILE CARE CO LTD,370.16,21/08/2015
Delivery Units,Adults and Communities,Other Agencies - Third Party P,30088920,THE EXTRA MILE CARE CO LTD,952.24,21/08/2015
Delivery Units,Adults and Communities,Other Agencies - Third Party P,30088921,THE EXTRA MILE CARE CO LTD,126.96,21/08/2015
Delivery Units,Adults and Communities,Other Agencies - Third Party P,30088922,THE EXTRA MILE CARE CO LTD,293.78,21/08/2015
Delivery Units,Adults and Communities,Other Agencies - Third Party P,30088923,THE EXTRA MILE CARE CO LTD,528.80,21/08/2015
Delivery Units,Adults and Communities,Other Agencies - Third Party P,30088924,THE EXTRA MILE CARE CO LTD,669.04,21/08/2015
Delivery Units,Adults and Communities,Other Agencies - Third Party P,30088926,THE EXTRA MILE CARE CO LTD,116.38,21/08/2015
Delivery Units,Adults and Communities,Other Agencies - Third Party P,30088927,THE EXTRA MILE CARE CO LTD,296.24,21/08/2015
Delivery Units,Adults and Communities,Other Agencies - Third Party P,30088928,THE EXTRA MILE CARE CO LTD,740.88,21/08/2015
Delivery Units,Adults and Communities,Other Agencies - Third Party P,30088929,THE EXTRA MILE CARE CO LTD,740.32,21/08/2015
Delivery Units,Adults and Communities,Other Agencies - Third Party P,30088930,THE EXTRA MILE CARE CO LTD,"1,918.46",21/08/2015
Delivery Units,Adults and Communities,Other Agencies - Third Party P,30088931,THE EXTRA MILE CARE CO LTD,482.53,21/08/2015
Delivery Units,Adults and Communities,Other Agencies - Third Party P,30088932,THE EXTRA MILE CARE CO LTD,518.56,21/08/2015
Delivery Units,Adults and Communities,Other Agencies - Third Party P,30088933,THE EXTRA MILE CARE CO LTD,925.40,21/08/2015
Delivery Units,Adults and Communities,Other Agencies - Third Party P,30088934,THE EXTRA MILE CARE CO LTD,507.98,21/08/2015
Delivery Units,Adults and Communities,Other Agencies - Third Party P,30088935,THE EXTRA MILE CARE CO LTD,"1,280.32",21/08/2015
Delivery Units,Adults and Communities,Other Agencies - Third Party P,30088936,THE EXTRA MILE CARE CO LTD,"1,696.14",21/08/2015
Delivery Units,Adults and Communities,Other Agencies - Third Party P,30088937,THE EXTRA MILE CARE CO LTD,245.30,21/08/2015
Delivery Units,Adults and Communities,Other Agencies - Third Party P,30088938,THE EXTRA MILE CARE CO LTD,592.48,21/08/2015
Delivery Units,Adults and Communities,Other Agencies - Third Party P,30088939,THE EXTRA MILE CARE CO LTD,222.32,21/08/2015
Delivery Units,Adults and Communities,Other Agencies - Third Party P,30088940,THE EXTRA MILE CARE CO LTD,158.64,21/08/2015
Delivery Units,Adults and Communities,Other Agencies - Third Party P,30088941,THE EXTRA MILE CARE CO LTD,666.40,21/08/2015
Delivery Units,Adults and Communities,Other Agencies - Third Party P,30088942,THE EXTRA MILE CARE CO LTD,158.80,21/08/2015
Delivery Units,Adults and Communities,Other Agencies - Third Party P,30088943,THE EXTRA MILE CARE CO LTD,613.84,21/08/2015
